Workbook

Sheet Introduction

Sheet Table S1
A1: Sample | B1: Type | C1: Location | D1: SiO2 (wt%) | E1: TiO2 | F1: Al2O3 | G1: Fe2O3T | H1: Fe2O3 | I1: FeOT | J1: FeO | K1: MnO | L1: MgO | M1: CaO | N1: Na2O | O1: K2O | P1: P2O5 | Q1: LOI | R1: Mg# | S1: Sc (ppm) | T1: V | U1: Cr | V1: Ni | W1: Co | X1: Cu | Y1: Zn | Z1: Ga | AA1: Rb | AB1: Sr | AC1: Y | AD1: Zr | AE1: Nb | AF1: Cs | AG1: Ba | AH1: La | AI1: Ce | AJ1: Pr | AK1: Nd | AL1: Sm | AM1: Eu | AN1: Gd | AO1: Tb | AP1: Dy | AQ1: Ho | AR1: Er | AS1: Tm | AT1: Yb | AU1: Lu | AV1: Hf | AW1: Ta | AX1: Th | AY1: U | AZ1: DNb | BA1: Sm/YbPM | BB1: Th/NbPM | BC1: Th/CePM | BD1: La/YbPM | BE1: Zr/NbPM | BF1: La/SmPM | BG1: Tp(oC) | BH1: T(oC) | BI1: 87Sr/86Sri | BJ1: 143Nd/144Ndi | BK1: eNd(t) | BL1: 208Pb/204Pbi | BM1: 207Pb/204Pbi | BN1: 206Pb/204Pbi | BO1: Age (Ma) | BP1: Dy/DY* | BQ1: DyN | BR1: LaN | BS1: YbN
A2: samp. 83BF1 | B2: high-Ti | C2: Wrangellia | D2: 50.30 | E2: 2.08 | F2: 14.50 | G2: =H2+(1.111*J2) -> 13.52 | H2: 3.10 | I2: =0.8998*G2 -> 12.17 | J2: 9.38 | K2: 0.18 | L2: 6.47 | M2: 12.00 | N2: 2.05 | O2: 0.33 | P2: 0.19 | R2: =((L2/40.305)/((L2/40.305)+(I2/71.847)))*100 -> 48.7 | S2: 40 | U2: 232 | V2: 91 | W2: 45 | X2: 310 | AA2: 10 | AB2: 230 | AC2: 31 | AD2: 129 | AE2: 15 | AG2: 101 | AH2: 8.7 | AI2: 21.6 | AK2: 15.9 | AL2: 4.1 | AM2: 1.6 | AN2: 4.5 | AO2: 0.7 | AP2: 4.9 | AS2: 0.4 | AT2: 2.2 | AU2: 0.33 | AV2: 3 | AW2: 0.65 | AX2: 0.77 | AY2: 0.62 | AZ2: =1.74+(LOG(AE2/AC2))-1.92*(LOG(AD2/AC2)) -> 0.24 | BA2: =(AL2/0.444)/(AT2/0.493) -> 2.07 | BB2: =(AX2/0.085)/(AE2/0.713) -> 0.43 | BD2: =(AH2/0.687)/(AT2/0.493) -> 2.84 | BE2: =(AD2/11.2)/(AE2/0.713) -> 0.55 | BF2: =(AH2/0.687)/(AL2/0.444) -> 1.37 | BO2: 230 | BP2: =(BQ2)/((BR2^(4/13))*(BS2^(9/13))) -> 1.1 | BQ2: =AP2/0.737 -> 6.65 | BR2: =AH2/0.687 -> 12.66 | BS2: =AT2/0.493 -> 4.46
A3: samp. 83BF3 | B3: high-Ti | C3: Wrangellia | D3: 47.30 | E3: 1.06 | F3: 16.80 | G3: =H3+(1.111*J3) -> 13.76 | H3: 2.44 | I3: =0.8998*G3 -> 12.38 | J3: 10.19 | K3: 0.18 | L3: 9.44 | M3: 9.32 | N3: 2.90 | O3: 0.23 | P3: 0.10 | R3: 57.6 | S3: 37 | U3: 382 | V3: 345 | W3: 73 | X3: 230 | AA3: 9 | AB3: 305 | AC3: 27 | AD3: 71 | AE3: 8 | AG3: 35 | AH3: 1.7 | AI3: 4.3 | AK3: 4.7 | AL3: 1.9 | AM3: 0.8 | AN3: 2.8 | AO3: 0.5 | AP3: 3.6 | AS3: 0.4 | AT3: 2.3 | AU3: 0.34 | AV3: 1.3 | AW3: 0.11 | AX3: 0.15 | AY3: 0.24 | AZ3: 0.41 | BA3: =(AL3/0.444)/(AT3/0.493) -> 0.92 | BB3: =(AX3/0.085)/(AE3/0.713) -> 0.16 | BD3: =(AH3/0.687)/(AT3/0.493) -> 0.53 | BE3: =(AD3/11.2)/(AE3/0.713) -> 0.56 | BF3: =(AH3/0.687)/(AL3/0.444) -> 0.58 | BO3: 230 | BP3: =(BQ3)/((BR3^(4/13))*(BS3^(9/13))) -> 1.3 | BQ3: =AP3/0.737 -> 4.88 | BR3: =AH3/0.687 -> 2.47 | BS3: =AT3/0.493 -> 4.67
A4: samp. 83BF4 | B4: high-Ti | C4: Wrangellia | D4: 49.30 | E4: 1.83 | F4: 15.00 | G4: 13.36 | H4: 3.01 | I4: 12.03 | J4: 9.32 | K4: 0.22 | L4: 7.02 | M4: 10.80 | N4: 3.37 | O4: 0.05 | P4: 0.17 | R4: 51.0 | S4: 44 | U4: 163 | V4: 86 | W4: 47 | X4: 291 | AA4: 0 | AB4: 178 | AC4: 24 | AD4: 105 | AE4: 11 | AG4: 51 | AH4: 7.3 | AI4: 17.4 | AK4: 11.4 | AL4: 3.5 | AM4: 1.3 | AN4: 3.8 | AO4: 0.7 | AP4: 4.4 | AS4: 0.4 | AT4: 2.3 | AU4: 0.33 | AV4: 2.4 | AW4: 0.56 | AX4: 0.6 | AY4: 0.52 | AZ4: 0.17 | BA4: 1.69 | BB4: 0.46 | BD4: 2.28 | BE4: 0.61 | BF4: 1.35 | BO4: 230 | BP4: 1.0 | BQ4: 5.97 | BR4: 10.63 | BS4: 4.67
A5: samp. 83BF5 | B5: high-Ti | C5: Wrangellia | D5: 48.40 | E5: 1.17 | F5: 17.00 | G5: 10.57 | H5: 2.99 | I5: 9.51 | J5: 6.82 | K5: 0.18 | L5: 9.60 | M5: 11.30 | N5: 2.20 | O5: 0.29 | P5: 0.09 | R5: 64.3 | S5: 36 | U5: 497 | V5: 182 | W5: 48 | X5: 155 | AA5: 6 | AB5: 303 | AC5: 19 | AD5: 72 | AE5: 7 | AG5: 125 | AH5: 3.8 | AI5: 9.9 | AK5: 6.8 | AL5: 2.2 | AM5: 0.9 | AN5: 2.8 | AO5: 0.4 | AP5: 2.6 | AS5: 0.2 | AT5: 1.5 | AU5: 0.22 | AV5: 1.5 | AW5: 0.3 | AX5: 0.23 | AY5: 0.27 | AZ5: 0.20 | BA5: 1.63 | BB5: 0.28 | BD5: 1.82 | BE5: 0.65 | BF5: 1.12 | BO5: 230 | BP5: 1.0 | BQ5: 3.53 | BR5: 5.53 | BS5: 3.04
A6: samp. 83BF6 | B6: high-Ti | C6: Wrangellia | D6: 50.80 | E6: 2.07 | F6: 15.40 | G6: 13.33 | H6: 2.44 | I6: 11.99 | J6: 9.80 | K6: 0.19 | L6: 5.89 | M6: 11.50 | N6: 2.38 | O6: 0.26 | P6: 0.18 | R6: 46.7 | S6: 41 | U6: 165 | V6: 64 | W6: 43 | X6: 295 | AA6: 0 | AB6: 256 | AC6: 25 | AD6: 117 | AE6: 13 | AG6: 93 | AH6: 8.5 | AI6: 18.4 | AK6: 13.3 | AL6: 3.8 | AM6: 1.5 | AN6: 4.4 | AO6: 0.7 | AP6: 4.5 | AS6: 0.4 | AT6: 2.6 | AU6: 0.36 | AV6: 2.8 | AW6: 0.57 | AX6: 0.82 | AY6: 0.17 | AZ6: 0.17 | BA6: 1.62 | BB6: 0.53 | BD6: 2.35 | BE6: 0.57 | BF6: 1.45 | BO6: 230 | BP6: 0.9 | BQ6: 6.11 | BR6: 12.37 | BS6: 5.27
A7: samp. 83BF8 | B7: high-Ti | C7: Wrangellia | D7: 46.40 | E7: 1.09 | F7: 16.80 | G7: 14.42 | H7: 2.13 | I7: 12.97 | J7: 11.06 | K7: 0.19 | L7: 10.30 | M7: 9.08 | N7: 2.55 | O7: 0.30 | P7: 0.11 | R7: 58.6 | S7: 38 | U7: 339 | V7: 296 | W7: 66 | X7: 214 | AA7: 11 | AB7: 167 | AC7: 25 | AD7: 72 | AE7: 9 | AG7: 21 | AH7: 2.6 | AI7: 6 | AK7: 5.1 | AL7: 2 | AM7: 0.9 | AN7: 2.8 | AO7: 0.5 | AP7: 3.7 | AS7: 0.4 | AT7: 2.6 | AU7: 0.37 | AV7: 1.6 | AW7: 0.14 | AX7: 0.28 | AY7: 0.08 | AZ7: 0.41 | BA7: 0.85 | BB7: 0.26 | BD7: 0.72 | BE7: 0.51 | BF7: 0.84 | BO7: 230 | BP7: 1.1 | BQ7: 5.02 | BR7: 3.78 | BS7: 5.27
A8: samp. 83BF9 | B8: high-Ti | C8: Wrangellia | D8: 49.00 | E8: 2.56 | F8: 13.40 | G8: 16.23 | H8: 3.79 | I8: 14.61 | J8: 11.20 | K8: 0.39 | L8: 6.59 | M8: 8.84 | N8: 3.55 | O8: 0.38 | P8: 0.23 | R8: 44.6 | S8: 47 | U8: 120 | V8: 77 | W8: 52 | X8: 1122 | AA8: 8 | AB8: 320 | AC8: 33 | AD8: 151 | AE8: 14 | AG8: 210 | AH8: 10.3 | AI8: 22.7 | AK8: 15.2 | AL8: 4.4 | AM8: 1.8 | AN8: 5.7 | AO8: 1 | AP8: 6.1 | AS8: 0.5 | AT8: 3.2 | AU8: 0.45 | AV8: 3.3 | AW8: 0.72 | AX8: 0.94 | AY8: 0.29 | AZ8: 0.10 | BA8: 1.53 | BB8: 0.56 | BD8: 2.31 | BE8: 0.69 | BF8: 1.51 | BO8: 230 | BP8: 1.0 | BQ8: 8.28 | BR8: 14.99 | BS8: 6.49
A9: samp. 83BF13 | B9: high-Ti | C9: Wrangellia | D9: 50.30 | E9: 2.06 | F9: 14.10 | G9: 13.80 | H9: 2.82 | I9: 12.41 | J9: 9.88 | K9: 0.20 | L9: 6.51 | M9: 11.60 | N9: 2.10 | O9: 0.24 | P9: 0.18 | R9: 48.3 | S9: 41 | U9: 109 | V9: 71 | W9: 46 | X9: 308 | AA9: 7 | AB9: 225 | AC9: 28 | AD9: 126 | AE9: 14 | AG9: 121 | AH9: 9 | AI9: 20.2 | AK9: 14 | AL9: 4.1 | AM9: 1.6 | AN9: 5.1 | AO9: 0.8 | AP9: 4.8 | AS9: 0.4 | AT9: 2.5 | AU9: 0.37 | AV9: 2.8 | AW9: 0.6 | AX9: 0.92 | AY9: 0.2 | AZ9: 0.18 | BA9: 1.82 | BB9: 0.55 | BD9: 2.58 | BE9: 0.57 | BF9: 1.42 | BO9: 230 | BP9: 1.0 | BQ9: 6.51 | BR9: 13.10 | BS9: 5.07
A10: samp. 83BF14 | B10: high-Ti | C10: Wrangellia | D10: 49.20 | E10: 2.43 | F10: 14.60 | G10: 13.82 | H10: 2.83 | I10: 12.43 | J10: 9.89 | K10: 0.19 | L10: 6.19 | M10: 12.10 | N10: 2.11 | O10: 0.25 | P10: 0.23 | R10: 47.0 | S10: 40 | U10: 238 | V10: 88 | W10: 43 | X10: 327 | AA10: 9 | AB10: 270 | AC10: 32 | AD10: 152 | AE10: 16 | AG10: 67 | AH10: 11.9 | AI10: 26 | AK10: 17.1 | AL10: 5 | AM10: 1.8 | AN10: 6.1 | AO10: 0.9 | AP10: 5.4 | AS10: 0.4 | AT10: 2.6 | AU10: 0.38 | AV10: 3.3 | AW10: 0.83 | AX10: 1.05 | AY10: 0.24 | AZ10: 0.14 | BA10: 2.14 | BB10: 0.55 | BD10: 3.28 | BE10: 0.60 | BF10: 1.54 | BO10: 230 | BP10: 1.0 | BQ10: 7.33 | BR10: 17.32 | BS10: 5.27
A11: samp. 83BF15 | B11: high-Ti | C11: Wrangellia | D11: 49.20 | E11: 1.81 | F11: 14.50 | G11: 13.72 | H11: 3.57 | I11: 12.35 | J11: 9.14 | K11: 0.20 | L11: 6.55 | M11: 12.80 | N11: 1.91 | O11: 0.13 | P11: 0.16 | R11: 48.6 | S11: 44 | U11: 168 | V11: 89 | W11: 48 | X11: 279 | AA11: 3 | AB11: 197 | AC11: 25 | AD11: 108 | AE11: 12 | AG11: 32 | AH11: 7.6 | AI11: 16.6 | AK11: 12 | AL11: 3.7 | AM11: 1.4 | AN11: 4.5 | AO11: 0.7 | AP11: 4.5 | AS11: 0.4 | AT11: 2.4 | AU11: 0.36 | AV11: 2.5 | AW11: 0.53 | AX11: 0.71 | AY11: 0.17 | AZ11: 0.20 | BA11: 1.71 | BB11: 0.50 | BD11: 2.27 | BE11: 0.57 | BF11: 1.33 | BO11: 230 | BP11: 1.0 | BQ11: 6.11 | BR11: 11.06 | BS11: 4.87
A12: samp. 83BF16 | B12: high-Ti | C12: Wrangellia | D12: 50.10 | E12: 1.48 | F12: 13.30 | G12: 12.14 | H12: 3.29 | I12: 10.93 | J12: 7.97 | K12: 0.20 | L12: 8.39 | M12: 11.80 | N12: 3.21 | O12: 0.08 | P12: 0.12 | R12: 57.8 | S12: 48 | U12: 375 | V12: 116 | W12: 49 | X12: 248 | AA12: 5 | AB12: 226 | AC12: 23 | AD12: 94 | AE12: 12 | AG12: 32 | AH12: 6.4 | AI12: 13 | AK12: 8.2 | AL12: 2.9 | AM12: 1.1 | AN12: 3.6 | AO12: 0.7 | AP12: 4 | AS12: 0.4 | AT12: 2.1 | AU12: 0.29 | AV12: 2.1 | AW12: 0.43 | AX12: 0.54 | AY12: 0.19 | AZ12: 0.28 | BA12: 1.53 | BB12: 0.38 | BD12: 2.19 | BE12: 0.50 | BF12: 1.43 | BO12: 230 | BP12: 1.0 | BQ12: 5.43 | BR12: 9.32 | BS12: 4.26
A13: samp. 83BF17 | B13: high-Ti | C13: Wrangellia | D13: 49.70 | E13: 1.95 | F13: 14.20 | G13: 15.23 | H13: 4.22 | I13: 13.70 | J13: 9.91 | K13: 0.25 | L13: 7.35 | M13: 9.23 | N13: 3.22 | O13: 0.88 | P13: 0.17 | R13: 48.9 | S13: 45 | U13: 123 | V13: 78 | W13: 52 | X13: 202 | AA13: 23 | AB13: 601 | AC13: 27 | AD13: 116 | AE13: 13 | AG13: 532 | AH13: 7.7 | AI13: 16.8 | AK13: 11.9 | AL13: 3.8 | AM13: 1.5 | AN13: 4.5 | AO13: 0.7 | AP13: 4.5 | AS13: 0.5 | AT13: 2.6 | AU13: 0.39 | AV13: 2.4 | AW13: 0.55 | AX13: 0.7 | AY13: 0.17 | AZ13: 0.21 | BA13: 1.62 | BB13: 0.45 | BD13: 2.13 | BE13: 0.57 | BF13: 1.31 | BO13: 230 | BP13: 0.9 | BQ13: 6.11 | BR13: 11.21 | BS13: 5.27
A14: samp. 91KB1 | B14: high-Ti | C14: Wrangellia | D14: 47.48 | E14: 1.21 | F14: 16.03 | G14: =1.111*I14 -> 10.24 | I14: 9.22 | K14: 0.17 | L14: 8.99 | M14: 10.71 | N14: 2.92 | O14: 0.06 | P14: 0.13 | Q14: 3.20 | R14: 63.5 | V14: 171 | X14: 68 | Y14: 69 | Z14: 20 | AA14: 1 | AB14: 198 | AC14: 19 | AD14: 74 | AE14: 7 | AG14: 39 | AH14: 5.3 | AI14: 14.5 | AK14: 9.4 | AL14: 2.6 | AM14: 1.3 | AN14: 3.4 | AO14: 0.6 | AQ14: 0.7 | AR14: 1.8 | AS14: 0.3 | AT14: 1.5 | AU14: 0.31 | AV14: 2.08 | AX14: 0.44 | AY14: 0.18 | AZ14: 0.15 | BA14: 1.92 | BB14: 0.55 | BD14: 2.54 | BE14: 0.70 | BF14: 1.32 | BI14: 0.70358 | BK14: 6.1 | BO14: 230 | BR14: 7.71 | BS14: 3.04
A15: samp. 91KB3 | B15: high-Ti | C15: Wrangellia | D15: 49.00 | E15: 1.53 | F15: 14.59 | G15: 11.51 | I15: 10.36 | K15: 0.15 | L15: 7.82 | M15: 10.59 | N15: 3.31 | O15: 0.09 | P15: 0.15 | Q15: 2.00 | R15: 57.4 | V15: 121 | X15: 125 | Y15: 74 | Z15: 18 | AA15: 1 | AB15: 239 | AC15: 25 | AD15: 91 | AE15: 8 | AG15: 39 | AH15: 6.3 | AI15: 17.7 | AK15: 11.2 | AL15: 3.3 | AM15: 1.3 | AN15: 4.6 | AO15: 0.8 | AQ15: 0.9 | AR15: 2.3 | AS15: 0.33 | AT15: 2.1 | AU15: 0.32 | AV15: 3 | AX15: 0.62 | AY15: 0.22 | AZ15: 0.15 | BA15: 1.74 | BB15: 0.68 | BD15: 2.15 | BE15: 0.76 | BF15: 1.23 | BI15: 0.70386 | BK15: 6.2 | BO15: 230 | BR15: 9.17 | BS15: 4.26
A16: samp. 91KB4 | B16: high-Ti | C16: Wrangellia | D16: 47.62 | E16: 1.37 | F16: 20.37 | G16: 9.28 | I16: 8.35 | K16: 0.14 | L16: 5.80 | M16: 9.87 | N16: 3.65 | O16: 0.58 | P16: 0.16 | Q16: 2.52 | R16: 55.3 | V16: 98 | X16: 80 | Y16: 74 | Z16: 26 | AA16: 7 | AB16: 620 | AC16: 19 | AD16: 72 | AE16: 7 | AG16: 177 | AH16: 5.5 | AI16: 15.8 | AK16: 10 | AL16: 2.6 | AM16: 1.1 | AN16: 3.9 | AO16: 0.6 | AQ16: 0.6 | AR16: 1.7 | AS16: 0.24 | AT16: 1.6 | AU16: 0.24 | AV16: 1.5 | AX16: 0.33 | AY16: 0.14 | AZ16: 0.18 | BA16: 1.80 | BB16: 0.41 | BD16: 2.47 | BE16: 0.68 | BF16: 1.37 | BI16: 0.70513 | BK16: 5.8 | BL16: 39.177 | BM16: 15.623 | BN16: 19.586 | BO16: 230 | BR16: 8.01 | BS16: 3.25
A17: samp. 91KB6 | B17: high-Ti | C17: Wrangellia | D17: 48.03 | E17: 1.73 | F17: 13.88 | G17: 12.67 | I17: 11.40 | K17: 0.21 | L17: 8.49 | M17: 11.19 | N17: 2.47 | O17: 0.09 | P17: 0.18 | Q17: 2.06 | R17: 57.0 | V17: 182 | X17: 63 | Y17: 89 | Z17: 20 | AA17: 4 | AB17: 184 | AC17: 24 | AD17: 97 | AE17: 7 | AG17: 36 | AH17: 7 | AI17: 19.9 | AK17: 12.2 | AL17: 3.4 | AM17: 1.4 | AN17: 4.7 | AO17: 0.8 | AQ17: 0.9 | AR17: 2.4 | AS17: 0.34 | AT17: 2.1 | AU17: 0.32 | AV17: 2.6 | AX17: 0.56 | AY17: 0.23 | AZ17: 0.03 | BA17: 1.80 | BB17: 0.68 | BD17: 2.39 | BE17: 0.89 | BF17: 1.33 | BI17: 0.70352 | BK17: 5.1 | BO17: 230 | BR17: 10.19 | BS17: 4.26
A18: samp. 91KB7 | B18: high-Ti | C18: Wrangellia | D18: 48.02 | E18: 1.53 | F18: 13.52 | G18: 12.24 | I18: 11.02 | K18: 0.15 | L18: 8.55 | M18: 10.91 | N18: 3.38 | O18: 0.11 | P18: 0.17 | Q18: 2.30 | R18: 58.0 | V18: 162 | X18: 54 | Y18: 91 | Z18: 17 | AA18: 3 | AB18: 279 | AC18: 26 | AD18: 87 | AE18: 8 | AG18: 43 | AH18: 6.2 | AI18: 17.9 | AK18: 10.8 | AL18: 3.1 | AM18: 1.3 | AN18: 4.5 | AO18: 0.8 | AQ18: 0.8 | AR18: 2.2 | AS18: 0.32 | AT18: 1.9 | AU18: 0.3 | AV18: 2.35 | AX18: 0.5 | AY18: 0.16 | AZ18: 0.23 | BA18: 1.81 | BB18: 0.52 | BD18: 2.34 | BE18: 0.68 | BF18: 1.29 | BI18: 0.70428 | BK18: 6.8 | BL18: 39.289 | BM18: 15.621 | BN18: 19.675 | BO18: 230 | BR18: 9.02 | BS18: 3.85
A19: samp. 91KB8 | B19: high-Ti | C19: Wrangellia | D19: 48.08 | E19: 1.87 | F19: 15.77 | G19: 12.43 | I19: 11.19 | K19: 0.18 | L19: 5.73 | M19: 9.88 | N19: 3.49 | O19: 0.49 | P19: 0.19 | Q19: 1.40 | R19: 47.7 | V19: 82 | X19: 114 | Y19: 88 | Z19: 22 | AA19: 8 | AB19: 293 | AC19: 23 | AD19: 99 | AE19: 12 | AG19: 89 | AH19: 7.9 | AI19: 21 | AK19: 13.2 | AL19: 3.3 | AM19: 1.4 | AN19: 4.8 | AO19: 0.8 | AQ19: 0.9 | AR19: 2.3 | AS19: 0.32 | AT19: 2.1 | AU19: 0.32 | AV19: 2.69 | AX19: 0.6 | AY19: 0.21 | AZ19: 0.24 | BA19: 1.74 | BB19: 0.42 | BD19: 2.70 | BE19: 0.52 | BF19: 1.55 | BI19: 0.70404 | BK19: 6.4 | BO19: 230 | BR19: 11.50 | BS19: 4.26
A20: samp. 91KB9 | B20: high-Ti | C20: Wrangellia | D20: 45.82 | E20: 2.64 | F20: 14.67 | G20: 13.59 | I20: 12.23 | K20: 0.22 | L20: 6.49 | M20: 11.34 | N20: 2.47 | O20: 0.32 | P20: 0.31 | Q20: 2.26 | R20: 48.6 | V20: 143 | X20: 477 | Y20: 153 | Z20: 19 | AA20: 8 | AB20: 332 | AC20: 33 | AD20: 173 | AE20: 16 | AG20: 143 | AH20: 13 | AI20: 35.3 | AK20: 21.6 | AL20: 5.3 | AM20: 2 | AN20: 7 | AO20: 1.1 | AQ20: 1.3 | AR20: 3.1 | AS20: 0.46 | AT20: 2.9 | AU20: 0.48 | AV20: 6.26 | AX20: 1.57 | AY20: 0.65 | AZ20: 0.05 | BA20: 2.03 | BB20: 0.81 | BD20: 3.22 | BE20: 0.68 | BF20: 1.59 | BI20: 0.70436 | BK20: 7.3 | BO20: 230 | BR20: 18.92 | BS20: 5.88
A21: samp. 91KB10 | B21: low-Ti | C21: Wrangellia | D21: 51.92 | E21: 0.83 | F21: 19.93 | G21: 8.82 | I21: 7.94 | K21: 0.15 | L21: 3.43 | M21: 9.33 | N21: 3.49 | O21: 0.29 | P21: 0.18 | Q21: 1.37 | R21: 43.5 | X21: 67 | Y21: 83 | Z21: 20 | AA21: 3 | AB21: 722 | AC21: 23 | AD21: 59 | AE21: 3.9 | AK21: 12.00 | AL21: 3.26 | AZ21: 0.18 | BE21: 0.96 | BI21: 0.70418 | BK21: 5.8 | BO21: 230
A22: samp. 91KB13 | B22: high-Ti | C22: Wrangellia | D22: 48.97 | E22: 1.74 | F22: 13.57 | G22: 13.40 | I22: 12.06 | K22: 0.21 | L22: 6.22 | M22: 11.27 | N22: 2.95 | O22: 0.17 | P22: 0.18 | Q22: 1.16 | R22: 47.9 | V22: 64 | X22: 83 | Y22: 94 | Z22: 21 | AA22: 3 | AB22: 264 | AC22: 25 | AD22: 103 | AE22: 9 | AG22: 85 | AH22: 8.1 | AI22: 22.2 | AK22: 13.2 | AL22: 3.6 | AM22: 1.5 | AN22: 5.3 | AO22: 0.8 | AQ22: 0.9 | AR22: 2.5 | AS22: 0.4 | AT22: 2.3 | AU22: 0.36 | AV22: 2.51 | AX22: 0.6 | AY22: 0.27 | AZ22: 0.13 | BA22: 1.74 | BB22: 0.55 | BD22: 2.53 | BE22: 0.71 | BF22: 1.45 | BI22: 0.70371 | BK22: 5.2 | BO22: 230 | BR22: 11.79 | BS22: 4.67
A23: samp. 91KB15 | B23: high-Ti | C23: Wrangellia | D23: 48.51 | E23: 1.95 | F23: 13.93 | G23: 12.62 | I23: 11.36 | K23: 0.20 | L23: 7.43 | M23: 9.15 | N23: 4.00 | O23: 0.12 | P23: 0.21 | Q23: 2.61 | R23: 53.8 | V23: 121 | X23: 307 | Y23: 99 | Z23: 17 | AA23: 4 | AB23: 356 | AC23: 28 | AD23: 110 | AE23: 11 | AG23: 56 | AH23: 7.8 | AI23: 22 | AK23: 14 | AL23: 3.9 | AM23: 1.5 | AN23: 5.7 | AO23: 0.9 | AQ23: 1 | AR23: 2.7 | AS23: 0.39 | AT23: 2.4 | AU23: 0.36 | AV23: 3.22 | AX23: 0.61 | AY23: 0.22 | AZ23: 0.18 | BA23: 1.80 | BB23: 0.48 | BD23: 2.33 | BE23: 0.66 | BF23: 1.29 | BI23: 0.70506 | BK23: 6.3 | BO23: 230 | BR23: 11.35 | BS23: 4.87
A24: samp. 91KB17 | B24: high-Ti | C24: Wrangellia | D24: 48.91 | E24: 1.89 | F24: 12.94 | G24: 12.90 | I24: 11.61 | K24: 0.20 | L24: 6.49 | M24: 9.58 | N24: 3.81 | O24: 0.02 | P24: 0.19 | Q24: 2.77 | R24: 49.9 | V24: 65 | X24: 203 | Y24: 98 | Z24: 18 | AA24: 2 | AB24: 100 | AC24: 28 | AD24: 109 | AE24: 12 | AG24: 15 | AH24: 9.6 | AI24: 25.5 | AK24: 15.4 | AL24: 4 | AM24: 1.6 | AN24: 5.7 | AO24: 1 | AQ24: 1.1 | AR24: 3 | AS24: 0.42 | AT24: 2.7 | AU24: 0.38 | AV24: 3.2 | AX24: 0.87 | AY24: 0.29 | AZ24: 0.24 | BA24: 1.64 | BB24: 0.61 | BD24: 2.55 | BE24: 0.58 | BF24: 1.55 | BI24: 0.70401 | BK24: 6.7 | BO24: 230 | BR24: 13.97 | BS24: 5.48
A25: samp. 91KB19 | B25: high-Ti | C25: Wrangellia | D25: 50.38 | E25: 1.76 | F25: 13.02 | G25: 11.97 | I25: 10.77 | K25: 0.19 | L25: 6.98 | M25: 11.07 | N25: 2.73 | O25: 0.09 | P25: 0.18 | Q25: 2.05 | R25: 53.6 | V25: 107 | X25: 169 | Y25: 89 | Z25: 19 | AA25: 1 | AB25: 214 | AC25: 26 | AD25: 106 | AE25: 10 | AG25: 65 | AH25: 8.8 | AI25: 22.2 | AK25: 14 | AL25: 3.7 | AM25: 1.5 | AN25: 5.1 | AO25: 0.9 | AQ25: 1.1 | AR25: 2.8 | AS25: 0.36 | AT25: 2.5 | AU25: 0.38 | AV25: 3.04 | AX25: 0.74 | AY25: 0.26 | AZ25: 0.14 | BA25: 1.64 | BB25: 0.65 | BD25: 2.53 | BE25: 0.70 | BF25: 1.54 | BI25: 0.70352 | BK25: 6.1 | BO25: 230 | BR25: 12.81 | BS25: 5.07
A26: samp. 91KB22 | B26: high-Ti | C26: Wrangellia | D26: 51.32 | E26: 2.06 | F26: 12.55 | G26: 13.37 | I26: 12.03 | K26: 0.17 | L26: 4.97 | M26: 8.75 | N26: 3.59 | O26: 0.71 | P26: 0.24 | Q26: 2.18 | R26: 42.4 | V26: 43 | X26: 117 | Y26: 66 | Z26: 22 | AA26: 15 | AB26: 277 | AC26: 35 | AD26: 135 | AE26: 11 | AK26: 18.6 | AL26: 5.02 | AZ26: 0.12 | BE26: 0.77 | BI26: 0.70442 | BK26: 5.0 | BO26: 230
A27: samp. 91KB23 | B27: high-Ti | C27: Wrangellia | D27: 52.41 | E27: 2.18 | F27: 12.68 | G27: 14.54 | I27: 13.09 | K27: 0.20 | L27: 5.04 | M27: 8.53 | N27: 3.23 | O27: 0.53 | P27: 0.26 | Q27: 1.30 | R27: 40.7 | V27: 40 | X27: 254 | Y27: 151 | Z27: 22 | AA27: 11 | AB27: 227 | AC27: 34 | AD27: 144 | AE27: 12 | AG27: 296 | AH27: 12.9 | AI27: 33.2 | AK27: 20.4 | AL27: 5.3 | AM27: 2 | AN27: 7.6 | AO27: 1.3 | AQ27: 1.4 | AR27: 4 | AS27: 0.55 | AT27: 3.6 | AU27: 0.54 | AV27: 4.2 | AX27: 1.89 | AY27: 0.76 | AZ27: 0.08 | BA27: 1.63 | BB27: 1.34 | BD27: 2.57 | BE27: 0.78 | BF27: 1.57 | BI27: 0.70384 | BK27: 4.8 | BL27: 38.622 | BM27: 15.601 | BN27: 19.098 | BO27: 230 | BR27: 18.78 | BS27: 7.30
A28: samp. 91KB24 | B28: high-Ti | C28: Wrangellia | D28: 51.85 | E28: 2.04 | F28: 12.97 | G28: 13.75 | I28: 12.38 | K28: 0.20 | L28: 5.60 | M28: 9.38 | N28: 3.10 | O28: 0.35 | P28: 0.21 | Q28: 1.94 | R28: 44.6 | V28: 50 | X28: 165 | Y28: 111 | Z28: 22 | AA28: 7 | AB28: 230 | AC28: 33 | AD28: 132 | AE28: 12 | AG28: 239 | AH28: 12 | AI28: 31.2 | AK28: 18.4 | AL28: 4.8 | AM28: 1.8 | AN28: 6.9 | AO28: 1.1 | AQ28: 1.2 | AR28: 3.5 | AS28: 0.5 | AT28: 3.1 | AU28: 0.47 | AV28: 4.07 | AX28: 1.81 | AY28: 0.73 | AZ28: 0.13 | BA28: 1.72 | BB28: 1.30 | BD28: 2.78 | BE28: 0.72 | BF28: 1.62 | BI28: 0.70383 | BK28: 5.0 | BL28: 39.041 | BM28: 15.636 | BN28: 19.497 | BO28: 230 | BR28: 17.47 | BS28: 6.29
A29: samp. 91KB25 | B29: high-Ti | C29: Wrangellia | D29: 51.65 | E29: 2.13 | F29: 12.59 | G29: 14.30 | I29: 12.87 | K29: 0.20 | L29: 4.67 | M29: 8.70 | N29: 2.81 | O29: 0.53 | P29: 0.27 | Q29: 1.91 | R29: 39.3 | V29: 46 | X29: 193 | Y29: 111 | Z29: 22 | AA29: 9 | AB29: 233 | AC29: 36 | AD29: 147 | AE29: 10 | AG29: 278 | AH29: 13.5 | AI29: 34.5 | AK29: 20.3 | AL29: 4.8 | AM29: 1.8 | AN29: 6.7 | AO29: 1.2 | AQ29: 1.2 | AR29: 3.2 | AS29: 0.41 | AT29: 2.9 | AU29: 0.41 | AV29: 2.44 | AX29: 1.38 | AY29: 0.61 | AZ29: 0.02 | BA29: 1.84 | BB29: 1.12 | BD29: 3.34 | BE29: 0.91 | BF29: 1.82 | BI29: 0.70380 | BK29: 5.4 | BO29: 230 | BR29: 19.65 | BS29: 5.88
A30: samp. 91KB26 | B30: high-Ti | C30: Wrangellia | D30: 51.36 | E30: 2.32 | F30: 12.15 | G30: 14.73 | I30: 13.26 | K30: 0.20 | L30: 4.66 | M30: 8.94 | N30: 2.65 | O30: 0.59 | P30: 0.25 | Q30: 2.49 | R30: 38.5 | V30: 49 | X30: 175 | Y30: 112 | Z30: 21 | AA30: 12 | AB30: 230 | AC30: 36 | AD30: 144 | AE30: 11 | AG30: 254 | AH30: 13.9 | AI30: 33.9 | AK30: 22.2 | AL30: 5.7 | AM30: 2.1 | AN30: 7.9 | AO30: 1.4 | AQ30: 1.6 | AR30: 4.3 | AS30: 0.6 | AT30: 4.3 | AU30: 0.63 | AV30: 4.53 | AX30: 2.23 | AY30: 0.89 | AZ30: 0.08 | BA30: 1.47 | BB30: 1.67 | BD30: 2.32 | BE30: 0.82 | BF30: 1.58 | BI30: 0.70384 | BK30: 5.1 | BO30: 230 | BR30: 20.23 | BS30: 8.72
A31: samp. 91KB28 | B31: high-Ti | C31: Wrangellia | D31: 48.86 | E31: 1.50 | F31: 14.48 | G31: 11.51 | I31: 10.36 | K31: 0.18 | L31: 7.41 | M31: 11.27 | N31: 3.07 | O31: 0.59 | P31: 0.19 | Q31: 2.17 | R31: 56.0 | V31: 106 | X31: 149 | Y31: 96 | Z31: 21 | AA31: 14 | AB31: 267 | AC31: 21 | AD31: 89 | AE31: 8 | AG31: 436 | AH31: 6.8 | AI31: 18.7 | AK31: 11.4 | AL31: 2.8 | AM31: 1.2 | AN31: 4.1 | AO31: 0.7 | AQ31: 0.7 | AR31: 1.8 | AS31: 0.29 | AT31: 1.8 | AU31: 0.28 | AV31: 2.37 | AX31: 0.64 | AY31: 0.22 | AZ31: 0.09 | BA31: 1.73 | BB31: 0.72 | BD31: 2.71 | BE31: 0.76 | BF31: 1.57 | BI31: 0.70379 | BK31: 5.4 | BO31: 230 | BR31: 9.90 | BS31: 3.65
A32: samp. 91KB30 | B32: high-Ti | C32: Wrangellia | D32: 49.55 | E32: 1.52 | F32: 15.39 | G32: 10.99 | I32: 9.89 | K32: 0.16 | L32: 7.25 | M32: 11.84 | N32: 3.14 | O32: 0.17 | P32: 0.16 | Q32: 1.12 | R32: 56.6 | V32: 118 | X32: 147 | Y32: 78 | Z32: 21 | AA32: 2 | AB32: 260 | AC32: 25 | AD32: 92 | AE32: 8 | AG32: 86 | AH32: 7.4 | AI32: 19.8 | AK32: 12.2 | AL32: 3.1 | AM32: 1.3 | AN32: 4.2 | AO32: 0.7 | AQ32: 0.8 | AR32: 2 | AS32: 0.28 | AT32: 1.8 | AU32: 0.27 | AV32: 2.66 | AX32: 0.66 | AY32: 0.26 | AZ32: 0.14 | BA32: 1.91 | BB32: 0.72 | BD32: 2.95 | BE32: 0.76 | BF32: 1.54 | BI32: 0.70340 | BK32: 5.4 | BO32: 230 | BR32: 10.77 | BS32: 3.65
A33: samp. 91KB31 | B33: high-Ti | C33: Wrangellia | D33: 50.08 | E33: 2.14 | F33: 13.03 | G33: 13.22 | I33: 11.90 | K33: 0.20 | L33: 6.50 | M33: 10.64 | N33: 3.08 | O33: 0.20 | P33: 0.21 | Q33: 1.18 | R33: 49.3 | V33: 65 | X33: 216 | Y33: 104 | Z33: 24 | AA33: 5 | AB33: 231 | AC33: 32 | AD33: 126 | AE33: 10 | AG33: 98 | AH33: 10.1 | AI33: 27.3 | AK33: 16.2 | AL33: 4.3 | AM33: 1.6 | AN33: 5.8 | AO33: 1 | AQ33: 1.1 | AR33: 2.8 | AS33: 0.4 | AT33: 2.3 | AU33: 0.36 | AV33: 2.02 | AX33: 1 | AY33: 0.33 | AZ33: 0.09 | BA33: 2.08 | BB33: 0.85 | BD33: 3.15 | BE33: 0.81 | BF33: 1.52 | BI33: 0.70350 | BK33: 5.6 | BO33: 230 | BR33: 14.70 | BS33: 4.67
A34: samp. 91KB32 | B34: low-Ti | C34: Wrangellia | D34: 51.42 | E34: 1.00 | F34: 13.90 | G34: 11.79 | I34: 10.61 | K34: 0.19 | L34: 6.46 | M34: 11.30 | N34: 2.52 | O34: 0.10 | P34: 0.15 | Q34: 1.29 | R34: 52.0 | V34: 66 | X34: 155 | Y34: 100 | Z34: 19 | AA34: 3 | AB34: 194 | AC34: 23 | AD34: 56 | AE34: 3.7 | AG34: 127 | AH34: 3.90 | AI34: 10.10 | AK34: 6.20 | AL34: 1.80 | AM34: 0.90 | AN34: 3.00 | AO34: 0.60 | AQ34: 0.70 | AR34: 2.10 | AS34: 0.29 | AT34: 2.00 | AU34: 0.30 | AV34: 1.57 | AX34: 0.79 | AY34: 0.34 | AZ34: 0.20 | BA34: 1.00 | BB34: 1.79 | BD34: 1.40 | BE34: 0.96 | BF34: 1.40 | BI34: 0.70404 | BK34: 4.0 | BL34: 38.773 | BM34: 15.615 | BN34: 19.267 | BO34: 230 | BR34: 5.68 | BS34: 4.06
A35: samp. 91KB34 | B35: high-Ti | C35: Wrangellia | D35: 50.58 | E35: 1.81 | F35: 14.46 | G35: 12.05 | I35: 10.85 | K35: 0.18 | L35: 5.83 | M35: 10.09 | N35: 2.83 | O35: 0.73 | P35: 0.18 | Q35: 1.00 | R35: 48.9 | V35: 66 | X35: 192 | Y35: 97 | Z35: 23 | AA35: 12 | AB35: 250 | AC35: 28 | AD35: 112 | AE35: 9 | AG35: 248 | AH35: 8.8 | AI35: 22.6 | AK35: 14.2 | AL35: 3.5 | AM35: 1.5 | AN35: 4.7 | AO35: 0.8 | AQ35: 0.9 | AR35: 2.3 | AS35: 0.35 | AT35: 2.1 | AU35: 0.32 | AV35: 3.29 | AX35: 0.95 | AY35: 0.36 | AZ35: 0.10 | BA35: 1.85 | BB35: 0.87 | BD35: 3.01 | BE35: 0.78 | BF35: 1.62 | BI35: 0.70335 | BK35: 5.5 | BO35: 230 | BR35: 12.81 | BS35: 4.26
A36: samp. 91KB35 | B36: high-Ti | C36: Wrangellia | D36: 49.54 | E36: 2.00 | F36: 13.62 | G36: 12.48 | I36: 11.23 | K36: 0.18 | L36: 6.50 | M36: 10.89 | N36: 3.24 | O36: 0.39 | P36: 0.24 | Q36: 1.91 | R36: 50.8 | V36: 88 | X36: 204 | Y36: 93 | Z36: 22 | AA36: 11 | AB36: 264 | AC36: 29 | AD36: 121 | AE36: 12 | AG36: 267 | AH36: 9.6 | AI36: 26.2 | AK36: 15.4 | AL36: 4.1 | AM36: 1.7 | AN36: 5.9 | AO36: 1 | AQ36: 1 | AR36: 2.7 | AS36: 0.39 | AT36: 2.3 | AU36: 0.32 | AV36: 3.93 | AX36: 1.12 | AY36: 0.39 | AZ36: 0.16 | BA36: 1.98 | BB36: 0.80 | BD36: 3.00 | BE36: 0.65 | BF36: 1.51 | BI36: 0.70357 | BK36: 6.2 | BL36: 39.478 | BM36: 15.626 | BN36: 19.843 | BO36: 230 | BR36: 13.97 | BS36: 4.67
A37: samp. 91KB37 | B37: high-Ti | C37: Wrangellia | D37: 49.00 | E37: 2.01 | F37: 13.13 | G37: 13.12 | I37: 11.81 | K37: 0.18 | L37: 6.28 | M37: 11.30 | N37: 2.79 | O37: 0.27 | P37: 0.20 | Q37: 1.21 | R37: 48.7 | V37: 79 | X37: 217 | Y37: 103 | Z37: 21 | AA37: 5 | AB37: 214 | AC37: 28 | AD37: 118 | AE37: 11 | AG37: 435 | AH37: 8.7 | AI37: 23.6 | AK37: 14.6 | AL37: 3.9 | AM37: 1.6 | AN37: 5.6 | AO37: 0.9 | AQ37: 1 | AR37: 2.7 | AS37: 0.37 | AT37: 2.4 | AU37: 0.35 | AV37: 3.46 | AX37: 0.92 | AY37: 0.36 | AZ37: 0.13 | BA37: 1.80 | BB37: 0.71 | BD37: 2.60 | BE37: 0.69 | BF37: 1.44 | BI37: 0.70344 | BK37: 5.6 | BO37: 230 | BR37: 12.66 | BS37: 4.87
A38: samp. 91KB39 | B38: high-Ti | C38: Wrangellia | D38: 49.74 | E38: 1.96 | F38: 13.23 | G38: 12.59 | I38: 11.33 | K38: 0.18 | L38: 6.77 | M38: 11.33 | N38: 2.21 | O38: 0.33 | P38: 0.19 | Q38: 1.24 | R38: 51.6 | V38: 101 | X38: 210 | Y38: 97 | Z38: 22 | AA38: 7 | AB38: 232 | AC38: 28 | AD38: 121 | AE38: 12 | AG38: 259 | AH38: 11 | AI38: 26.7 | AK38: 17.8 | AL38: 4.6 | AM38: 1.8 | AN38: 6.2 | AO38: 1 | AQ38: 1.3 | AR38: 3.4 | AS38: 0.47 | AT38: 3.2 | AU38: 0.47 | AV38: 3.65 | AX38: 1.05 | AY38: 0.42 | AZ38: 0.15 | BA38: 1.60 | BB38: 0.73 | BD38: 2.47 | BE38: 0.64 | BF38: 1.55 | BI38: 0.70333 | BK38: 5.8 | BO38: 230 | BR38: 16.01 | BS38: 6.49
A39: samp. 91KB40 | B39: high-Ti | C39: Wrangellia | D39: 49.19 | E39: 1.93 | F39: 13.74 | G39: 12.87 | I39: 11.58 | K39: 0.17 | L39: 6.38 | M39: 11.17 | N39: 3.09 | O39: 0.33 | P39: 0.22 | Q39: 1.24 | R39: 49.5 | V39: 75 | X39: 346 | Y39: 106 | Z39: 21 | AA39: 11 | AB39: 238 | AC39: 28 | AD39: 118 | AE39: 11 | AG39: 196 | AH39: 11.2 | AI39: 25.2 | AK39: 15.2 | AL39: 4.1 | AM39: 1.6 | AN39: 5.7 | AO39: 0.9 | AQ39: 1 | AR39: 2.6 | AS39: 0.37 | AT39: 2.4 | AU39: 0.34 | AV39: 3.66 | AX39: 1.08 | AY39: 0.37 | AZ39: 0.15 | BA39: 1.90 | BB39: 0.80 | BD39: 3.35 | BE39: 0.66 | BF39: 1.77 | BI39: 0.70328 | BK39: 5.6 | BL39: 39.205 | BM39: 15.615 | BN39: 19.587 | BO39: 230 | BR39: 16.30 | BS39: 4.87
A40: samp. 91KB44 | B40: high-Ti | C40: Wrangellia | D40: 49.97 | E40: 1.54 | F40: 13.95 | G40: 11.37 | I40: 10.23 | K40: 0.16 | L40: 5.77 | M40: 10.75 | N40: 1.71 | O40: 0.81 | P40: 0.14 | Q40: 4.90 | R40: 50.1 | V40: 56 | X40: 160 | Y40: 86 | Z40: 16 | AA40: 16 | AB40: 138 | AC40: 24 | AD40: 92 | AE40: 9 | AG40: 189 | AH40: 7.8 | AI40: 19.6 | AK40: 12.9 | AL40: 3.2 | AM40: 1.5 | AN40: 4.4 | AO40: 0.8 | AQ40: 0.9 | AR40: 2.4 | AS40: 0.33 | AT40: 2.3 | AU40: 0.33 | AV40: 2.62 | AX40: 0.75 | AY40: 0.35 | AZ40: 0.19 | BA40: 1.54 | BB40: 0.71 | BD40: 2.43 | BE40: 0.66 | BF40: 1.58 | BI40: 0.70336 | BK40: 5.7 | BO40: 230 | BR40: 11.35 | BS40: 4.67
A41: samp. 91KB48 | B41: high-Ti | C41: Wrangellia | D41: 47.67 | E41: 1.59 | F41: 13.67 | G41: 12.21 | I41: 10.99 | K41: 0.19 | L41: 7.28 | M41: 10.34 | N41: 3.95 | O41: 0.19 | P41: 0.15 | Q41: 3.47 | R41: 54.1 | V41: 89 | X41: 83 | Y41: 90 | Z41: 22 | AA41: 4 | AB41: 135 | AC41: 26 | AD41: 95 | AE41: 10 | AG41: 90 | AH41: 7.2 | AI41: 20.1 | AK41: 11.8 | AL41: 3.3 | AM41: 1.3 | AN41: 4.5 | AO41: 0.7 | AQ41: 0.8 | AR41: 2.3 | AS41: 0.34 | AT41: 2.1 | AU41: 0.33 | AV41: 2.95 | AX41: 0.73 | AY41: 0.24 | AZ41: 0.23 | BA41: 1.74 | BB41: 0.63 | BD41: 2.46 | BE41: 0.62 | BF41: 1.41 | BI41: 0.70409 | BK41: 5.8 | BO41: 230 | BR41: 10.48 | BS41: 4.26
A42: samp. 91KB49 | B42: high-Ti | C42: Wrangellia | D42: 50.15 | E42: 1.30 | F42: 14.24 | G42: 11.79 | I42: 10.61 | K42: 0.18 | L42: 7.58 | M42: 12.23 | N42: 2.93 | O42: 0.09 | P42: 0.10 | Q42: 0.62 | R42: 56.0 | V42: 94 | X42: 98 | Y42: 78 | Z42: 16 | AA42: 1 | AB42: 221 | AC42: 21 | AD42: 78 | AE42: 7 | AG42: 53 | AH42: 6.1 | AI42: 16.3 | AK42: 10.2 | AL42: 2.9 | AM42: 1.3 | AN42: 4.2 | AO42: 0.7 | AQ42: 0.8 | AR42: 2.2 | AS42: 0.34 | AT42: 1.9 | AU42: 0.31 | AV42: 2.99 | AX42: 0.42 | AY42: 0.14 | AZ42: 0.19 | BA42: 1.69 | BB42: 0.48 | BD42: 2.30 | BE42: 0.68 | BF42: 1.36 | BI42: 0.70341 | BK42: 5.6 | BL42: 39.336 | BM42: 15.628 | BN42: 19.651 | BO42: 230 | BR42: 8.88 | BS42: 3.85
A43: samp. 92NG3 | B43: high-Ti | C43: Wrangellia | D43: 48.81 | E43: 1.51 | F43: 16.60 | G43: 10.38 | I43: 9.34 | K43: 0.14 | L43: 5.87 | M43: 9.61 | N43: 4.16 | O43: 0.24 | P43: 0.16 | Q43: 3.76 | R43: 52.8 | V43: 71 | X43: 40 | Y43: 88 | Z43: 23 | AA43: 5 | AB43: 274 | AC43: 24 | AD43: 83 | AE43: 7 | AK43: 10.4 | AL43: 3.1 | AZ43: 0.14 | BE43: 0.80 | BO43: 230
A44: samp. 92NG6 | B44: high-Ti | C44: Wrangellia | D44: 48.80 | E44: 2.52 | F44: 12.47 | G44: 14.44 | I44: 13.00 | K44: 0.17 | L44: 6.10 | M44: 9.53 | N44: 2.54 | O44: 0.59 | P44: 0.28 | Q44: 2.06 | R44: 45.5 | V44: 63 | X44: 183 | Y44: 117 | Z44: 24 | AA44: 10 | AB44: 227 | AC44: 32 | AD44: 156 | AE44: 13 | AG44: 208 | AH44: 14.1 | AI44: 34.8 | AK44: 21.9 | AL44: 5.5 | AM44: 2.2 | AN44: 7.5 | AO44: 1.2 | AQ44: 1.5 | AR44: 3.9 | AS44: 0.48 | AT44: 3.5 | AU44: 0.5 | AV44: 4.25 | AX44: 1.64 | AY44: 0.66 | AZ44: 0.03 | BA44: 1.74 | BB44: 1.05 | BD44: 2.89 | BE44: 0.76 | BF44: 1.66 | BO44: 230 | BR44: 20.52 | BS44: 7.10
A45: samp. 92NG13 | B45: high-Ti | C45: Wrangellia | D45: 47.88 | E45: 1.68 | F45: 16.39 | G45: 11.80 | I45: 10.62 | K45: 0.17 | L45: 5.76 | M45: 10.15 | N45: 4.21 | O45: 0.35 | P45: 0.13 | Q45: 3.86 | R45: 49.2 | V45: 70 | X45: 48 | Y45: 73 | Z45: 21 | AA45: 4 | AB45: 213 | AC45: 24 | AD45: 92 | AE45: 8 | AG45: 128 | AH45: 6.4 | AI45: 17.3 | AK45: 11.3 | AL45: 2.9 | AM45: 1.3 | AN45: 4.2 | AO45: 0.7 | AQ45: 0.8 | AR45: 2.4 | AS45: 0.3 | AT45: 2.2 | AU45: 0.33 | AZ45: 0.14 | BA45: 1.46 | BB45: 0.00 | BD45: 2.09 | BE45: 0.74 | BF45: 1.43 | BO45: 230 | BR45: 9.32 | BS45: 4.46
A46: samp. 92NG21 | B46: high-Ti | C46: Wrangellia | D46: 48.75 | E46: 2.29 | F46: 11.42 | G46: 14.05 | I46: 12.65 | K46: 0.17 | L46: 5.30 | M46: 11.93 | N46: 2.44 | O46: 0.02 | P46: 0.26 | Q46: 3.52 | R46: 42.8 | V46: 63 | X46: 226 | Y46: 62 | Z46: 21 | AA46: 2 | AB46: 24 | AC46: 33 | AD46: 145 | AE46: 12 | AG46: 14 | AH46: 11.6 | AI46: 29.5 | AK46: 17.9 | AL46: 4.7 | AM46: 1.9 | AN46: 6.5 | AO46: 1.2 | AQ46: 1.3 | AR46: 3.4 | AS46: 0.55 | AT46: 2.9 | AU46: 0.57 | AV46: 4.09 | AX46: 1.03 | AY46: 0.37 | AZ46: 0.07 | BA46: 1.80 | BB46: 0.71 | BD46: 2.87 | BE46: 0.76 | BF46: 1.60 | BO46: 230 | BR46: 16.89 | BS46: 5.88
A47: samp. 92NG25 | B47: high-Ti | C47: Wrangellia | D47: 48.74 | E47: 1.75 | F47: 14.60 | G47: 11.53 | I47: 10.38 | K47: 0.22 | L47: 7.08 | M47: 8.51 | N47: 4.40 | O47: 0.65 | P47: 0.16 | Q47: 3.44 | R47: 54.9 | V47: 97 | X47: 23 | Y47: 107 | Z47: 18 | AA47: 9 | AB47: 419 | AC47: 26 | AD47: 105 | AE47: 11 | AG47: 456 | AH47: 9 | AI47: 23.3 | AK47: 14.5 | AL47: 3.6 | AM47: 1.5 | AN47: 5 | AO47: 0.8 | AQ47: 1 | AR47: 2.7 | AS47: 0.39 | AT47: 2.7 | AU47: 0.41 | AV47: 3.06 | AX47: 0.87 | AY47: 0.34 | AZ47: 0.19 | BA47: 1.48 | BB47: 0.69 | BD47: 2.39 | BE47: 0.63 | BF47: 1.62 | BO47: 230 | BR47: 13.10 | BS47: 5.48
A48: samp. 92NG37 | B48: high-Ti | C48: Wrangellia | D48: 49.28 | E48: 1.83 | F48: 14.43 | G48: 12.34 | I48: 11.11 | K48: 0.21 | L48: 6.46 | M48: 8.87 | N48: 4.11 | O48: 0.86 | P48: 0.21 | Q48: 2.42 | R48: 50.9 | V48: 71 | X48: 128 | Y48: 130 | Z48: 19 | AA48: 19 | AB48: 324 | AC48: 25 | AD48: 109 | AE48: 9 | AG48: 151 | AH48: 9.7 | AI48: 24.9 | AK48: 14.6 | AL48: 3.7 | AM48: 1.5 | AN48: 5.1 | AO48: 0.9 | AQ48: 1 | AR48: 2.4 | AS48: 0.34 | AT48: 2.3 | AU48: 0.37 | AV48: 4.14 | AX48: 1.38 | AY48: 0.6 | AZ48: 0.05 | BA48: 1.79 | BB48: 1.33 | BD48: 3.03 | BE48: 0.80 | BF48: 1.69 | BO48: 230 | BR48: 14.12 | BS48: 4.67
A49: samp. 92NG41 | B49: high-Ti | C49: Wrangellia | D49: 48.93 | E49: 1.62 | F49: 12.87 | G49: 13.81 | I49: 12.43 | K49: 0.18 | L49: 6.66 | M49: 10.48 | N49: 2.88 | O49: 0.22 | P49: 0.17 | Q49: 2.28 | R49: 48.9 | V49: 61 | X49: 82 | Y49: 89 | Z49: 17 | AA49: 3 | AB49: 169 | AC49: 27 | AD49: 101 | AE49: 8 | AG49: 65 | AH49: 7.2 | AI49: 19.6 | AK49: 12.2 | AL49: 3.2 | AM49: 1.4 | AN49: 4.6 | AO49: 0.8 | AQ49: 1 | AR49: 2.6 | AS49: 0.42 | AT49: 2.5 | AU49: 0.45 | AV49: 2.1 | AX49: 0.65 | AY49: 0.23 | AZ49: 0.13 | BA49: 1.42 | BB49: 0.65 | BD49: 2.07 | BE49: 0.77 | BF49: 1.45 | BO49: 230 | BR49: 10.48 | BS49: 5.07
A50: samp. 92NG46 | B50: high-Ti | C50: Wrangellia | D50: 48.78 | E50: 1.91 | F50: 14.00 | G50: 12.81 | I50: 11.53 | K50: 0.17 | L50: 6.80 | M50: 9.66 | N50: 4.62 | O50: 0.30 | P50: 0.22 | Q50: 2.55 | R50: 51.3 | V50: 86 | X50: 40 | Y50: 86 | Z50: 22 | AA50: 9 | AB50: 325 | AC50: 27 | AD50: 114 | AE50: 11 | AG50: 99 | AH50: 10.1 | AI50: 27.1 | AK50: 16.4 | AL50: 4.2 | AM50: 1.7 | AN50: 5.5 | AO50: 0.9 | AQ50: 1 | AR50: 2.6 | AS50: 0.35 | AT50: 2.5 | AU50: 0.35 | AV50: 3.53 | AX50: 0.91 | AY50: 0.37 | AZ50: 0.16 | BA50: 1.87 | BB50: 0.68 | BD50: 2.90 | BE50: 0.65 | BF50: 1.55 | BO50: 230 | BR50: 14.70 | BS50: 5.07
A51: samp. 92NG48 | B51: high-Ti | C51: Wrangellia | D51: 48.69 | E51: 1.42 | F51: 13.98 | G51: 11.48 | I51: 10.33 | K51: 0.17 | L51: 6.92 | M51: 11.16 | N51: 3.21 | O51: 0.28 | P51: 0.18 | Q51: 2.51 | R51: 54.4 | V51: 91 | X51: 57 | Y51: 86 | Z51: 20 | AA51: 9 | AB51: 283 | AC51: 22 | AD51: 85 | AE51: 8 | AG51: 74 | AH51: 6.7 | AI51: 18.4 | AK51: 11.2 | AL51: 2.9 | AM51: 1.3 | AN51: 4.2 | AO51: 0.7 | AQ51: 0.8 | AR51: 2.3 | AS51: 0.31 | AT51: 2.2 | AU51: 0.33 | AV51: 2.8 | AX51: 0.73 | AY51: 0.29 | AZ51: 0.18 | BA51: 1.46 | BB51: 0.76 | BD51: 2.19 | BE51: 0.67 | BF51: 1.49 | BO51: 230 | BR51: 9.75 | BS51: 4.46
A52: samp. 92SC1 | B52: low-Ti | C52: Wrangellia | D52: 49.15 | E52: 0.67 | F52: 20.57 | G52: 9.18 | I52: 8.26 | K52: 0.12 | L52: 4.03 | M52: 5.86 | N52: 4.85 | O52: 1.91 | P52: 0.10 | Q52: 5.06 | R52: 46.5 | V52: 14 | X52: 19 | Y52: 79 | Z52: 17 | AA52: 58 | AB52: 581 | AC52: 11 | AD52: 31 | AE52: 3.2 | AG52: 391 | AH52: 4.60 | AI52: 14.00 | AK52: 6.20 | AL52: 1.20 | AM52: 0.60 | AN52: 1.80 | AO52: 0.30 | AQ52: 0.30 | AR52: 0.90 | AS52: 0.13 | AT52: 0.90 | AU52: 0.15 | AV52: 1.02 | AX52: 0.65 | AY52: 0.68 | AZ52: 0.34 | BA52: 1.48 | BB52: 1.70 | BD52: 3.67 | BE52: 0.62 | BF52: 2.48 | BO52: 230 | BR52: 6.70 | BS52: 1.83
A53: samp. 08 | B53: high-Ti | C53: Wrangellia | D53: 45.91 | E53: 2.47 | F53: 17.04 | G53: =H53+(1.111*J53) -> 11.52 | H53: 2.48 | I53: =0.8998*G53 -> 10.37 | J53: 8.14 | K53: 0.20 | L53: 9.30 | M53: 9.19 | N53: 1.79 | O53: 2.83 | P53: 0.65 | R53: 61.5 | S53: 31 | U53: 356 | V53: 168 | W53: 43 | X53: 50 | AA53: 51 | AB53: 690 | AC53: 24 | AD53: 215 | AE53: 32 | AG53: 685 | AH53: 31.4 | AI53: 70.8 | AK53: 32.5 | AL53: 7.3 | AM53: 2.2 | AN53: 6.5 | AO53: 0.86 | AT53: 2.3 | AU53: 0.33 | AV53: 4.6 | AW53: 2.5 | AX53: 2.6 | AY53: 0.96 | AZ53: 0.04 | BA53: 3.52 | BB53: 0.68 | BD53: 9.80 | BE53: 0.43 | BF53: 2.78 | BO53: 230 | BR53: 45.71 | BS53: 4.67
A54: samp. 09 | B54: high-Ti | C54: Wrangellia | D54: 48.35 | E54: 2.15 | F54: 14.92 | G54: 10.89 | H54: 3.37 | I54: 9.80 | J54: 6.77 | K54: 0.15 | L54: 11.74 | M54: 7.32 | N54: 2.53 | O54: 2.14 | P54: 0.56 | R54: 68.1 | S54: 31 | U54: 669 | V54: 309 | W54: 49 | X54: 1 | AA54: 38 | AB54: 560 | AC54: 19 | AD54: 190 | AE54: 29 | AG54: 1 | AH54: 25.5 | AI54: 54.5 | AK54: 25.5 | AL54: 6 | AM54: 1.8 | AN54: 5.9 | AO54: 0.76 | AS54: 0.33 | AT54: 2 | AU54: 0.29 | AV54: 3.9 | AW54: 2 | AX54: 2.1 | AY54: 0.79 | AZ54: 0.00 | BA54: 3.33 | BB54: 0.61 | BD54: 9.15 | BE54: 0.42 | BF54: 2.75 | BO54: 230 | BR54: 37.12 | BS54: 4.06
A55: samp. 14 | B55: high-Ti | C55: Wrangellia | D55: 44.52 | E55: 2.52 | F55: 15.61 | G55: 12.04 | H55: 4.34 | I55: 10.83 | J55: 6.93 | K55: 0.18 | L55: 11.21 | M55: 11.00 | N55: 2.00 | O55: 0.91 | P55: 0.79 | R55: 64.8 | S55: 32 | U55: 650 | V55: 375 | W55: 52 | X55: 41 | AA55: 23 | AB55: 551 | AC55: 28 | AD55: 223 | AE55: 47 | AG55: 402 | AH55: 38.5 | AI55: 81.5 | AK55: 36.1 | AL55: 7.6 | AM55: 2.2 | AN55: 6.6 | AO55: 0.88 | AS55: 0.36 | AT55: 2.2 | AU55: 0.33 | AV55: 4.5 | AW55: 2.7 | AX55: 3.2 | AY55: 1.1 | AZ55: 0.23 | BA55: 3.84 | BB55: 0.57 | BD55: 12.56 | BE55: 0.30 | BF55: 3.27 | BO55: 230 | BR55: 56.04 | BS55: 4.46
A56: samp. 11 | B56: high-Ti | C56: Wrangellia | D56: 49.25 | E56: 1.38 | F56: 14.99 | G56: 11.63 | H56: 2.02 | I56: 10.46 | J56: 8.65 | K56: 0.18 | L56: 7.84 | M56: 13.26 | N56: 2.13 | O56: 0.17 | P56: 0.13 | R56: 57.2 | S56: 41 | U56: 428 | V56: 122 | W56: 44 | X56: 134 | AA56: 1 | AB56: 193 | AC56: 19 | AD56: 77 | AE56: 5 | AG56: 102 | AH56: 5.8 | AI56: 16.1 | AK56: 11.1 | AL56: 3.3 | AM56: 1.1 | AN56: 3.8 | AO56: 0.58 | AS56: 0.31 | AT56: 1.9 | AU56: 0.28 | AV56: 2 | AW56: 0.51 | AX56: 0.52 | AY56: 0.2 | AZ56: -0.01 | BA56: 1.93 | BB56: 0.87 | BD56: 2.19 | BE56: 0.98 | BF56: 1.14 | BG56: 1549 | BH56: 1424 | BO56: 230 | BR56: 8.44 | BS56: 3.85
A57: samp. 13 | B57: high-Ti | C57: Wrangellia | D57: 51.00 | E57: 1.62 | F57: 17.92 | G57: 9.73 | H57: 3.19 | I57: 8.76 | J57: 5.89 | K57: 0.13 | L57: 4.27 | M57: 13.01 | N57: 2.56 | O57: 0.24 | P57: 0.17 | R57: 46.5 | S57: 27 | U57: 129 | V57: 54 | W57: 24 | X57: 171 | AA57: 14 | AB57: 332 | AC57: 25 | AD57: 99 | AE57: 15 | AG57: 235 | AH57: 7.6 | AI57: 19.5 | AK57: 12.6 | AL57: 3.6 | AM57: 1.2 | AN57: 4.1 | AO57: 0.6 | AS57: 0.31 | AT57: 2 | AU57: 0.29 | AV57: 2.4 | AW57: 0.63 | AX57: 0.63 | AY57: 0.23 | AZ57: 0.37 | BA57: 2.00 | BB57: 0.35 | BD57: 2.73 | BE57: 0.42 | BF57: 1.36 | BO57: 230 | BR57: 11.06 | BS57: 4.06
A58: samp. 06 | B58: high-Ti | C58: Wrangellia | D58: 44.10 | E58: 2.09 | F58: 15.10 | G58: 11.80 | H58: 0.69 | I58: 10.62 | J58: 10.00 | K58: 0.18 | L58: 4.52 | M58: 8.56 | N58: 3.33 | O58: 0.87 | P58: 0.22 | R58: 43.1 | S58: 32 | U58: 73 | V58: 61 | W58: 32 | X58: 165 | AA58: 21 | AB58: 373 | AC58: 29 | AD58: 123 | AE58: 16 | AG58: 3000 | AH58: 10.3 | AI58: 26.7 | AK58: 17.3 | AL58: 4.9 | AM58: 1.5 | AN58: 5.5 | AO58: 0.81 | AS58: 0.42 | AT58: 2.7 | AU58: 0.4 | AV58: 3.1 | AW58: 0.85 | AX58: 0.85 | AY58: 0.3 | AZ58: 0.28 | BA58: 2.02 | BB58: 0.45 | BD58: 2.74 | BE58: 0.49 | BF58: 1.36 | BO58: 230 | BR58: 14.99 | BS58: 5.48
A59: samp. 692 | B59: high-Ti | C59: Wrangellia | D59: 50.47 | E59: 1.91 | F59: 16.11 | G59: 11.79 | H59: 3.41 | I59: 10.61 | J59: 7.54 | K59: 0.17 | L59: 6.30 | M59: 9.51 | N59: 4.22 | O59: 0.18 | P59: 0.17 | R59: 51.4 | S59: 35 | U59: 285 | V59: 99 | W59: 41 | X59: 67 | AA59: 1 | AB59: 108 | AC59: 26 | AD59: 104 | AE59: 10 | AG59: 27 | AH59: 6.5 | AI59: 18.6 | AK59: 13.1 | AL59: 4 | AM59: 1.4 | AN59: 4.7 | AO59: 0.76 | AS59: 0.4 | AT59: 2.5 | AU59: 0.37 | AV59: 2.7 | AW59: 0.55 | AX59: 0.47 | AY59: 0.15 | AZ59: 0.17 | BA59: 1.78 | BB59: 0.39 | BD59: 1.87 | BE59: 0.66 | BF59: 1.05 | BO59: 230 | BR59: 9.46 | BS59: 5.07
A60: samp. 706 | B60: high-Ti | C60: Wrangellia | D60: 49.35 | E60: 2.07 | F60: 15.34 | G60: 14.52 | H60: 5.84 | I60: 13.06 | J60: 7.81 | K60: 0.16 | L60: 6.91 | M60: 7.90 | N60: 4.22 | O60: 0.22 | P60: 0.19 | R60: 48.5 | S60: 41 | U60: 156 | V60: 64 | W60: 43 | X60: 58 | AA60: 2 | AB60: 77 | AC60: 29 | AD60: 115 | AE60: 13 | AG60: 20 | AH60: 7.3 | AI60: 20.6 | AK60: 14.3 | AL60: 4.4 | AM60: 1.4 | AN60: 5.4 | AO60: 0.84 | AS60: 0.45 | AT60: 2.8 | AU60: 0.42 | AV60: 2.9 | AW60: 0.64 | AX60: 0.52 | AY60: 0.21 | AZ60: 0.24 | BA60: 1.74 | BB60: 0.34 | BD60: 1.87 | BE60: 0.56 | BF60: 1.07 | BO60: 230 | BR60: 10.63 | BS60: 5.68
A61: samp. 1 | B61: high-Ti | C61: Wrangellia | D61: 49.90 | E61: 1.53 | F61: 14.10 | G61: 13.45 | H61: 4.38 | I61: 12.10 | J61: 8.16 | K61: 0.20 | L61: 6.61 | M61: 9.24 | N61: 2.74 | O61: 0.43 | P61: 0.21 | R61: 49.3 | S61: 43 | T61: 353 | U61: 125 | V61: 87 | W61: 44 | X61: 140 | Y61: 101 | AA61: 12 | AB61: 137 | AC61: 25 | AD61: 91 | AE61: 8 | AF61: 0.35 | AG61: 106 | AH61: 6.4 | AI61: 16.1 | AK61: 11.2 | AL61: 3.57 | AM61: 1.26 | AN61: 3.56 | AO61: 0.843 | AS61: 0.465 | AT61: 3.39 | AU61: 0.498 | AV61: 2.53 | AW61: 0.452 | AX61: 0.673 | AY61: 0.388 | AZ61: 0.18 | BA61: 1.17 | BB61: 0.68 | BC61: =(AX61/0.085)/(AF61/1.775) -> 40.15 | BD61: 1.35 | BE61: 0.70 | BF61: 1.16 | BO61: 230 | BR61: 9.32 | BS61: 6.88
A62: samp. 7 | B62: high-Ti | C62: Wrangellia | D62: 47.30 | E62: 1.30 | F62: 14.60 | G62: 11.33 | H62: 4.48 | I62: 10.20 | J62: 6.17 | K62: 0.16 | L62: 8.89 | M62: 10.80 | N62: 2.30 | O62: 0.55 | P62: 0.15 | R62: 60.8 | S62: 39 | T62: 293 | U62: 355 | V62: 111 | W62: 43 | X62: 58 | Y62: 110 | AA62: 16 | AB62: 220 | AC62: 14 | AD62: 78 | AE62: 10 | AF62: 0.48 | AG62: 208 | AH62: 6.2 | AI62: 15.6 | AK62: 10.9 | AL62: 3.24 | AM62: 1.09 | AO62: 0.579 | AT62: 1.97 | AU62: 0.29 | AV62: 1.91 | AW62: 0.393 | AX62: 0.564 | AY62: 0.286 | AZ62: 0.16 | BA62: 1.83 | BB62: 0.47 | BC62: 24.54 | BD62: 2.26 | BE62: 0.50 | BF62: 1.24 | BO62: 230 | BR62: 9.02 | BS62: 4.00
A63: samp. 79AH213 | B63: high-Ti | C63: Wrangellia | D63: 50.70 | E63: 2.70 | F63: 13.70 | G63: 15.13 | H63: 3.80 | I63: 13.62 | J63: 10.20 | K63: 0.26 | L63: 6.10 | M63: 9.20 | N63: 2.70 | O63: 0.71 | P63: 0.28 | R63: 44.4 | S63: 45 | U63: 130 | V63: 100 | AA63: 18 | AB63: 152 | AC63: 38 | AD63: 168 | AE63: 20 | AG63: 113 | AH63: 13 | AI63: 30 | AL63: 5.9 | AM63: 1.7 | AO63: 1.1 | AT63: 3.8 | AU63: 0.55 | AV63: 4.2 | AW63: 1.1 | AX63: 1.1 | AZ63: 0.22 | BA63: 1.72 | BB63: 0.46 | BD63: 2.45 | BE63: 0.53 | BF63: 1.42 | BO63: 230 | BR63: 18.92 | BS63: 7.71
A64: samp. 79AH214 | B64: high-Ti | C64: Wrangellia | D64: 49.70 | E64: 1.90 | F64: 12.70 | G64: 14.10 | H64: 4.10 | I64: 12.69 | J64: 9.00 | K64: 0.18 | L64: 7.30 | M64: 10.00 | N64: 2.80 | O64: 0.50 | P64: 0.19 | R64: 50.6 | S64: 56 | U64: 220 | V64: 150 | AA64: 16 | AB64: 154 | AC64: 29 | AD64: 111 | AE64: 12 | AG64: 122 | AH64: 8 | AI64: 18 | AL64: 3.9 | AM64: 1.2 | AO64: 0.8 | AT64: 2.8 | AU64: 0.52 | AV64: 2.6 | AW64: 0.7 | AX64: 0.6 | AZ64: 0.24 | BA64: 1.55 | BB64: 0.42 | BD64: 2.05 | BE64: 0.59 | BF64: 1.33 | BO64: 230 | BR64: 11.64 | BS64: 5.68
A65: samp. 79AH215 | B65: high-Ti | C65: Wrangellia | D65: 49.50 | E65: 2.10 | F65: 14.10 | G65: 14.67 | H65: 4.00 | I65: 13.20 | J65: 9.60 | K65: 0.20 | L65: 6.30 | M65: 10.30 | N65: 1.90 | O65: 0.94 | P65: 0.20 | R65: 46.0 | S65: 47 | U65: 160 | V65: 120 | AA65: 30 | AB65: 144 | AC65: 33 | AD65: 121 | AE65: 12 | AG65: 104 | AH65: 8 | AI65: 19 | AL65: 4.4 | AM65: 1.3 | AO65: 0.9 | AT65: 3.2 | AU65: 0.56 | AV65: 2.9 | AW65: 0.7 | AX65: 0.6 | AZ65: 0.22 | BA65: 1.53 | BB65: 0.42 | BD65: 1.79 | BE65: 0.64 | BF65: 1.18 | BO65: 230 | BR65: 11.64 | BS65: 6.49
A66: samp. 79AH216 | B66: high-Ti | C66: Wrangellia | D66: 50.00 | E66: 1.60 | F66: 14.60 | G66: 12.15 | H66: 3.60 | I66: 10.94 | J66: 7.70 | K66: 0.19 | L66: 6.70 | M66: 12.10 | N66: 1.80 | O66: 0.50 | P66: 0.15 | R66: =((L66/40.305)/((L66/40.305)+(I66/71.847)))*100 -> 52.2 | S66: 44 | U66: 160 | V66: 96 | AA66: 12 | AB66: 173 | AC66: 25 | AD66: 91 | AE66: 8 | AG66: 59 | AH66: 6 | AI66: 15 | AL66: 3.6 | AM66: 1.1 | AO66: 0.7 | AT66: 2.7 | AU66: 0.44 | AV66: 2.3 | AW66: 0.5 | AX66: 0.4 | AZ66: =1.74+(LOG(AE66/AC66))-1.92*(LOG(AD66/AC66)) -> 0.17 | BA66: 1.48 | BB66: 0.42 | BD66: 1.59 | BE66: 0.72 | BF66: 1.08 | BO66: 230 | BR66: 8.73 | BS66: 5.48
A67: samp. 79AH217 | B67: high-Ti | C67: Wrangellia | D67: 49.70 | E67: 2.10 | F67: 13.70 | G67: 14.05 | H67: 4.50 | I67: 12.65 | J67: 8.60 | K67: 0.21 | L67: 6.30 | M67: 11.20 | N67: 2.00 | O67: 0.66 | P67: 0.20 | R67: 47.0 | S67: 55 | U67: 140 | V67: 130 | AA67: 21 | AB67: 161 | AC67: 31 | AD67: 122 | AE67: 10 | AG67: 107 | AH67: 7 | AI67: 18 | AL67: 4.2 | AM67: 1.4 | AO67: 0.9 | AT67: 3.1 | AU67: 0.5 | AV67: 3 | AW67: 0.6 | AX67: 0.6 | AZ67: 0.11 | BA67: =(AL67/0.444)/(AT67/0.493) -> 1.50 | BB67: =(AX67/0.085)/(AE67/0.713) -> 0.50 | BD67: =(AH67/0.687)/(AT67/0.493) -> 1.62 | BE67: =(AD67/11.2)/(AE67/0.713) -> 0.78 | BF67: =(AH67/0.687)/(AL67/0.444) -> 1.08 | BO67: 230 | BR67: =AH67/0.687 -> 10.19 | BS67: =AT67/0.493 -> 6.29
A68: samp. 79AH218A | B68: high-Ti | C68: Wrangellia | D68: 49.70 | E68: 2.20 | F68: 14.00 | G68: 13.08 | H68: 3.30 | I68: 11.77 | J68: 8.80 | K68: 0.16 | L68: 6.20 | M68: 10.80 | N68: 1.90 | O68: 0.77 | P68: 0.21 | R68: 48.4 | S68: 58 | U68: 220 | V68: 140 | AA68: 21 | AB68: 134 | AC68: 32 | AD68: 127 | AE68: 9 | AG68: 28 | AH68: 8 | AI68: 21 | AL68: 5.2 | AM68: 1.4 | AO68: 1.1 | AT68: 3.3 | AU68: 0.56 | AV68: 3.3 | AW68: 0.6 | AX68: 0.6 | AZ68: 0.04 | BA68: 1.75 | BB68: 0.56 | BD68: 1.74 | BE68: 0.90 | BF68: 0.99 | BO68: 230 | BR68: 11.64 | BS68: 6.69
A69: samp. 79AH218B | B69: high-Ti | C69: Wrangellia | D69: 48.30 | E69: 2.10 | F69: 14.80 | G69: 12.45 | H69: 3.90 | I69: 11.21 | J69: 7.70 | K69: 0.16 | L69: 6.40 | M69: 11.30 | N69: 2.40 | O69: 0.07 | P69: 0.18 | R69: 50.4 | S69: 46 | U69: 180 | V69: 140 | AA69: 5 | AB69: 238 | AC69: 28 | AD69: 115 | AE69: 9 | AG69: 28 | AH69: 7 | AI69: 17 | AL69: 4 | AM69: 1.2 | AO69: 0.8 | AT69: 3 | AU69: 0.53 | AV69: 2.7 | AW69: 0.6 | AX69: 0.5 | AZ69: 0.07 | BA69: 1.48 | BB69: 0.47 | BD69: 1.67 | BE69: 0.81 | BF69: 1.13 | BO69: 230 | BR69: 10.19 | BS69: 6.09
A70: samp. 63AMK147 | B70: high-Ti | C70: Wrangellia | D70: 48.30 | E70: 1.70 | F70: 15.00 | G70: 12.49 | H70: 4.60 | I70: 11.24 | J70: 7.10 | K70: 0.11 | L70: 6.30 | M70: 10.20 | N70: 2.91 | O70: 0.50 | P70: 0.16 | R70: 50.0 | AH70: 8 | AI70: 19 | AL70: 4.1 | AM70: 1.6 | AO70: 0.8 | AT70: 2.5 | AU70: 0.41 | BA70: 1.82 | BD70: 2.30 | BF70: 1.26 | BO70: 230 | BR70: 11.64 | BS70: 5.07
A71: samp. 64AMK203 | B71: high-Ti | C71: Wrangellia | D71: 48.60 | E71: 3.10 | F71: 13.20 | G71: 15.04 | H71: 5.60 | I71: 13.54 | J71: 8.50 | K71: 0.22 | L71: 5.80 | M71: 9.30 | N71: 2.46 | O71: 0.44 | P71: 0.28 | R71: 43.3 | AH71: 10 | AI71: 22 | AL71: 4.6 | AM71: 1.8 | AO71: 0.9 | AT71: 3.9 | AU71: 0.51 | BA71: 1.31 | BD71: 1.84 | BF71: 1.40 | BO71: 230 | BR71: 14.56 | BS71: 7.91
A72: samp. 64AMK211 | B72: high-Ti | C72: Wrangellia | D72: 45.70 | E72: 1.40 | F72: 15.20 | G72: 11.90 | H72: 3.90 | I72: 10.71 | J72: 7.20 | K72: 0.20 | L72: 7.70 | M72: 9.80 | N72: 2.72 | O72: 0.56 | P72: 0.16 | R72: 56.2 | AH72: 6 | AI72: 17 | AL72: 3.6 | AM72: 1.3 | AO72: 0.7 | AT72: 2.2 | AU72: 0.35 | BA72: 1.82 | BD72: 1.96 | BF72: 1.08 | BO72: 230 | BR72: 8.73 | BS72: 4.46
A73: samp. 69AMK93D | B73: high-Ti | C73: Wrangellia | D73: 48.90 | E73: 2.20 | F73: 12.90 | G73: 13.72 | H73: 2.50 | I73: 12.35 | J73: 10.10 | K73: 0.26 | L73: 6.90 | M73: 8.10 | N73: 3.72 | O73: 0.23 | P73: 0.24 | R73: 49.9 | AH73: 9 | AI73: 21 | AL73: 4.4 | AM73: 1.7 | AO73: 1.1 | AT73: 0.5 | AU73: 0.75 | BA73: 9.77 | BD73: 12.92 | BF73: 1.32 | BO73: 230 | BR73: 13.10 | BS73: 1.01
A74: samp. 67ARH246 | B74: low-Ti | C74: Wrangellia | D74: 48.80 | E74: 0.70 | F74: 14.60 | G74: 11.25 | H74: 3.70 | I74: 10.13 | J74: 6.80 | K74: 0.18 | L74: 8.80 | M74: 7.60 | N74: 3.43 | O74: 0.42 | P74: 0.13 | R74: 60.8 | AH74: 3.00 | AI74: 6.00 | AL74: 1.70 | AM74: 0.80 | AO74: 0.50 | AT74: 1.90 | AU74: 0.24 | BA74: 0.99 | BD74: 1.13 | BF74: 1.14 | BO74: 230 | BR74: 4.37 | BS74: 3.85
A75: samp. 67ARH247 | B75: high-Ti | C75: Wrangellia | D75: 49.70 | E75: 1.30 | F75: 15.80 | G75: 12.59 | H75: 4.70 | I75: 11.33 | J75: 7.10 | K75: 0.16 | L75: 6.10 | M75: 5.20 | N75: 3.59 | O75: 0.96 | P75: 0.18 | R75: 49.0 | AH75: 7 | AI75: 17 | AL75: 3.6 | AM75: 1.2 | AO75: 0.8 | AT75: 3 | AU75: 0.47 | BA75: 1.33 | BD75: 1.67 | BF75: 1.26 | BO75: 230 | BR75: 10.19 | BS75: 6.09
A76: samp. 68AMK67 | B76: low-Ti | C76: Wrangellia | D76: 48.30 | E76: 0.68 | F76: 14.80 | G76: 12.51 | H76: 2.40 | I76: 11.26 | J76: 9.10 | K76: 0.21 | L76: 8.10 | M76: 10.00 | N76: 1.26 | O76: 0.12 | P76: 0.13 | R76: 56.2 | AH76: 6.00 | AI76: 13.00 | AL76: 2.00 | AM76: 0.80 | AO76: 0.60 | AT76: 2.20 | AU76: 0.43 | BA76: 1.01 | BD76: 1.96 | BF76: 1.94 | BO76: 230 | BR76: 8.73 | BS76: 4.46
A77: samp. 68AMN165 | B77: high-Ti | C77: Wrangellia | D77: 48.10 | E77: 2.30 | F77: 14.00 | G77: 15.07 | H77: 8.40 | I77: 13.56 | J77: 6.00 | K77: 0.15 | L77: 6.20 | M77: 8.10 | N77: 3.67 | O77: 0.16 | P77: 0.28 | R77: 44.9 | AH77: 13 | AI77: 30 | AL77: 5.7 | AM77: 2.1 | AO77: 1.1 | AT77: 3.9 | AU77: 0.54 | BA77: 1.62 | BD77: 2.39 | BF77: 1.47 | BO77: 230 | BR77: 18.92 | BS77: 7.91
A78: samp. 68GK320 | B78: low-Ti | C78: Wrangellia | D78: 49.00 | E78: 0.72 | F78: 16.60 | G78: 10.81 | H78: 3.70 | I78: 9.73 | J78: 6.40 | K78: 0.17 | L78: 7.00 | M78: 9.30 | N78: 2.96 | O78: 0.51 | P78: 0.14 | R78: 56.2 | AH78: 4.00 | AI78: 8.00 | AL78: 1.80 | AM78: 0.60 | AO78: 0.40 | AT78: 1.80 | AU78: 0.31 | BA78: 1.11 | BD78: 1.59 | BF78: 1.44 | BO78: 230 | BR78: 5.82 | BS78: 3.65
A79: samp. 79BS66 | B79: high-Ti | C79: Wrangellia | D79: 47.40 | E79: 1.45 | F79: 15.70 | G79: 12.33 | H79: 3.72 | I79: 11.09 | J79: 7.75 | K79: 0.15 | L79: 7.01 | M79: 9.62 | N79: 2.93 | O79: 1.10 | P79: 0.12 | R79: 53.0 | S79: 49 | U79: 260 | V79: 140 | AA79: 29 | AB79: 684 | AC79: 21 | AD79: 97 | AE79: 6 | AG79: 236 | AH79: 6 | AI79: 14 | AL79: 2.8 | AM79: 1 | AO79: 0.7 | AT79: 2.2 | AU79: 0.32 | AV79: 2.1 | AW79: 0.4 | AX79: 0.6 | AZ79: -0.08 | BA79: 1.41 | BB79: 0.84 | BD79: 1.96 | BE79: 1.03 | BF79: 1.38 | BO79: 230 | BR79: 8.73 | BS79: 4.46
A80: samp. 79BS65E | B80: high-Ti | C80: Wrangellia | D80: 46.70 | E80: 2.09 | F80: 14.00 | G80: 14.00 | H80: 6.32 | I80: 12.59 | J80: 6.91 | K80: 0.10 | L80: 8.58 | M80: 6.98 | N80: 2.48 | O80: 0.65 | P80: 0.18 | R80: 54.8 | S80: 50 | U80: 180 | V80: 110 | AA80: 13 | AB80: 173 | AC80: 34 | AD80: 128 | AE80: 14 | AG80: 78 | AH80: 9 | AI80: 21 | AL80: 4.4 | AM80: 1.4 | AO80: 0.9 | AT80: 2.9 | AU80: 0.44 | AV80: 3 | AW80: 0.6 | AX80: 0.9 | AZ80: 0.25 | BA80: 1.68 | BB80: 0.54 | BD80: 2.23 | BE80: 0.58 | BF80: 1.32 | BO80: 230 | BR80: 13.10 | BS80: 5.88
A81: samp. 79BS65B | B81: high-Ti | C81: Wrangellia | D81: 47.90 | E81: 1.91 | F81: 14.40 | G81: 12.69 | H81: 3.87 | I81: 11.42 | J81: 7.94 | K81: 0.21 | L81: 7.50 | M81: 9.88 | N81: 2.30 | O81: 0.37 | P81: 0.16 | R81: 53.9 | S81: 55 | U81: 120 | V81: 100 | AA81: 5 | AB81: 27 | AC81: 27 | AD81: 116 | AE81: 9 | AG81: 74 | AH81: 8 | AI81: 18 | AL81: 4 | AM81: 1.3 | AO81: 0.8 | AT81: 2.8 | AU81: 0.43 | AV81: 2.9 | AW81: 0.6 | AX81: 0.7 | AZ81: 0.05 | BA81: 1.59 | BB81: 0.65 | BD81: 2.05 | BE81: 0.82 | BF81: 1.29 | BO81: 230 | BR81: 11.64 | BS81: 5.68
A82: samp. 79BS79A | B82: high-Ti | C82: Wrangellia | D82: 46.00 | E82: 1.41 | F82: 14.40 | G82: 11.50 | H82: 4.08 | I82: 10.35 | J82: 6.68 | K82: 0.16 | L82: 6.17 | M82: 12.40 | N82: 3.08 | O82: 0.06 | P82: 0.12 | R82: 51.5 | S82: 55 | U82: 220 | V82: 140 | AA82: 5 | AB82: 183 | AC82: 22 | AD82: 90 | AE82: 8 | AG82: 45 | AH82: 9 | AI82: 16 | AL82: 2.9 | AM82: 1 | AO82: 0.7 | AT82: 2 | AU82: 0.32 | AV82: 2.1 | AW82: 0.6 | AX82: 0.6 | AZ82: 0.13 | BA82: 1.61 | BB82: 0.63 | BD82: 3.23 | BE82: 0.72 | BF82: 2.01 | BO82: 230 | BR82: 13.10 | BS82: 4.06
A83: samp. 79BS81A | B83: high-Ti | C83: Wrangellia | D83: 47.60 | E83: 1.37 | F83: 15.90 | G83: 10.60 | H83: 1.43 | I83: 9.53 | J83: 8.25 | K83: 0.15 | L83: 7.08 | M83: 9.25 | N83: 3.16 | O83: 1.03 | P83: 0.12 | R83: 57.0 | S83: 38 | U83: 190 | V83: 100 | AA83: 31 | AB83: 843 | AC83: 22 | AD83: 103 | AE83: 7 | AG83: 192 | AH83: 6 | AI83: 14 | AL83: 2.8 | AM83: 1 | AO83: 0.6 | AT83: 2 | AU83: 0.3 | AV83: 2.1 | AW83: 0.4 | AX83: 0.2 | AZ83: -0.04 | BA83: 1.55 | BB83: 0.24 | BD83: 2.15 | BE83: 0.94 | BF83: 1.38 | BO83: 230 | BR83: 8.73 | BS83: 4.06
A84: samp. NUGGET | B84: high-Ti | C84: Wrangellia | D84: 46.42 | E84: 2.17 | F84: 13.65 | G84: 13.05 | H84: 4.03 | I84: 11.74 | J84: 8.12 | K84: 0.22 | L84: 5.78 | M84: 9.30 | N84: 4.12 | O84: 0.06 | P84: 0.21 | R84: 46.7 | S84: 53 | U84: 160 | V84: 120 | AA84: 5 | AB84: 112 | AC84: 33 | AD84: 134 | AE84: 15 | AG84: 15 | AH84: 10 | AI84: 25 | AL84: 4.5 | AM84: 1.6 | AO84: 1 | AT84: 3 | AU84: 0.51 | AV84: 3.2 | AW84: 0.6 | AX84: 1 | AZ84: 0.23 | BA84: 1.67 | BB84: 0.56 | BD84: 2.39 | BE84: 0.57 | BF84: 1.44 | BO84: 230 | BR84: 14.56 | BS84: 6.09
A85: samp. SWAN | B85: high-Ti | C85: Wrangellia | D85: 46.79 | E85: 1.77 | F85: 15.10 | G85: 12.31 | H85: 5.91 | I85: 11.08 | J85: 5.76 | K85: 0.15 | L85: 7.26 | M85: 11.69 | N85: 2.77 | O85: 0.52 | P85: 0.05 | R85: 53.9 | S85: 52 | U85: 210 | V85: 160 | AA85: 8 | AB85: 263 | AC85: 25 | AD85: 99 | AE85: 10 | AG85: 81 | AH85: 6 | AI85: 14 | AL85: 3.2 | AM85: 1.2 | AO85: 0.7 | AT85: 2.4 | AU85: 0.39 | AV85: 2.4 | AW85: 0.5 | AX85: 0.4 | AZ85: 0.19 | BA85: 1.48 | BB85: 0.34 | BD85: 1.79 | BE85: 0.63 | BF85: 1.21 | BO85: 230 | BR85: 8.73 | BS85: 4.87
A86: samp. 5707A3 | B86: high-Ti | C86: Wrangellia | D86: 49.74 | E86: 1.96 | F86: 13.37 | G86: 14.05 | I86: 12.64 | K86: 0.27 | L86: 6.69 | M86: 10.61 | N86: 2.64 | O86: 0.29 | P86: 0.16 | Q86: 1.68 | R86: 48.5 | T86: 362 | U86: 165 | V86: 75 | Y86: 121 | Z86: 19 | AA86: 3 | AB86: 237 | AC86: 28 | AD86: 113 | AE86: 10 | AG86: 79 | AH86: 6 | AI86: 21 | AZ86: 0.14 | BE86: 0.71 | BO86: 230 | BR86: 8.73
A87: samp. 5708A2 | B87: high-Ti | C87: Wrangellia | D87: 48.40 | E87: 2.36 | F87: 13.49 | G87: 16.14 | I87: 14.52 | K87: 0.27 | L87: 5.89 | M87: 10.09 | N87: 2.47 | O87: 0.61 | P87: 0.23 | Q87: 1.41 | R87: 42.0 | S87: 44 | T87: 411 | U87: 62 | V87: 57 | W87: 47 | X87: 19 | Y87: 176 | Z87: 20 | AA87: 10 | AB87: 162 | AC87: 36 | AD87: 148 | AE87: 13 | AF87: 0.08 | AG87: 108 | AH87: 7 | AI87: 27 | AJ87: 3.66 | AK87: 18.83 | AL87: 5.22 | AM87: 1.73 | AN87: 5.57 | AO87: 1.02 | AP87: 6.84 | AQ87: 1.35 | AR87: 4.02 | AS87: 0.51 | AT87: 3.58 | AU87: 0.53 | AV87: 4.1 | AW87: 0.74 | AX87: 0.98 | AY87: 0.31 | AZ87: 0.10 | BA87: 1.62 | BB87: 0.66 | BC87: =(AX87/0.085)/(AF87/1.775) -> 255.81 | BD87: 1.40 | BE87: 0.75 | BF87: 0.87 | BO87: 230 | BP87: =(BQ87)/((BR87^(4/13))*(BS87^(9/13))) -> 1.2 | BQ87: =AP87/0.737 -> 9.28 | BR87: 10.19 | BS87: 7.26
A88: samp. 5710A2 | B88: high-Ti | C88: Wrangellia | D88: 48.81 | E88: 2.40 | F88: 15.21 | G88: 12.94 | I88: 11.64 | K88: 0.23 | L88: 6.85 | M88: 9.16 | N88: 3.15 | O88: 0.58 | P88: 0.21 | Q88: 2.37 | R88: 51.2 | T88: 349 | U88: 167 | V88: 89 | Y88: 126 | Z88: 21 | AA88: 6 | AB88: 263 | AC88: 32 | AD88: 145 | AE88: 12 | AG88: 147 | AH88: 8 | AI88: 24 | AZ88: 0.06 | BE88: 0.76 | BO88: 230 | BR88: 11.64
A89: samp. 5710A3 | B89: high-Ti | C89: Wrangellia | D89: 50.02 | E89: 1.95 | F89: 14.45 | G89: 13.39 | I89: 12.05 | K89: 0.18 | L89: 6.56 | M89: 8.56 | N89: 3.56 | O89: 1.03 | P89: 0.18 | Q89: 2.47 | R89: 49.3 | T89: 337 | U89: 119 | V89: 69 | Y89: 108 | Z89: 19 | AA89: 15 | AB89: 481 | AC89: 28 | AD89: 115 | AE89: 10 | AG89: 246 | AH89: 7 | AI89: 22 | AZ89: 0.10 | BE89: 0.75 | BO89: 230 | BR89: 10.19
A90: samp. 5712A2 | B90: high-Ti | C90: Wrangellia | D90: 49.90 | E90: 1.89 | F90: 13.76 | G90: 13.76 | I90: 12.38 | K90: 0.24 | L90: 6.74 | M90: 11.35 | N90: 1.87 | O90: 0.22 | P90: 0.16 | Q90: 1.28 | R90: 49.2 | S90: 43 | T90: 346 | U90: 133 | V90: 73 | W90: 45 | X90: 1067 | Y90: 113 | Z90: 19 | AA90: 2 | AB90: 184 | AC90: 26 | AD90: 110 | AE90: 10 | AF90: 0.14 | AG90: 70 | AH90: 6 | AI90: 21 | AJ90: 2.9 | AK90: 14.73 | AL90: 4.19 | AM90: 1.43 | AN90: 4.17 | AO90: 0.77 | AP90: 5.04 | AQ90: 0.99 | AR90: 2.85 | AS90: 0.33 | AT90: 2.37 | AU90: 0.36 | AV90: 3.15 | AW90: 0.67 | AX90: 0.72 | AY90: 0.2 | AZ90: 0.11 | BA90: 1.96 | BB90: 0.61 | BC90: 107.39 | BD90: 1.82 | BE90: 0.71 | BF90: 0.93 | BO90: 230 | BP90: 1.2 | BQ90: 6.84 | BR90: 8.73 | BS90: 4.81
A91: samp. 5714A1 | B91: high-Ti | C91: Wrangellia | D91: 49.31 | E91: 1.66 | F91: 15.58 | G91: 13.21 | I91: 11.89 | K91: 0.17 | L91: 6.60 | M91: 10.80 | N91: 2.08 | O91: 0.42 | P91: 0.15 | Q91: 2.39 | R91: 49.7 | T91: 329 | U91: 156 | V91: 82 | Y91: 109 | Z91: 19 | AA91: 5 | AB91: 334 | AC91: 26 | AD91: 99 | AE91: 8 | AG91: 63 | AH91: 6 | AI91: 16 | AZ91: 0.10 | BE91: 0.82 | BO91: 230 | BR91: 8.73
A92: samp. 5714A3 | B92: high-Ti | C92: Wrangellia | D92: 50.21 | E92: 1.60 | F92: 16.01 | G92: 10.99 | I92: 9.89 | K92: 0.16 | L92: 6.64 | M92: 9.97 | N92: 3.77 | O92: 0.28 | P92: 0.14 | Q92: 3.12 | R92: 54.5 | T92: 276 | U92: 282 | V92: 81 | Y92: 88 | Z92: 17 | AA92: 3 | AB92: 394 | AC92: 23 | AD92: 93 | AE92: 7 | AG92: 56 | AH92: 4 | AI92: 13 | AZ92: 0.07 | BE92: 0.81 | BO92: 230 | BR92: 5.82
A93: samp. 5715A1 (1) | B93: high-Ti | C93: Wrangellia | D93: 49.61 | E93: 1.69 | F93: 15.56 | G93: 13.00 | I93: 11.70 | K93: 0.20 | L93: 6.63 | M93: 11.09 | N93: 1.84 | O93: 0.20 | P93: 0.15 | Q93: 0.84 | R93: 50.3 | S93: 41 | T93: 354 | U93: 165 | V93: 85 | W93: 44 | X93: 126 | Y93: 110 | Z93: 20 | AA93: 1 | AB93: 184 | AC93: 26 | AD93: 98 | AE93: 8 | AF93: 0.28 | AG93: 55 | AH93: 6 | AI93: 17 | AJ93: 2.35 | AK93: 12.2 | AL93: 3.51 | AM93: 1.25 | AN93: 3.8 | AO93: 0.72 | AP93: 4.77 | AQ93: 0.98 | AR93: 2.86 | AS93: 0.36 | AT93: 2.59 | AU93: 0.4 | AV93: 2.78 | AW93: 0.48 | AX93: 0.64 | AY93: 0.19 | AZ93: 0.11 | BA93: 1.50 | BB93: 0.70 | BC93: 47.73 | BD93: 1.66 | BE93: 0.81 | BF93: 1.10 | BO93: 230 | BP93: 1.1 | BQ93: 6.47 | BR93: 8.73 | BS93: 5.25
A94: samp. 5715A1 (2) | B94: high-Ti | C94: Wrangellia | D94: 49.41 | E94: 1.68 | F94: 15.75 | G94: 12.97 | I94: 11.67 | K94: 0.20 | L94: 6.62 | M94: 11.04 | N94: 1.82 | O94: 0.20 | P94: 0.14 | Q94: 1.84 | R94: 50.3 | S94: 41 | T94: 352 | U94: 167 | V94: 85 | W94: 44 | X94: 126 | Y94: 111 | Z94: 19 | AA94: 1 | AB94: 184 | AC94: 26 | AD94: 98 | AE94: 8 | AF94: 0.28 | AG94: 56 | AH94: 6 | AI94: 16 | AJ94: 2.35 | AK94: 12.2 | AL94: 3.51 | AM94: 1.25 | AN94: 3.8 | AO94: 0.72 | AP94: 4.77 | AQ94: 0.98 | AR94: 2.86 | AS94: 0.36 | AT94: 2.59 | AU94: 0.4 | AV94: 2.78 | AW94: 0.48 | AX94: 0.64 | AY94: 0.19 | AZ94: 0.11 | BA94: 1.50 | BB94: 0.70 | BC94: 47.73 | BD94: 1.66 | BE94: 0.81 | BF94: 1.10 | BO94: 230 | BP94: 1.1 | BQ94: 6.47 | BR94: 8.73 | BS94: 5.25
A95: samp. 5715A5 | B95: high-Ti | C95: Wrangellia | D95: 50.25 | E95: 1.14 | F95: 16.69 | G95: 10.39 | I95: 9.35 | K95: 0.18 | L95: 7.94 | M95: 9.48 | N95: 3.36 | O95: 0.67 | P95: 0.09 | Q95: 3.57 | R95: 60.2 | S95: 39 | T95: 249 | U95: 460 | V95: 116 | W95: 39 | X95: 64 | Y95: 68 | Z95: 15 | AA95: 9 | AB95: 437 | AC95: 18 | AD95: 60 | AE95: 4 | AF95: 0.83 | AG95: 129 | AH95: 2 | AI95: 8 | AJ95: 1.49 | AK95: 7.68 | AL95: 2.32 | AM95: 0.9 | AN95: 2.55 | AO95: 0.5 | AP95: 3.34 | AQ95: 0.69 | AR95: 1.98 | AS95: 0.25 | AT95: 1.77 | AU95: 0.28 | AV95: 1.79 | AW95: 0.3 | AX95: 0.34 | AY95: 0.09 | AZ95: 0.13 | BA95: 1.46 | BB95: 0.65 | BC95: 8.55 | BD95: 0.81 | BE95: 0.87 | BF95: 0.56 | BO95: 230 | BP95: 1.3 | BQ95: 4.53 | BR95: 2.91 | BS95: 3.59
A96: samp. 5716A1 | B96: high-Ti | C96: Wrangellia | D96: 50.89 | E96: 1.66 | F96: 15.82 | G96: 12.03 | I96: 10.82 | K96: 0.18 | L96: 6.13 | M96: 7.94 | N96: 4.26 | O96: 0.58 | P96: 0.15 | Q96: 2.96 | R96: 50.2 | T96: 289 | U96: 157 | V96: 66 | Y96: 94 | Z96: 15 | AA96: 6 | AB96: 321 | AC96: 26 | AD96: 98 | AE96: 8 | AG96: 115 | AH96: 4 | AI96: 16 | AZ96: 0.11 | BE96: 0.82 | BO96: 230 | BR96: 5.82
A97: samp. 5716A2 | B97: high-Ti | C97: Wrangellia | D97: 50.52 | E97: 2.12 | F97: 13.56 | G97: 14.22 | I97: 12.80 | K97: 0.19 | L97: 7.83 | M97: 7.01 | N97: 4.52 | O97: 0.08 | P97: 0.18 | Q97: 3.57 | R97: 52.2 | T97: 393 | U97: 133 | V97: 61 | Y97: 97 | Z97: 17 | AA97: 1 | AB97: 56 | AC97: 31 | AD97: 120 | AE97: 10 | AG97: 14 | AH97: 4 | AI97: 18 | AZ97: 0.10 | BE97: 0.79 | BO97: 230 | BR97: 5.82
A98: samp. 5716A3 | B98: high-Ti | C98: Wrangellia | D98: 50.76 | E98: 1.96 | F98: 15.57 | G98: 13.37 | I98: 12.03 | K98: 0.18 | L98: 4.80 | M98: 8.10 | N98: 4.71 | O98: 0.23 | P98: 0.19 | Q98: 3.54 | R98: 41.6 | T98: 319 | U98: 70 | V98: 47 | Y98: 82 | Z98: 21 | AA98: 2 | AB98: 97 | AC98: 29 | AD98: 118 | AE98: 10 | AG98: 47 | AH98: 7 | AI98: 18 | AZ98: 0.11 | BE98: 0.74 | BO98: 230 | BR98: 10.19
A99: samp. 5719A1 | B99: low-Ti | C99: Wrangellia | D99: 55.72 | E99: 0.67 | F99: 18.59 | G99: 7.84 | I99: 7.05 | K99: 0.16 | L99: 3.37 | M99: 6.07 | N99: 5.14 | O99: 2.18 | P99: 0.38 | Q99: 5.14 | R99: 46.0 | S99: 11 | T99: 170 | U99: 0 | V99: 1 | W99: 16 | X99: 25 | Y99: 83 | Z99: 17 | AA99: 25 | AB99: 158 | AC99: 20 | AD99: 81 | AE99: 6.3 | AF99: 0.06 | AG99: 1277 | AH99: 17.00 | AI99: 34.00 | AJ99: 4.56 | AK99: 20.65 | AL99: 4.26 | AM99: 1.31 | AN99: 3.96 | AO99: 0.52 | AP99: 3.40 | AQ99: 0.66 | AR99: 2.12 | AS99: 0.26 | AT99: 1.94 | AU99: 0.31 | AV99: 2.30 | AW99: 0.36 | AX99: 4.18 | AY99: 1.91 | AZ99: 0.06 | BA99: 2.44 | BB99: 5.57 | BC99: 1454.80 | BD99: 6.29 | BE99: 0.82 | BF99: 2.58 | BO99: 230 | BP99: 0.7 | BQ99: 4.61 | BR99: 24.75 | BS99: 3.94
A100: samp. 5719A5(1) | B100: high-Ti | C100: Wrangellia | D100: 49.54 | E100: 1.92 | F100: 14.57 | G100: 12.84 | I100: 11.55 | K100: 0.21 | L100: 6.52 | M100: 11.47 | N100: 2.01 | O100: 0.29 | P100: 0.17 | Q100: 1.05 | R100: 50.1 | S100: 41 | T100: 366 | U100: 162 | V100: 77 | W100: 42 | X100: 167 | Y100: 104 | Z100: 19 | AA100: 6 | AB100: 200 | AC100: 26 | AD100: 113 | AE100: 10 | AF100: 0.09 | AG100: 94 | AH100: 7 | AI100: 23 | AJ100: 3.05 | AK100: 16.26 | AL100: 4.45 | AM100: 1.48 | AN100: 4.58 | AO100: 0.79 | AP100: 5.31 | AQ100: 0.97 | AR100: 2.94 | AS100: 0.35 | AT100: 2.46 | AU100: 0.36 | AV100: 3.23 | AW100: 0.63 | AX100: 0.87 | AY100: 0.25 | AZ100: 0.11 | BA100: 2.01 | BB100: 0.72 | BC100: 201.86 | BD100: 2.04 | BE100: 0.71 | BF100: 1.02 | BO100: 230 | BP100: 1.2 | BQ100: 7.20 | BR100: 10.19 | BS100: 4.99
A101: samp. 5719A5(2) | B101: high-Ti | C101: Wrangellia | D101: 49.62 | E101: 1.93 | F101: 14.55 | G101: 12.86 | I101: 11.57 | K101: 0.21 | L101: 6.55 | M101: 11.50 | N101: 2.02 | O101: 0.30 | P101: 0.17 | Q101: 1.09 | R101: 50.2 | S101: 41 | T101: 367 | U101: 160 | V101: 76 | W101: 42 | X101: 167 | Y101: 104 | Z101: 19 | AA101: 6 | AB101: 200 | AC101: 26 | AD101: 113 | AE101: 10 | AF101: 0.09 | AG101: 91 | AH101: 8 | AI101: 23 | AJ101: 3.05 | AK101: 16.26 | AL101: 4.45 | AM101: 1.48 | AN101: 4.58 | AO101: 0.79 | AP101: 5.31 | AQ101: 0.97 | AR101: 2.94 | AS101: 0.35 | AT101: 2.46 | AU101: 0.36 | AV101: 3.23 | AW101: 0.63 | AX101: 0.87 | AY101: 0.25 | AZ101: 0.10 | BA101: 2.01 | BB101: 0.73 | BC101: 201.86 | BD101: 2.33 | BE101: 0.72 | BF101: 1.16 | BO101: 230 | BP101: 1.1 | BQ101: 7.20 | BR101: 11.64 | BS101: 4.99
A102: samp. 5719A6 | B102: high-Ti | C102: Wrangellia | D102: 49.76 | E102: 1.92 | F102: 14.45 | G102: 12.79 | I102: 11.51 | K102: 0.21 | L102: 6.65 | M102: 11.45 | N102: 2.12 | O102: 0.24 | P102: 0.17 | Q102: 2.66 | R102: 50.7 | T102: 340 | U102: 164 | V102: 78 | Y102: 104 | Z102: 19 | AA102: 4 | AB102: 275 | AC102: 26 | AD102: 112 | AE102: 10 | AG102: 85 | AH102: 8 | AI102: 21 | AZ102: 0.10 | BE102: 0.72 | BO102: 230 | BR102: 11.64
A103: samp. 5725A2 | B103: high-Ti | C103: Wrangellia | D103: 50.53 | E103: 2.19 | F103: 14.98 | G103: 11.73 | I103: 10.55 | K103: 0.20 | L103: 5.99 | M103: 11.74 | N103: 1.99 | O103: 0.46 | P103: 0.21 | Q103: 1.26 | R103: 50.3 | T103: 358 | U103: 140 | V103: 68 | Y103: 96 | Z103: 20 | AA103: 16 | AB103: 213 | AC103: 30 | AD103: 140 | AE103: 12 | AG103: 245 | AH103: 8 | AI103: 23 | AZ103: 0.06 | BE103: 0.74 | BO103: 230 | BR103: 11.64
A104: samp. 5725A4 | B104: high-Ti | C104: Wrangellia | D104: 50.43 | E104: 1.82 | F104: 14.31 | G104: 12.36 | I104: 11.12 | K104: 0.20 | L104: 6.66 | M104: 12.13 | N104: 1.78 | O104: 0.42 | P104: 0.16 | Q104: 1.03 | R104: 51.6 | S104: 38 | T104: 325 | U104: 127 | V104: 80 | W104: 42 | X104: 160 | Y104: 101 | Z104: 20 | AA104: 17 | AB104: 207 | AC104: 24 | AD104: 107 | AE104: 9 | AF104: 0.53 | AG104: 83 | AH104: 5 | AI104: 19 | AJ104: 3 | AK104: 15.16 | AL104: 4.3 | AM104: 1.43 | AN104: 4.32 | AO104: 0.77 | AP104: 4.89 | AQ104: 0.94 | AR104: 2.69 | AS104: 0.32 | AT104: 2.17 | AU104: 0.3 | AV104: 3.08 | AW104: 0.57 | AX104: 0.83 | AY104: 0.25 | AZ104: 0.08 | BA104: 2.20 | BB104: 0.76 | BC104: 32.70 | BD104: 1.65 | BE104: 0.74 | BF104: 0.75 | BO104: 230 | BP104: 1.3 | BQ104: 6.64 | BR104: 7.28 | BS104: 4.40
A105: samp. 5726A1 | B105: high-Ti | C105: Wrangellia | D105: 49.01 | E105: 1.88 | F105: 13.96 | G105: 13.13 | I105: 11.81 | K105: 0.23 | L105: 7.07 | M105: 11.74 | N105: 2.26 | O105: 0.25 | P105: 0.16 | Q105: 1.88 | R105: 51.6 | S105: 41 | T105: 359 | U105: 217 | V105: 90 | W105: 42 | X105: 138 | Y105: 110 | Z105: 17 | AA105: 2 | AB105: 239 | AC105: 24 | AD105: 110 | AE105: 9 | AF105: 0.07 | AG105: 191 | AH105: 5 | AI105: 18 | AJ105: 2.74 | AK105: 14.35 | AL105: 4.07 | AM105: 1.08 | AN105: 4.15 | AO105: 0.74 | AP105: 4.92 | AQ105: 0.91 | AR105: 2.59 | AS105: 0.3 | AT105: 2.03 | AU105: 0.27 | AV105: 2.66 | AW105: 0.52 | AX105: 0.86 | AY105: 0.23 | AZ105: 0.07 | BA105: 2.23 | BB105: 0.77 | BC105: 256.55 | BD105: 1.77 | BE105: 0.74 | BF105: 0.79 | BO105: 230 | BP105: 1.4 | BQ105: 6.68 | BR105: 7.28 | BS105: 4.12
A106: samp. 5726A2 | B106: high-Ti | C106: Wrangellia | D106: 51.41 | E106: 1.63 | F106: 13.83 | G106: 12.16 | I106: 10.94 | K106: 0.19 | L106: 6.96 | M106: 11.25 | N106: 2.20 | O106: 0.11 | P106: 0.14 | Q106: 1.60 | R106: 53.1 | T106: 324 | U106: 118 | V106: 79 | Y106: 102 | Z106: 18 | AA106: 1 | AB106: 195 | AC106: 22 | AD106: 94 | AE106: 8 | AG106: 45 | AH106: 6 | AI106: 17 | AZ106: 0.09 | BE106: 0.75 | BO106: 230 | BR106: 8.73
A107: samp. 5726A3 | B107: high-Ti | C107: Wrangellia | D107: 49.90 | E107: 1.81 | F107: 14.73 | G107: 12.34 | I107: 11.10 | K107: 0.21 | L107: 6.72 | M107: 11.96 | N107: 1.95 | O107: 0.09 | P107: 0.16 | Q107: 1.35 | R107: 51.9 | T107: 332 | U107: 148 | V107: 84 | Y107: 100 | Z107: 20 | AA107: 0 | AB107: 178 | AC107: 25 | AD107: 106 | AE107: 9 | AG107: 47 | AH107: 7 | AI107: 18 | AZ107: 0.09 | BE107: 0.73 | BO107: 230 | BR107: 10.19
A108: samp. 5726A6 | B108: high-Ti | C108: Wrangellia | D108: 50.11 | E108: 1.85 | F108: 14.74 | G108: 11.71 | I108: 10.54 | K108: 0.19 | L108: 6.75 | M108: 12.70 | N108: 1.94 | O108: 0.13 | P108: 0.16 | Q108: 1.29 | R108: 53.3 | T108: 333 | U108: 136 | V108: 85 | Y108: 84 | Z108: 19 | AA108: 3 | AB108: 198 | AC108: 25 | AD108: 109 | AE108: 9 | AG108: 48 | AH108: 6 | AI108: 19 | AZ108: 0.08 | BE108: 0.74 | BO108: 230 | BR108: 8.73
A109: samp. 5727A2 | B109: low-Ti | C109: Wrangellia | D109: 50.70 | E109: 0.54 | F109: 14.49 | G109: 11.21 | I109: 10.09 | K109: 0.19 | L109: 9.41 | M109: 12.30 | N109: 1.09 | O109: 0.06 | P109: 0.04 | Q109: 2.18 | R109: 62.4 | S109: 45 | T109: 242 | U109: 555 | V109: 178 | W109: 51 | X109: 96 | Y109: 81 | Z109: 14 | AA109: 2 | AB109: 76 | AC109: 15 | AD109: 23 | AE109: 0.9 | AF109: 0.36 | AG109: 98 | AH109: 0.00 | AI109: 2.00 | AJ109: 0.49 | AK109: 2.92 | AL109: 1.22 | AM109: 0.56 | AN109: 1.47 | AO109: 0.36 | AP109: 2.62 | AQ109: 0.56 | AR109: 1.67 | AS109: 0.22 | AT109: 1.61 | AU109: 0.27 | AV109: 0.80 | AW109: 0.04 | AX109: 0.17 | AY109: 0.07 | AZ109: 0.16 | BA109: 0.84 | BB109: 1.58 | BC109: 9.86 | BE109: 1.63 | BG109: 1530 | BH109: 1400 | BO109: 230 | BQ109: 3.55 | BS109: 3.27
A110: samp. 5727A3 | B110: low-Ti | C110: Wrangellia | D110: 50.97 | E110: 0.58 | F110: 15.85 | G110: 10.79 | I110: 9.71 | K110: 0.19 | L110: 7.75 | M110: 11.96 | N110: 1.76 | O110: 0.10 | P110: 0.05 | Q110: 2.30 | R110: 58.7 | S110: 43 | T110: 254 | U110: 269 | V110: 106 | W110: 44 | X110: 116 | Y110: 77 | Z110: 14 | AA110: 2 | AB110: 117 | AC110: 16 | AD110: 24 | AE110: 0.9 | AF110: 0.28 | AG110: 76 | AH110: 1.00 | AI110: 2.00 | AJ110: 0.51 | AK110: 2.92 | AL110: 1.23 | AM110: 0.49 | AN110: 1.47 | AO110: 0.34 | AP110: 2.60 | AQ110: 0.60 | AR110: 1.70 | AS110: 0.22 | AT110: 1.61 | AU110: 0.26 | AV110: 0.87 | AW110: 0.05 | AX110: 0.17 | AY110: 0.07 | AZ110: 0.14 | BA110: 0.85 | BB110: 1.58 | BC110: 12.68 | BD110: 0.45 | BE110: 1.70 | BF110: 0.53 | BO110: 230 | BP110: 1.4 | BQ110: 3.53 | BR110: 1.46 | BS110: 3.27
A111: samp. 5727A5 | B111: low-Ti | C111: Wrangellia | D111: 47.43 | E111: 0.57 | F111: 15.81 | G111: 11.04 | I111: 9.93 | K111: 0.19 | L111: 10.35 | M111: 13.12 | N111: 1.06 | O111: 0.09 | P111: 0.07 | Q111: 2.87 | R111: 65.0 | T111: 257 | U111: 455 | V111: 157 | Y111: 84 | Z111: 13 | AA111: 1 | AB111: 146 | AC111: 16 | AD111: 17 | AE111: 1.0 | AG111: 130 | AH111: 1.00 | AI111: 2.00 | AZ111: 0.48 | BB111: 0.00 | BE111: 1.08 | BO111: 230 | BR111: 1.46
A112: samp. 5727A6(1) | B112: low-Ti | C112: Wrangellia | D112: 48.89 | E112: 0.48 | F112: 15.06 | G112: 10.51 | I112: 9.46 | K112: 0.18 | L112: 11.51 | M112: 12.43 | N112: 0.79 | O112: 0.05 | P112: 0.06 | Q112: 3.00 | R112: 68.5 | S112: 46 | T112: 233 | U112: 521 | V112: 214 | W112: 54 | X112: 98 | Y112: 74 | Z112: 12 | AA112: 1 | AB112: 123 | AC112: 14 | AD112: 15 | AE112: 0.8 | AF112: 0.12 | AG112: 46 | AH112: 1.00 | AI112: 3.00 | AJ112: 0.54 | AK112: 3.05 | AL112: 1.11 | AM112: 0.37 | AN112: 1.33 | AO112: 0.34 | AP112: 2.35 | AQ112: 0.55 | AR112: 1.63 | AS112: 0.21 | AT112: 1.53 | AU112: 0.25 | AV112: 0.57 | AW112: 0.04 | AX112: 0.07 | AY112: 0.03 | AZ112: 0.44 | BA112: 0.81 | BB112: 0.73 | BC112: 12.18 | BD112: 0.47 | BE112: 1.19 | BF112: 0.58 | BO112: 230 | BP112: 1.3 | BQ112: 3.19 | BR112: 1.46 | BS112: 3.10
A113: samp. 5727A7 | B113: low-Ti | C113: Wrangellia | D113: 46.13 | E113: 0.56 | F113: 17.97 | G113: 11.84 | I113: 10.65 | K113: 0.17 | L113: 9.09 | M113: 12.78 | N113: 1.19 | O113: 0.10 | P113: 0.07 | Q113: 2.75 | R113: 60.3 | S113: 50 | T113: 268 | U113: 199 | V113: 163 | W113: 57 | X113: 131 | Y113: 92 | Z113: 15 | AA113: 2 | AB113: 155 | AC113: 17 | AD113: 20 | AE113: 0.8 | AF113: 0.23 | AG113: 54 | AH113: 2.00 | AI113: 3.00 | AJ113: 0.80 | AK113: 3.86 | AL113: 1.30 | AM113: 0.67 | AN113: 1.63 | AO113: 0.38 | AP113: 2.80 | AQ113: 0.64 | AR113: 1.93 | AS113: 0.25 | AT113: 1.91 | AU113: 0.33 | AV113: 0.70 | AW113: 0.05 | AX113: 0.29 | AY113: 0.10 | AZ113: 0.28 | BA113: 0.76 | BB113: 3.04 | BC113: 26.33 | BD113: 0.75 | BE113: 1.59 | BF113: 0.99 | BG113: 1543 | BH113: 1415 | BO113: 230 | BP113: 1.1 | BQ113: 3.80 | BR113: 2.91 | BS113: 3.87
A114: samp. 5731A3 | B114: low-Ti | C114: Wrangellia | D114: 50.94 | E114: 0.53 | F114: 15.51 | G114: 9.75 | I114: 8.77 | K114: 0.17 | L114: 10.52 | M114: 10.68 | N114: 1.22 | O114: 0.22 | P114: 0.10 | Q114: 3.15 | R114: 68.1 | T114: 217 | U114: 605 | V114: 191 | Y114: 68 | Z114: 12 | AA114: 5 | AB114: 205 | AC114: 17 | AD114: 38 | AE114: 2.2 | AG114: 125 | AH114: 4.00 | AI114: 11.00 | AZ114: 0.19 | BE114: 1.10 | BO114: 230 | BR114: 5.82
A115: samp. 5731A4 | B115: low-Ti | C115: Wrangellia | D115: 48.61 | E115: 0.48 | F115: 15.89 | G115: 10.32 | I115: 9.29 | K115: 0.19 | L115: 9.63 | M115: 12.00 | N115: 1.87 | O115: 0.63 | P115: 0.06 | Q115: 3.10 | R115: 64.9 | T115: 232 | U115: 373 | V115: 141 | Y115: 67 | Z115: 12 | AA115: 16 | AB115: 392 | AC115: 14 | AD115: 26 | AE115: 1.4 | AG115: 173 | AH115: 3.00 | AI115: 7.00 | AZ115: 0.22 | BE115: 1.18 | BG115: 1485 | BH115: 1380 | BO115: 230 | BR115: 4.37
A116: samp. 5731A5 | B116: low-Ti | C116: Wrangellia | D116: 48.12 | E116: 0.92 | F116: 16.10 | G116: 11.50 | I116: =0.8998*G116 -> 10.35 | K116: 0.19 | L116: 9.67 | M116: 11.71 | N116: 1.35 | O116: 0.28 | P116: 0.10 | Q116: 3.34 | R116: 62.5 | T116: 256 | U116: 578 | V116: 232 | Y116: 72 | Z116: 15 | AA116: 7 | AB116: 272 | AC116: 20 | AD116: 45 | AE116: 1.6 | AG116: 108 | AH116: 2.00 | AI116: 9.00 | AZ116: -0.03 | BE116: 1.79 | BO116: 230 | BR116: 2.91
A117: samp. 5731A6 | B117: low-Ti | C117: Wrangellia | D117: 49.13 | E117: 0.64 | F117: 15.90 | G117: 9.69 | I117: 8.72 | K117: 0.16 | L117: 8.37 | M117: 13.54 | N117: 2.13 | O117: 0.29 | P117: 0.16 | Q117: 3.77 | R117: 63.1 | T117: 237 | U117: 412 | V117: 137 | Y117: 62 | Z117: 13 | AA117: 3 | AB117: 484 | AC117: 16 | AD117: 35 | AE117: 2.8 | AG117: 190 | AH117: 6.00 | AI117: 14.00 | AZ117: 0.34 | BE117: 0.80 | BO117: 230 | BR117: 8.73
A118: samp. 5801A2 | B118: high-Ti | C118: Wrangellia | D118: 50.00 | E118: 2.37 | F118: 14.02 | G118: 13.68 | I118: 12.31 | K118: 0.21 | L118: 6.08 | M118: 11.77 | N118: 1.74 | O118: 0.13 | P118: 0.22 | Q118: 1.26 | R118: 46.8 | S118: 37 | T118: 386 | U118: 211 | V118: 80 | W118: 43 | X118: 207 | Y118: 115 | Z118: 20 | AA118: 2 | AB118: 225 | AC118: 29 | AD118: 146 | AE118: 13 | AF118: 0.12 | AG118: 57 | AH118: 9 | AI118: 31 | AJ118: 4.14 | AK118: 21.1 | AL118: 5.55 | AM118: 1.79 | AN118: 5.49 | AO118: 0.93 | AP118: 6.21 | AQ118: 1.13 | AR118: 3.25 | AS118: 0.37 | AT118: 2.66 | AU118: 0.38 | AV118: 4.03 | AW118: 0.76 | AX118: 1.24 | AY118: 0.36 | AZ118: 0.05 | BA118: 2.32 | BB118: 0.79 | BC118: 215.78 | BD118: 2.43 | BE118: 0.71 | BF118: 1.05 | BO118: 230 | BP118: 1.2 | BQ118: 8.43 | BR118: 13.10 | BS118: 5.40
A119: samp. 5801A5 | B119: high-Ti | C119: Wrangellia | D119: 49.75 | E119: 1.91 | F119: 15.17 | G119: 13.13 | I119: 11.81 | K119: 0.21 | L119: 5.76 | M119: 11.84 | N119: 1.69 | O119: 0.28 | P119: 0.17 | Q119: 1.25 | R119: 46.5 | S119: 39 | T119: 358 | U119: 58 | V119: 56 | W119: 41 | X119: 182 | Y119: 111 | Z119: 20 | AA119: 6 | AB119: 187 | AC119: 26 | AD119: 113 | AE119: 10 | AF119: 0.09 | AG119: 70 | AH119: 7 | AI119: 20 | AJ119: 3.07 | AK119: 15.51 | AL119: 4.25 | AM119: 1.46 | AN119: 4.4 | AO119: 0.8 | AP119: 5.22 | AQ119: 1.01 | AR119: 2.93 | AS119: 0.35 | AT119: 2.5 | AU119: 0.36 | AV119: 3.17 | AW119: 0.61 | AX119: 0.84 | AY119: 0.24 | AZ119: 0.12 | BA119: 1.89 | BB119: 0.68 | BC119: 194.90 | BD119: 2.01 | BE119: 0.70 | BF119: 1.06 | BO119: 230 | BP119: 1.1 | BQ119: 7.08 | BR119: 10.19 | BS119: 5.07
A120: samp. 5801A8 | B120: high-Ti | C120: Wrangellia | D120: 50.82 | E120: 1.09 | F120: 15.06 | G120: 12.51 | I120: 11.26 | K120: 0.22 | L120: 7.16 | M120: 10.44 | N120: 1.99 | O120: 0.27 | P120: 0.15 | Q120: 2.13 | R120: 53.1 | T120: 285 | U120: 69 | V120: 56 | Y120: 118 | Z120: 16 | AA120: 5 | AB120: 148 | AC120: 27 | AD120: 59 | AE120: 4 | AG120: 118 | AH120: 6 | AI120: 13 | AZ120: 0.24 | BE120: 0.96 | BO120: 230 | BR120: 8.73
A121: samp. 5801A9 | B121: high-Ti | C121: Wrangellia | D121: 49.97 | E121: 2.33 | F121: 13.95 | G121: 12.28 | I121: 11.05 | K121: 0.19 | L121: 6.69 | M121: 11.77 | N121: 1.85 | O121: 0.38 | P121: 0.22 | Q121: 1.50 | R121: 51.9 | T121: 330 | U121: 129 | V121: 81 | Y121: 95 | Z121: 19 | AA121: 5 | AB121: 190 | AC121: 25 | AD121: 109 | AE121: 9 | AG121: 73 | AH121: 5 | AI121: 21 | AZ121: 0.08 | BE121: 0.74 | BO121: 230 | BR121: 7.28
A122: samp. 5802A1 | B122: low-Ti | C122: Wrangellia | D122: 49.18 | E122: 0.71 | F122: 16.27 | G122: 10.82 | I122: 9.74 | K122: 0.19 | L122: 9.41 | M122: 10.00 | N122: 2.82 | O122: 0.63 | P122: 0.17 | Q122: 3.64 | R122: 63.3 | T122: 265 | U122: 360 | V122: 142 | Y122: 73 | Z122: 12 | AA122: 16 | AB122: 485 | AC122: 18 | AD122: 40 | AE122: 3.1 | AG122: 186 | AH122: 6.00 | AI122: 13.00 | AZ122: 0.31 | BE122: 0.82 | BO122: 230 | BR122: 8.73
A123: samp. 5802A2 | B123: low-Ti | C123: Wrangellia | D123: 49.94 | E123: 0.48 | F123: 15.33 | G123: 10.44 | I123: 9.39 | K123: 0.19 | L123: 8.85 | M123: 12.67 | N123: 1.88 | O123: 0.11 | P123: 0.06 | Q123: 3.43 | R123: 62.7 | S123: 50 | T123: 247 | U123: 364 | V123: 127 | W123: 44 | X123: 89 | Y123: 68 | Z123: 11 | AA123: 2 | AB123: 303 | AC123: 15 | AD123: 23 | AE123: 1.3 | AF123: 0.30 | AG123: 44 | AH123: 3.00 | AI123: 6.00 | AJ123: 1.00 | AK123: 4.04 | AL123: 1.31 | AM123: 0.45 | AN123: 1.57 | AO123: 0.34 | AP123: 2.53 | AQ123: 0.57 | AR123: 1.76 | AS123: 0.23 | AT123: 1.75 | AU123: 0.39 | AV123: 0.78 | AW123: 0.08 | AX123: 0.56 | AY123: 0.20 | AZ123: 0.33 | BA123: 0.83 | BB123: 3.61 | BC123: 38.98 | BD123: 1.23 | BE123: 1.13 | BF123: 1.48 | BG123: 1493 | BH123: 1381 | BO123: 230 | BP123: 0.9 | BQ123: 3.43 | BR123: 4.37 | BS123: 3.55
A124: samp. 5802A3 | B124: low-Ti | C124: Wrangellia | D124: 47.76 | E124: 0.52 | F124: 16.76 | G124: 10.42 | I124: 9.38 | K124: 0.18 | L124: 9.85 | M124: 12.31 | N124: 1.20 | O124: 0.59 | P124: 0.06 | Q124: 2.70 | R124: 65.2 | T124: 242 | U124: 346 | V124: 151 | Y124: 70 | Z124: 13 | AA124: 17 | AB124: 260 | AC124: 15 | AD124: 29 | AE124: 1.7 | AG124: 198 | AH124: 4.00 | AI124: 8.00 | AZ124: 0.24 | BE124: 1.09 | BG124: 1490 | BH124: 1377 | BO124: 230 | BR124: 5.82
A125: samp. 5802A4(1) | B125: low-Ti | C125: Wrangellia | D125: 48.26 | E125: 0.50 | F125: 15.81 | G125: 10.73 | I125: 9.65 | K125: 0.19 | L125: 13.49 | M125: 9.20 | N125: 1.48 | O125: 0.05 | P125: 0.09 | Q125: 4.51 | R125: 71.4 | S125: 41 | T125: 202 | U125: 1596 | V125: 539 | W125: 60 | X125: 78 | Y125: 74 | Z125: 13 | AA125: 0 | AB125: 183 | AC125: 15 | AD125: 35 | AE125: 2.0 | AF125: 0.50 | AG125: 39 | AH125: 4.00 | AI125: 7.00 | AJ125: 1.48 | AK125: 6.61 | AL125: 1.69 | AM125: 0.51 | AN125: 1.84 | AO125: 0.40 | AP125: 2.62 | AQ125: 0.56 | AR125: 1.76 | AS125: 0.23 | AT125: 1.69 | AU125: 0.27 | AV125: 1.05 | AW125: 0.11 | AX125: 0.89 | AY125: 0.32 | AZ125: 0.17 | BA125: 1.11 | BB125: 3.73 | BC125: 37.17 | BD125: 1.70 | BE125: 1.11 | BF125: 1.53 | BO125: 230 | BP125: 0.9 | BQ125: 3.55 | BR125: 5.82 | BS125: 3.43
A126: samp. 5802A4(2) | B126: low-Ti | C126: Wrangellia | D126: 48.28 | E126: 0.50 | F126: 15.83 | G126: 10.75 | I126: 9.67 | K126: 0.19 | L126: 13.47 | M126: 9.19 | N126: 1.51 | O126: 0.05 | P126: 0.09 | Q126: 4.53 | R126: 71.3 | S126: 41 | T126: 203 | U126: 1577 | V126: 538 | W126: 60 | X126: 78 | Y126: 74 | Z126: 13 | AA126: 1 | AB126: 184 | AC126: 15 | AD126: 35 | AE126: 2.1 | AF126: 0.50 | AG126: 37 | AH126: 5.00 | AI126: 11.00 | AJ126: 1.48 | AK126: 6.61 | AL126: 1.69 | AM126: 0.51 | AN126: 1.84 | AO126: 0.40 | AP126: 2.62 | AQ126: 0.56 | AR126: 1.76 | AS126: 0.23 | AT126: 1.69 | AU126: 0.27 | AV126: 1.05 | AW126: 0.11 | AX126: 0.89 | AY126: 0.32 | AZ126: 0.18 | BA126: 1.11 | BB126: 3.56 | BC126: 37.17 | BD126: 2.12 | BE126: 1.06 | BF126: 1.91 | BO126: 230 | BP126: 0.8 | BQ126: 3.55 | BR126: 7.28 | BS126: 3.43
A127: samp. 5802A5 | B127: low-Ti | C127: Wrangellia | D127: 46.68 | E127: 0.93 | F127: 16.19 | G127: 12.21 | I127: 10.99 | K127: 0.20 | L127: 10.21 | M127: 12.16 | N127: 1.23 | O127: 0.12 | P127: 0.10 | Q127: 3.32 | R127: 62.4 | S127: 46 | T127: 257 | U127: 633 | V127: 244 | W127: 58 | X127: 103 | Y127: 82 | Z127: 16 | AA127: 3 | AB127: 252 | AC127: 21 | AD127: 46 | AE127: 1.5 | AF127: 0.30 | AG127: 40 | AH127: 2.00 | AI127: 4.00 | AJ127: 1.32 | AK127: 6.68 | AL127: 2.19 | AM127: 0.84 | AN127: 2.53 | AO127: 0.54 | AP127: 3.76 | AQ127: 0.79 | AR127: 2.30 | AS127: 0.29 | AT127: 2.12 | AU127: 0.33 | AV127: 1.51 | AW127: 0.08 | AX127: 0.34 | AY127: 0.11 | AZ127: -0.07 | BA127: 1.15 | BB127: 1.90 | BC127: 23.67 | BD127: 0.68 | BE127: 1.95 | BF127: 0.59 | BG127: 1546 | BH127: 1418 | BO127: 230 | BP127: 1.3 | BQ127: 5.10 | BR127: 2.91 | BS127: 4.30
A128: samp. 5802A6 | B128: low-Ti | C128: Wrangellia | D128: 51.77 | E128: 0.90 | F128: 14.82 | G128: 11.00 | I128: 9.90 | K128: 0.19 | L128: 7.95 | M128: 11.72 | N128: 1.47 | O128: 0.30 | P128: 0.09 | Q128: 1.56 | R128: 58.9 | T128: 254 | U128: 448 | V128: 128 | Y128: 85 | Z128: 16 | AA128: 9 | AB128: 188 | AC128: 19 | AD128: 49 | AE128: 3.0 | AG128: 92 | AH128: 2.00 | AI128: 4.00 | AZ128: 0.14 | BE128: 1.04 | BO128: 230 | BR128: 2.91
A129: samp. 5806A3 | B129: high-Ti | C129: Wrangellia | D129: 49.67 | E129: 2.37 | F129: 13.98 | G129: 13.53 | I129: 12.17 | K129: 0.21 | L129: 6.40 | M129: 10.36 | N129: 2.14 | O129: 0.68 | P129: 0.22 | Q129: 1.82 | R129: =((L129/40.305)/((L129/40.305)+(I129/71.847)))*100 -> 48.4 | T129: 369 | U129: 213 | V129: 89 | Y129: 119 | Z129: 21 | AA129: 14 | AB129: 215 | AC129: 29 | AD129: 144 | AE129: 13 | AG129: 182 | AH129: 9 | AI129: 27 | AZ129: =1.74+(LOG(AE129/AC129))-1.92*(LOG(AD129/AC129)) -> 0.05 | BE129: 0.71 | BO129: 230 | BR129: 13.10
A130: samp. 5806A5 | B130: high-Ti | C130: Wrangellia | D130: 49.86 | E130: 1.97 | F130: 14.58 | G130: 12.98 | I130: 11.68 | K130: 0.21 | L130: 6.60 | M130: 10.83 | N130: 2.25 | O130: 0.57 | P130: 0.17 | Q130: 1.62 | R130: 50.2 | T130: 339 | U130: 141 | V130: 87 | Y130: 112 | Z130: 20 | AA130: 12 | AB130: 208 | AC130: 25 | AD130: 116 | AE130: 10 | AG130: 118 | AH130: 7 | AI130: 21 | AZ130: 0.09 | BE130: =(AD130/11.2)/(AE130/0.713) -> 0.71 | BO130: 230 | BR130: 10.19
A131: samp. 5806A6 | B131: high-Ti | C131: Wrangellia | D131: 50.25 | E131: 1.89 | F131: 13.96 | G131: 12.79 | I131: 11.51 | K131: 0.21 | L131: 6.62 | M131: 12.24 | N131: 1.59 | O131: 0.29 | P131: 0.17 | Q131: 1.67 | R131: 50.6 | T131: 327 | U131: 123 | V131: 78 | Y131: 101 | Z131: 19 | AA131: 5 | AB131: 205 | AC131: 25 | AD131: 112 | AE131: 10 | AG131: 108 | AH131: 6 | AI131: 19 | AZ131: 0.08 | BE131: 0.74 | BO131: 230 | BR131: =AH131/0.687 -> 8.73
A132: samp. 5808A1 | B132: high-Ti | C132: Wrangellia | D132: 49.93 | E132: 1.01 | F132: 14.09 | G132: 13.40 | I132: 12.06 | K132: 0.22 | L132: 7.31 | M132: 11.90 | N132: 1.61 | O132: 0.31 | P132: 0.10 | Q132: 1.98 | R132: 51.9 | T132: 313 | U132: 138 | V132: 76 | Y132: 111 | Z132: 16 | AA132: 6 | AB132: 185 | AC132: 29 | AD132: 41 | AE132: 5 | AG132: 140 | AH132: 3 | AI132: 7 | AZ132: 0.71 | BE132: 0.49 | BO132: 230 | BR132: 4.37
A133: samp. 5808A2 | B133: high-Ti | C133: Wrangellia | D133: 46.44 | E133: 1.06 | F133: 10.72 | G133: 10.72 | I133: 9.65 | K133: 0.15 | L133: 15.42 | M133: 9.59 | N133: 1.34 | O133: 0.35 | P133: 0.09 | Q133: 3.20 | R133: 74.0 | S133: 27 | T133: 286 | U133: 1327 | V133: 620 | W133: 67 | X133: 123 | Y133: 60 | Z133: 13 | AA133: 6 | AB133: 127 | AC133: 16 | AD133: 59 | AE133: 6 | AF133: 0.43 | AG133: 72 | AH133: 6 | AI133: 15 | AJ133: 1.96 | AK133: 9.85 | AL133: 2.69 | AM133: 0.94 | AN133: 2.77 | AO133: 0.51 | AP133: 3.25 | AQ133: 0.66 | AR133: 1.79 | AS133: 0.21 | AT133: 1.48 | AU133: 0.22 | AV133: 1.71 | AW133: 0.35 | AX133: 0.7 | AY133: 0.26 | AZ133: 0.23 | BA133: =(AL133/0.444)/(AT133/0.493) -> 2.02 | BB133: =(AX133/0.085)/(AE133/0.713) -> 0.98 | BC133: =(AX133/0.085)/(AF133/1.775) -> 33.99 | BD133: =(AH133/0.687)/(AT133/0.493) -> 2.91 | BE133: 0.62 | BF133: =(AH133/0.687)/(AL133/0.444) -> 1.44 | BG133: 1485 | BH133: 1377 | BO133: 230 | BP133: =(BQ133)/((BR133^(4/13))*(BS133^(9/13))) -> 1.1 | BQ133: =AP133/0.737 -> 4.41 | BR133: 8.73 | BS133: =AT133/0.493 -> 3.00
A134: samp. 5808A3 | B134: high-Ti | C134: Wrangellia | D134: 46.89 | E134: 1.18 | F134: 10.72 | G134: 10.72 | I134: 9.65 | K134: 0.18 | L134: 14.78 | M134: 9.42 | N134: 0.88 | O134: 1.12 | P134: 0.11 | Q134: 2.40 | R134: 73.2 | S134: 29 | T134: 298 | U134: 1250 | V134: 525 | W134: 63 | X134: 79 | Y134: 63 | Z134: 13 | AA134: 26 | AB134: 93 | AC134: 16 | AD134: 65 | AE134: 8 | AF134: 1.10 | AG134: 191 | AH134: 7 | AI134: 18 | AJ134: 2.33 | AK134: 11.57 | AL134: 3.01 | AM134: 1.09 | AN134: 3.02 | AO134: 0.54 | AP134: 3.23 | AQ134: 0.63 | AR134: 1.79 | AS134: 0.22 | AT134: 1.45 | AU134: 0.25 | AV134: 1.88 | AW134: 0.48 | AX134: 1.06 | AY134: 0.38 | AZ134: 0.27 | BA134: 2.30 | BB134: 1.10 | BC134: 20.12 | BD134: 3.46 | BE134: 0.51 | BF134: 1.50 | BO134: 230 | BP134: 1.0 | BQ134: 4.38 | BR134: 10.19 | BS134: 2.94
A135: samp. 5808A6 | B135: low-Ti | C135: Wrangellia | D135: 49.27 | E135: 0.93 | F135: 14.71 | G135: 10.76 | I135: 9.68 | K135: 0.20 | L135: 8.88 | M135: 11.31 | N135: 1.73 | O135: 1.57 | P135: 0.27 | Q135: 2.16 | R135: 62.0 | T135: 289 | U135: 629 | V135: 137 | Y135: 102 | Z135: 18 | AA135: 18 | AB135: 801 | AC135: 17 | AD135: 65 | AE135: 4.0 | AG135: 674 | AH135: 8.00 | AI135: 20.00 | AZ135: -0.01 | BE135: 1.03 | BO135: 230 | BR135: 11.64
A136: samp. 5808A8 | B136: high-Ti | C136: Wrangellia | D136: 50.04 | E136: 1.14 | F136: 13.39 | G136: 15.35 | I136: 13.81 | K136: 0.25 | L136: 6.57 | M136: 11.27 | N136: 1.52 | O136: 0.06 | P136: 0.11 | Q136: 1.96 | R136: 45.9 | T136: 363 | U136: 58 | V136: 56 | Y136: 127 | Z136: 17 | AA136: 1 | AB136: 58 | AC136: 33 | AD136: 43 | AE136: 5 | AG136: 39 | AH136: 3 | AI136: 7 | AZ136: 0.68 | BE136: 0.57 | BO136: 230 | BQ136: 0.00 | BR136: 4.37 | BS136: 0.00
A137: samp. 5810A1(1) | B137: low-Ti | C137: Wrangellia | D137: 47.02 | E137: 0.57 | F137: 15.84 | G137: 10.94 | I137: 9.84 | K137: 0.18 | L137: 11.23 | M137: 13.14 | N137: 1.19 | O137: 0.06 | P137: 0.07 | Q137: 2.68 | R137: 67.0 | S137: 50 | T137: 261 | U137: 493 | V137: 208 | W137: 53 | X137: 98 | Y137: 74 | Z137: 13 | AA137: 1 | AB137: 151 | AC137: 16 | AD137: 18 | AE137: 1.1 | AF137: 0.17 | AG137: 62 | AH137: 1.00 | AI137: 3.00 | AJ137: 0.57 | AK137: 3.31 | AL137: 1.26 | AM137: 0.43 | AN137: 1.51 | AO137: 0.36 | AP137: 2.59 | AQ137: 0.57 | AR137: 1.74 | AS137: 0.24 | AT137: 1.70 | AU137: 0.27 | AV137: 0.66 | AW137: 0.04 | AX137: 0.09 | AY137: 0.04 | AZ137: 0.47 | BA137: 0.82 | BB137: 0.69 | BC137: 11.06 | BD137: 0.42 | BE137: 1.04 | BF137: 0.51 | BO137: 230 | BP137: 1.3 | BQ137: 3.51 | BR137: 1.46 | BS137: 3.45
A138: samp. 5810A1(2) | B138: low-Ti | C138: Wrangellia | D138: 46.82 | E138: 0.57 | F138: 15.80 | G138: 10.96 | I138: 9.86 | K138: 0.18 | L138: 11.16 | M138: 13.09 | N138: 1.04 | O138: 0.07 | P138: 0.07 | Q138: 2.65 | R138: 66.9 | S138: 50 | T138: 260 | U138: 491 | V138: 207 | W138: 53 | X138: 98 | Y138: 73 | Z138: 13 | AA138: 1 | AB138: 150 | AC138: 16 | AD138: 17 | AE138: 1.0 | AF138: 0.17 | AG138: 62 | AH138: 0.00 | AI138: 1.00 | AJ138: 0.57 | AK138: 3.31 | AL138: 1.26 | AM138: 0.43 | AN138: 1.51 | AO138: 0.36 | AP138: 2.59 | AQ138: 0.57 | AR138: 1.74 | AS138: 0.24 | AT138: 1.70 | AU138: 0.27 | AV138: 0.66 | AW138: 0.04 | AX138: 0.09 | AY138: 0.04 | AZ138: 0.47 | BA138: 0.82 | BB138: 0.75 | BC138: 11.06 | BE138: 1.08 | BO138: 230 | BQ138: 3.51 | BS138: 3.45
A139: samp. 5810A2 | B139: low-Ti | C139: Wrangellia | D139: 48.39 | E139: 0.54 | F139: 16.20 | G139: 11.32 | I139: 10.19 | K139: 0.20 | L139: 9.96 | M139: 12.21 | N139: 1.22 | O139: 0.07 | P139: 0.06 | Q139: 2.62 | R139: 63.5 | S139: 47 | T139: 253 | U139: 182 | V139: 163 | W139: 50 | X139: 110 | Y139: 78 | Z139: 13 | AA139: 1 | AB139: 141 | AC139: 16 | AD139: 19 | AE139: 1.0 | AF139: 0.12 | AG139: 62 | AH139: 2.00 | AI139: 3.00 | AJ139: 0.61 | AK139: 3.21 | AL139: 1.16 | AM139: 0.46 | AN139: 1.46 | AO139: 0.35 | AP139: 2.53 | AQ139: 0.56 | AR139: 1.78 | AS139: 0.23 | AT139: 1.75 | AU139: 0.27 | AV139: 0.66 | AW139: 0.05 | AX139: 0.27 | AY139: 0.10 | AZ139: 0.38 | BA139: 0.74 | BB139: 2.26 | BC139: 46.99 | BD139: 0.82 | BE139: 1.21 | BF139: 1.11 | BG139: 1534 | BH139: 1406 | BO139: 230 | BP139: 1.0 | BQ139: 3.43 | BR139: 2.91 | BS139: 3.55
A140: samp. 5810A4 | B140: low-Ti | C140: Wrangellia | D140: 48.45 | E140: 0.73 | F140: 17.20 | G140: 11.81 | I140: 10.63 | K140: 0.20 | L140: 7.32 | M140: 12.50 | N140: 1.25 | O140: 0.06 | P140: 0.12 | Q140: 2.19 | R140: 55.1 | S140: 42 | T140: 271 | U140: 81 | V140: 100 | W140: 45 | X140: 116 | Y140: 88 | Z140: 15 | AA140: 0 | AB140: 198 | AC140: 19 | AD140: 28 | AE140: 1.4 | AF140: 0.12 | AG140: 33 | AH140: 3.00 | AI140: 7.00 | AJ140: 1.20 | AK140: 6.12 | AL140: 1.96 | AM140: 0.73 | AN140: 2.15 | AO140: 0.45 | AP140: 3.28 | AQ140: 0.72 | AR140: 2.13 | AS140: 0.28 | AT140: 1.99 | AU140: 0.32 | AV140: 0.96 | AW140: 0.06 | AX140: 0.30 | AY140: 0.09 | AZ140: 0.27 | BA140: 1.09 | BB140: 1.80 | BC140: 52.21 | BD140: 1.08 | BE140: 1.27 | BF140: 0.99 | BO140: 230 | BP140: 1.1 | BQ140: 4.45 | BR140: 4.37 | BS140: 4.04
A141: samp. 5810A6(1) | B141: low-Ti | C141: Wrangellia | D141: 48.75 | E141: 0.64 | F141: 16.20 | G141: 12.01 | I141: 10.81 | K141: 0.24 | L141: 6.34 | M141: 13.95 | N141: 1.86 | O141: 0.15 | P141: 0.08 | Q141: 1.73 | R141: 51.1 | S141: 43 | T141: 261 | U141: 131 | V141: 91 | W141: 43 | X141: 85 | Y141: 98 | Z141: 14 | AA141: 2 | AB141: 170 | AC141: 17 | AD141: 26 | AE141: 1.3 | AF141: 0.18 | AG141: 75 | AH141: 3.00 | AI141: 2.00 | AJ141: 0.83 | AK141: 4.52 | AL141: 1.55 | AM141: 0.51 | AN141: 1.79 | AO141: 0.42 | AP141: 2.94 | AQ141: 0.64 | AR141: 1.95 | AS141: 0.26 | AT141: 1.88 | AU141: 0.33 | AV141: 0.88 | AW141: 0.10 | AX141: 0.28 | AY141: 0.12 | AZ141: 0.27 | BA141: 0.92 | BB141: 1.81 | BC141: 32.48 | BD141: 1.15 | BE141: 1.27 | BF141: 1.25 | BO141: 230 | BP141: 1.0 | BQ141: 3.99 | BR141: 4.37 | BS141: 3.81
A142: samp. 5810A6(2) | B142: low-Ti | C142: Wrangellia | D142: 48.69 | E142: 0.64 | F142: 16.10 | G142: 12.03 | I142: 10.82 | K142: 0.24 | L142: 6.26 | M142: 13.98 | N142: 1.77 | O142: 0.15 | P142: 0.08 | Q142: 1.72 | R142: 50.8 | S142: 43 | T142: 262 | U142: 129 | V142: 92 | W142: 43 | X142: 85 | Y142: 98 | Z142: 14 | AA142: 2 | AB142: 170 | AC142: 17 | AD142: 26 | AE142: 1.3 | AF142: 0.18 | AG142: 78 | AH142: 0.00 | AI142: 4.00 | AJ142: 0.83 | AK142: 4.52 | AL142: 1.55 | AM142: 0.51 | AN142: 1.79 | AO142: 0.42 | AP142: 2.94 | AQ142: 0.64 | AR142: 1.95 | AS142: 0.26 | AT142: 1.88 | AU142: 0.33 | AV142: 0.88 | AW142: 0.10 | AX142: 0.28 | AY142: 0.12 | AZ142: 0.27 | BA142: 0.92 | BB142: 1.81 | BC142: 32.48 | BE142: 1.27 | BO142: 230 | BQ142: 3.99 | BS142: 3.81
A143: samp. 5810A10 | B143: high-Ti | C143: Wrangellia | D143: 50.27 | E143: 1.74 | F143: 14.61 | G143: 12.04 | I143: 10.83 | K143: 0.19 | L143: 6.71 | M143: 12.81 | N143: 1.30 | O143: 0.14 | P143: 0.15 | Q143: 1.49 | R143: 52.5 | S143: 36 | T143: 308 | U143: 133 | V143: 88 | W143: 41 | X143: 151 | Y143: 100 | Z143: 19 | AA143: 3 | AB143: 231 | AC143: 23 | AD143: 102 | AE143: 9 | AF143: 0.09 | AG143: 59 | AH143: 6 | AI143: 19 | AJ143: 2.83 | AK143: 13.98 | AL143: 3.95 | AM143: 1.45 | AN143: 3.94 | AO143: 0.76 | AP143: 4.63 | AQ143: 0.95 | AR143: 2.5 | AS143: 0.29 | AT143: 2.05 | AU143: 0.32 | AV143: 2.84 | AW143: 0.59 | AX143: 0.78 | AY143: 0.24 | AZ143: 0.08 | BA143: 2.14 | BB143: 0.74 | BC143: 180.98 | BD143: 2.10 | BE143: 0.74 | BF143: 0.98 | BO143: 230 | BP143: 1.2 | BQ143: 6.28 | BR143: 8.73 | BS143: 4.16
A144: samp. 5811A1 | B144: low-Ti | C144: Wrangellia | D144: 49.18 | E144: 0.35 | F144: 15.84 | G144: 9.09 | I144: 8.18 | K144: 0.17 | L144: 11.93 | M144: 12.38 | N144: 0.88 | O144: 0.07 | P144: 0.05 | Q144: 3.27 | R144: 72.2 | T144: 182 | U144: 380 | V144: 274 | Y144: 64 | Z144: 10 | AA144: 1 | AB144: 114 | AC144: 12 | AD144: 19 | AE144: 1.3 | AG144: 102 | AH144: 2.00 | AI144: 3.00 | AZ144: 0.38 | BE144: 0.93 | BO144: 230 | BR144: 2.91
A145: samp. 4718A1 | B145: high-Ti | C145: Wrangellia | D145: 47.93 | E145: 1.65 | F145: 14.41 | G145: 12.29 | I145: 11.06 | K145: 0.17 | L145: 6.25 | M145: 10.22 | N145: 3.22 | O145: 0.24 | P145: 0.15 | Q145: 2.72 | R145: 50.2 | S145: 41 | T145: 328 | U145: 93 | V145: 87 | W145: 49 | X145: 177 | Y145: 83 | Z145: 19 | AA145: 4 | AB145: 418 | AC145: 25 | AD145: 86 | AE145: 8 | AF145: 0.70 | AG145: 173 | AH145: 7.88 | AI145: 19 | AJ145: 2.71 | AK145: 13 | AL145: 3.57 | AM145: 1.4 | AN145: 4.39 | AO145: 0.76 | AP145: 4.55 | AQ145: 0.9 | AR145: 2.57 | AS145: 0.36 | AT145: 2.15 | AU145: 0.31 | AV145: 2.6 | AW145: 0.59 | AX145: 0.65 | AY145: 0.2 | AZ145: 0.24 | BA145: 1.84 | BB145: 0.65 | BC145: 19.39 | BD145: 2.63 | BE145: 0.65 | BF145: 1.43 | BO145: 230 | BP145: 1.1 | BQ145: 6.17 | BR145: 11.47 | BS145: 4.36
A146: samp. 4718A2(1) | B146: high-Ti | C146: Wrangellia | D146: 48.65 | E146: 1.86 | F146: 14.30 | G146: 12.07 | I146: 10.86 | K146: 0.18 | L146: 6.21 | M146: 11.85 | N146: 2.28 | O146: 0.18 | P146: 0.14 | Q146: 1.38 | R146: 50.5 | S146: 41 | T146: 351 | U146: 146 | V146: 90 | W146: 50 | X146: 201 | Y146: 91 | Z146: 19 | AA146: 2 | AB146: 231 | AC146: 28 | AD146: 97 | AE146: 10 | AF146: 0.30 | AG146: 50 | AH146: 9.03 | AI146: 22.2 | AJ146: 3.1 | AK146: 15.2 | AL146: 4.11 | AM146: 1.57 | AN146: 4.77 | AO146: 0.82 | AP146: 5.02 | AQ146: 0.99 | AR146: 2.79 | AS146: 0.4 | AT146: 2.39 | AU146: 0.33 | AV146: 2.8 | AW146: 0.68 | AX146: 0.74 | AY146: 0.23 | AZ146: 0.26 | BA146: 1.91 | BB146: 0.61 | BC146: 51.51 | BD146: 2.71 | BE146: 0.61 | BF146: 1.42 | BI146: 0.70319 | BJ146: 0.51275 | BK146: 8.1 | BL146: 38.455 | BM146: 15.581 | BN146: 18.957 | BO146: 230 | BP146: 1.0 | BQ146: 6.81 | BR146: 13.14 | BS146: 4.85
A147: samp. 4718A2(2) | B147: high-Ti | C147: Wrangellia | D147: 49.07 | E147: 1.84 | F147: 14.15 | G147: 12.48 | I147: 11.23 | K147: 0.18 | L147: 6.16 | M147: 11.70 | N147: 2.25 | O147: 0.14 | P147: 0.15 | Q147: 1.22 | R147: 49.4 | S147: 40 | T147: 353 | U147: 125 | V147: 88 | W147: 49 | X147: 198 | Y147: 91 | Z147: 20 | AA147: 2 | AB147: 228 | AC147: 28 | AD147: 94 | AE147: 10 | AF147: 0.20 | AG147: 49 | AH147: 8.72 | AI147: 21.6 | AJ147: 3.02 | AK147: 14.5 | AL147: 4.05 | AM147: 1.48 | AN147: 4.87 | AO147: 0.82 | AP147: 4.79 | AQ147: 0.96 | AR147: 2.72 | AS147: 0.39 | AT147: 2.32 | AU147: 0.32 | AV147: 2.8 | AW147: 0.65 | AX147: 0.72 | AY147: 0.24 | AZ147: 0.28 | BA147: 1.94 | BB147: 0.60 | BC147: 75.18 | BD147: 2.70 | BE147: 0.60 | BF147: 1.39 | BO147: 230 | BP147: 1.0 | BQ147: 6.50 | BR147: 12.69 | BS147: 4.71
A148: samp. 4718A5 | B148: high-Ti | C148: Wrangellia | D148: 48.41 | E148: 1.40 | F148: 15.89 | G148: 9.90 | I148: 8.91 | K148: 0.16 | L148: 6.81 | M148: 11.31 | N148: 2.51 | O148: 0.35 | P148: 0.10 | Q148: 2.17 | R148: 57.7 | S148: 39 | T148: 285 | U148: 290 | V148: 125 | W148: 46 | X148: 167 | Y148: 77 | Z148: 17 | AA148: 6 | AB148: 282 | AC148: 22 | AD148: 72 | AE148: 7 | AF148: 0.50 | AG148: 71 | AH148: 6.5 | AI148: 15.5 | AJ148: 2.15 | AK148: 10.7 | AL148: 3.03 | AM148: 1.18 | AN148: 3.59 | AO148: 0.63 | AP148: 3.8 | AQ148: 0.77 | AR148: 2.2 | AS148: 0.32 | AT148: 1.9 | AU148: 0.27 | AV148: 2 | AW148: 0.45 | AX148: 0.52 | AY148: 0.17 | AZ148: 0.25 | BA148: 1.77 | BB148: 0.62 | BC148: 21.72 | BD148: 2.45 | BE148: 0.65 | BF148: 1.39 | BO148: 230 | BP148: 1.0 | BQ148: 5.16 | BR148: 9.46 | BS148: 3.85
A149: samp. 4718A6 | B149: high-Ti | C149: Wrangellia | D149: 48.69 | E149: 1.36 | F149: 15.92 | G149: 10.74 | I149: 9.66 | K149: 0.16 | L149: 6.74 | M149: 10.76 | N149: 2.89 | O149: 0.34 | P149: 0.12 | Q149: 2.28 | R149: 55.4 | S149: 38 | T149: 279 | U149: 297 | V149: 122 | W149: 45 | X149: 158 | Y149: 73 | Z149: 19 | AA149: 6 | AB149: 332 | AC149: 22 | AD149: 71 | AE149: 7 | AF149: 0.50 | AG149: 98 | AH149: 6.58 | AI149: 16.2 | AJ149: 2.2 | AK149: 11.2 | AL149: 3.13 | AM149: 1.2 | AN149: 3.64 | AO149: 0.64 | AP149: 3.87 | AQ149: 0.78 | AR149: 2.27 | AS149: 0.32 | AT149: 1.96 | AU149: 0.27 | AV149: 2.2 | AW149: 0.46 | AX149: 0.53 | AY149: 0.16 | AZ149: 0.25 | BA149: 1.77 | BB149: 0.65 | BC149: 22.14 | BD149: 2.41 | BE149: 0.66 | BF149: 1.36 | BO149: 230 | BP149: 1.0 | BQ149: 5.25 | BR149: 9.58 | BS149: 3.98
A150: samp. 4718A7 | B150: high-Ti | C150: Wrangellia | D150: 48.44 | E150: 1.49 | F150: 14.74 | G150: 12.13 | I150: 10.91 | K150: 0.17 | L150: 6.89 | M150: 11.56 | N150: 2.39 | O150: 0.24 | P150: 0.12 | Q150: 1.64 | R150: 52.9 | S150: 40 | T150: 317 | U150: 252 | V150: 115 | W150: 51 | X150: 159 | Y150: 82 | Z150: 18 | AA150: 4 | AB150: 263 | AC150: 24 | AD150: 77 | AE150: 7 | AF150: 0.20 | AG150: 62 | AH150: 6.1 | AI150: 15.4 | AJ150: 2.23 | AK150: 11.4 | AL150: 3.42 | AM150: 1.25 | AN150: 3.9 | AO150: 0.68 | AP150: 4.12 | AQ150: 0.84 | AR150: 2.34 | AS150: 0.33 | AT150: 2 | AU150: 0.28 | AV150: 2.1 | AW150: 0.41 | AX150: 0.54 | AY150: 0.17 | AZ150: 0.20 | BA150: 1.90 | BB150: 0.70 | BC150: 56.38 | BD150: 2.19 | BE150: 0.75 | BF150: 1.15 | BI150: 0.70358 | BJ150: 0.51274 | BK150: 7.7 | BL150: 38.312 | BM150: 15.57 | BN150: 18.782 | BO150: 230 | BP150: 1.1 | BQ150: 5.59 | BR150: 8.88 | BS150: 4.06
A151: samp. 4719A2 | B151: high-Ti | C151: Wrangellia | D151: 49.68 | E151: 1.71 | F151: 14.93 | G151: 9.75 | I151: 8.77 | K151: 0.19 | L151: 6.98 | M151: 10.96 | N151: 2.23 | O151: 0.27 | P151: 0.08 | Q151: 1.97 | R151: 58.6 | S151: 43 | T151: 341 | U151: 130 | V151: 94 | W151: 53 | X151: 180 | Y151: 86 | Z151: 16 | AA151: 5 | AB151: 281 | AC151: 26 | AD151: 86 | AE151: 7 | AF151: 0.20 | AG151: 143 | AH151: 7.17 | AI151: 18 | AJ151: 2.62 | AK151: 13.2 | AL151: 3.67 | AM151: 1.47 | AN151: 4.32 | AO151: 0.76 | AP151: 4.68 | AQ151: 0.94 | AR151: 2.66 | AS151: 0.37 | AT151: 2.23 | AU151: 0.3 | AV151: 2.6 | AW151: 0.53 | AX151: 0.61 | AY151: 0.22 | AZ151: 0.20 | BA151: 1.83 | BB151: 0.69 | BC151: 63.69 | BD151: 2.31 | BE151: 0.74 | BF151: 1.26 | BI151: 0.70368 | BJ151: 0.51272 | BK151: 7.3 | BL151: 38.501 | BM151: 15.581 | BN151: 18.94 | BO151: 230 | BP151: 1.1 | BQ151: 6.35 | BR151: 10.44 | BS151: 4.52
A152: samp. 4719A3 | B152: high-Ti | C152: Wrangellia | D152: 49.08 | E152: 1.68 | F152: 14.06 | G152: 12.21 | I152: 10.99 | K152: 0.18 | L152: 6.55 | M152: 10.94 | N152: 2.24 | O152: 0.31 | P152: 0.13 | Q152: 1.63 | R152: 51.5 | S152: 43 | T152: 341 | U152: 131 | V152: 103 | W152: 53 | X152: 168 | Y152: 87 | Z152: 18 | AA152: 5 | AB152: 286 | AC152: 26 | AD152: 83 | AE152: 7 | AF152: 0.20 | AG152: 133 | AH152: 7.02 | AI152: 17.7 | AJ152: 2.52 | AK152: 12.5 | AL152: 3.66 | AM152: 1.39 | AN152: 4.24 | AO152: 0.74 | AP152: 4.41 | AQ152: 0.89 | AR152: 2.45 | AS152: 0.35 | AT152: 2.11 | AU152: 0.3 | AV152: 2.5 | AW152: 0.49 | AX152: 0.61 | AY152: 0.19 | AZ152: 0.22 | BA152: 1.93 | BB152: 0.70 | BC152: 63.69 | BD152: 2.39 | BE152: 0.72 | BF152: 1.24 | BI152: 0.70361 | BJ152: 0.51271 | BK152: 7.2 | BL152: 38.524 | BM152: 15.573 | BN152: 19.007 | BO152: 230 | BP152: 1.1 | BQ152: 5.98 | BR152: 10.22 | BS152: 4.28
A153: samp. 4720A2 | B153: high-Ti | C153: Wrangellia | D153: 49.24 | E153: 1.58 | F153: 13.54 | G153: 11.30 | I153: 10.17 | K153: 0.21 | L153: 6.09 | M153: 14.00 | N153: 2.12 | O153: 0.10 | P153: 0.12 | Q153: 1.15 | R153: 51.6 | S153: 41 | T153: 325 | U153: 151 | V153: 83 | W153: 51 | X153: 167 | Y153: 79 | Z153: 19 | AB153: 192 | AC153: 25 | AD153: 83 | AE153: 8 | AG153: 28 | AH153: 7.2 | AI153: 17.3 | AJ153: 2.42 | AK153: 12.2 | AL153: 3.43 | AM153: 1.33 | AN153: 4.12 | AO153: 0.71 | AP153: 4.28 | AQ153: 0.87 | AR153: 2.48 | AS153: 0.34 | AT153: 2.05 | AU153: 0.29 | AV153: 2.4 | AW153: 0.51 | AX153: 0.57 | AY153: 0.18 | AZ153: 0.24 | BA153: 1.86 | BB153: 0.61 | BD153: 2.52 | BE153: 0.67 | BF153: 1.36 | BG153: 1602 | BH153: 1460 | BI153: 0.70295 | BJ153: 0.51273 | BK153: 7.6 | BL153: 38.527 | BM153: 15.583 | BN153: 19.053 | BO153: 230 | BP153: 1.1 | BQ153: 5.81 | BR153: 10.48 | BS153: 4.16
A154: samp. 4720A3 | B154: high-Ti | C154: Wrangellia | D154: 48.47 | E154: 1.72 | F154: 13.52 | G154: 11.61 | I154: 10.45 | K154: 0.19 | L154: 7.12 | M154: 11.94 | N154: 2.18 | O154: 0.29 | P154: 0.12 | Q154: 1.95 | R154: 54.9 | S154: 46 | T154: 344 | U154: 168 | V154: 93 | W154: 56 | X154: 184 | Y154: 88 | Z154: 17 | AA154: 6 | AB154: 214 | AC154: 27 | AD154: 90 | AE154: 9 | AF154: 0.20 | AG154: 81 | AH154: 7.88 | AI154: 19 | AJ154: 2.72 | AK154: 13.5 | AL154: 3.85 | AM154: 1.47 | AN154: 4.48 | AO154: 0.78 | AP154: 4.78 | AQ154: 0.95 | AR154: 2.69 | AS154: 0.38 | AT154: 2.33 | AU154: 0.33 | AV154: 2.6 | AW154: 0.6 | AX154: 0.64 | AY154: 0.2 | AZ154: 0.24 | BA154: 1.83 | BB154: 0.62 | BC154: 66.82 | BD154: 2.43 | BE154: 0.67 | BF154: 1.32 | BI154: 0.70300 | BJ154: 0.51271 | BK154: 7.2 | BL154: 38.454 | BM154: 15.576 | BN154: 18.859 | BO154: 230 | BP154: 1.0 | BQ154: 6.49 | BR154: 11.47 | BS154: 4.73
A155: samp. 4720A4 | B155: high-Ti | C155: Wrangellia | D155: 49.16 | E155: 1.78 | F155: 14.00 | G155: 13.30 | I155: 11.97 | K155: 0.19 | L155: 6.39 | M155: 11.85 | N155: 1.86 | O155: 0.14 | P155: 0.15 | Q155: 0.93 | R155: 48.8 | S155: 43 | T155: 349 | U155: 122 | V155: 92 | W155: 54 | X155: 202 | Y155: 92 | Z155: 20 | AA155: 2 | AB155: 179 | AC155: 27 | AD155: 97 | AE155: 9 | AF155: 0.20 | AG155: 34 | AH155: 8.44 | AI155: 20.5 | AJ155: 2.88 | AK155: 14.3 | AL155: 4.07 | AM155: 1.49 | AN155: 4.7 | AO155: 0.81 | AP155: 4.9 | AQ155: 0.99 | AR155: 2.81 | AS155: 0.39 | AT155: 2.31 | AU155: 0.33 | AV155: 2.7 | AW155: 0.6 | AX155: 0.68 | AY155: 0.2 | AZ155: 0.20 | BA155: 1.96 | BB155: 0.63 | BC155: 71.00 | BD155: 2.62 | BE155: 0.68 | BF155: 1.34 | BI155: 0.70297 | BJ155: 0.51268 | BK155: 6.6 | BL155: 38.587 | BM155: 15.584 | BN155: 19.098 | BO155: 230 | BP155: 1.1 | BQ155: 6.65 | BR155: 12.29 | BS155: 4.69
A156: samp. 4720A5 | B156: high-Ti | C156: Wrangellia | D156: 48.88 | E156: 1.78 | F156: 13.84 | G156: 13.46 | I156: 12.11 | K156: 0.18 | L156: 6.12 | M156: 11.43 | N156: 2.16 | O156: 0.14 | P156: 0.16 | Q156: 1.42 | R156: 47.4 | S156: 45 | T156: 362 | U156: 156 | V156: 105 | W156: 55 | X156: 185 | Y156: 93 | Z156: 19 | AA156: 1 | AB156: 188 | AC156: 28 | AD156: 92 | AE156: 8 | AF156: 0.10 | AG156: 38 | AH156: 8.07 | AI156: 19.5 | AJ156: 2.73 | AK156: 13.5 | AL156: 3.87 | AM156: 1.45 | AN156: 4.74 | AO156: 0.83 | AP156: 4.92 | AQ156: 0.98 | AR156: 2.79 | AS156: 0.4 | AT156: 2.46 | AU156: 0.35 | AV156: 2.6 | AW156: 0.56 | AX156: 0.61 | AY156: 0.19 | AZ156: 0.21 | BA156: 1.75 | BB156: 0.62 | BC156: 127.38 | BD156: 2.35 | BE156: 0.71 | BF156: 1.35 | BO156: 230 | BP156: 1.0 | BQ156: 6.68 | BR156: 11.75 | BS156: 4.99
A157: samp. 4720A8 | B157: high-Ti | C157: Wrangellia | D157: 48.02 | E157: 1.77 | F157: 14.34 | G157: 13.18 | I157: 11.86 | K157: 0.20 | L157: 6.73 | M157: 11.37 | N157: 1.97 | O157: 0.11 | P157: 0.15 | Q157: 1.91 | R157: 50.3 | S157: 42 | T157: 362 | U157: 155 | V157: 116 | W157: 55 | X157: 218 | Y157: 109 | Z157: 19 | AB157: 174 | AC157: 28 | AD157: 95 | AE157: 8 | AF157: 0.20 | AG157: 33 | AH157: 6.86 | AI157: 17.5 | AJ157: 2.54 | AK157: 12.6 | AL157: 3.72 | AM157: 1.37 | AN157: 4.4 | AO157: 0.77 | AP157: 4.86 | AQ157: 0.98 | AR157: 2.78 | AS157: 0.4 | AT157: 2.51 | AU157: 0.35 | AV157: 2.7 | AW157: 0.55 | AX157: 0.62 | AY157: 0.19 | AZ157: 0.19 | BA157: 1.65 | BB157: 0.63 | BC157: 64.74 | BD157: 1.96 | BE157: 0.73 | BF157: 1.19 | BO157: 230 | BP157: 1.1 | BQ157: 6.59 | BR157: 9.99 | BS157: 5.09
A158: samp. 4720A9 | B158: high-Ti | C158: Wrangellia | D158: 48.06 | E158: 1.77 | F158: 14.11 | G158: 13.73 | I158: 12.35 | K158: 0.19 | L158: 6.35 | M158: 11.61 | N158: 2.08 | O158: 0.11 | P158: 0.16 | Q158: 1.37 | R158: 47.8 | S158: 44 | T158: 362 | U158: 166 | V158: 112 | W158: 56 | X158: 187 | Y158: 90 | Z158: 18 | AA158: 1 | AB158: 196 | AC158: 28 | AD158: 88 | AE158: 8 | AF158: 0.10 | AG158: 35 | AH158: 7.06 | AI158: 17.3 | AJ158: 2.46 | AK158: 12.3 | AL158: 3.51 | AM158: 1.36 | AN158: 4.19 | AO158: 0.75 | AP158: 4.62 | AQ158: 0.93 | AR158: 2.65 | AS158: 0.37 | AT158: 2.27 | AU158: 0.33 | AV158: 2.6 | AW158: 0.53 | AX158: 0.61 | AY158: 0.18 | AZ158: 0.23 | BA158: 1.72 | BB158: 0.66 | BC158: 127.38 | BD158: 2.23 | BE158: 0.72 | BF158: 1.30 | BO158: 230 | BP158: 1.1 | BQ158: 6.27 | BR158: 10.28 | BS158: 4.60
A159: samp. 4721A1 | B159: high-Ti | C159: Wrangellia | D159: 48.17 | E159: 1.89 | F159: 14.96 | G159: 11.40 | I159: 10.26 | K159: 0.18 | L159: 6.39 | M159: 11.75 | N159: 1.93 | O159: 0.10 | P159: 0.13 | Q159: 2.11 | R159: 52.6 | S159: 44 | T159: 378 | U159: 158 | V159: 106 | W159: 55 | X159: 208 | Y159: 86 | Z159: 18 | AA159: 2 | AB159: 174 | AC159: 30 | AD159: 97 | AE159: 9 | AF159: 0.60 | AG159: 36 | AH159: 7.31 | AI159: 18.9 | AJ159: 2.78 | AK159: 13.5 | AL159: 4.06 | AM159: 1.47 | AN159: 4.72 | AO159: 0.81 | AP159: 4.99 | AQ159: 1.03 | AR159: 2.96 | AS159: 0.41 | AT159: 2.5 | AU159: 0.36 | AV159: 2.9 | AW159: 0.58 | AX159: 0.68 | AY159: 0.22 | AZ159: 0.21 | BA159: 1.80 | BB159: 0.67 | BC159: 23.67 | BD159: 2.10 | BE159: 0.73 | BF159: 1.16 | BO159: 230 | BP159: 1.1 | BQ159: 6.77 | BR159: 10.64 | BS159: 5.07
A160: samp. 4721A2 | B160: high-Ti | C160: Wrangellia | D160: 49.56 | E160: 1.77 | F160: 13.92 | G160: 13.07 | I160: 11.76 | K160: 0.17 | L160: 6.06 | M160: 12.15 | N160: 2.01 | O160: 0.09 | P160: 0.16 | Q160: 0.76 | R160: 47.9 | S160: 42 | T160: 351 | U160: 118 | V160: 91 | W160: 52 | X160: 195 | Y160: 90 | Z160: 19 | AA160: 1 | AB160: 187 | AC160: 26 | AD160: 97 | AE160: 9 | AF160: 0.20 | AG160: 39 | AH160: 7.86 | AI160: 19.2 | AJ160: 2.7 | AK160: 13.5 | AL160: 3.84 | AM160: 1.46 | AN160: 4.47 | AO160: 0.79 | AP160: 4.75 | AQ160: 0.96 | AR160: 2.72 | AS160: 0.38 | AT160: 2.35 | AU160: 0.32 | AV160: 2.8 | AW160: 0.6 | AX160: 0.69 | AY160: 0.21 | AZ160: 0.18 | BA160: 1.81 | BB160: 0.64 | BC160: 72.04 | BD160: 2.40 | BE160: 0.69 | BF160: 1.32 | BG160: 1672 | BH160: 1506 | BI160: 0.70300 | BJ160: 0.51271 | BK160: 7.2 | BL160: 38.454 | BM160: 15.576 | BN160: 18.859 | BO160: 230 | BP160: 1.0 | BQ160: 6.45 | BR160: 11.44 | BS160: 4.77
A161: samp. 4721A3 | B161: high-Ti | C161: Wrangellia | D161: 48.17 | E161: 1.77 | F161: 14.16 | G161: 13.24 | I161: 11.91 | K161: 0.18 | L161: 6.61 | M161: 11.30 | N161: 2.03 | O161: 0.15 | P161: 0.14 | Q161: 1.78 | R161: 49.7 | S161: 42 | T161: 364 | U161: 164 | V161: 115 | W161: 55 | X161: 206 | Y161: 87 | Z161: 19 | AA161: 1 | AB161: 162 | AC161: 28 | AD161: 95 | AE161: 9 | AF161: 0.40 | AG161: 34 | AH161: 7.42 | AI161: 18.3 | AJ161: 2.66 | AK161: 13.3 | AL161: 3.84 | AM161: 1.4 | AN161: 4.59 | AO161: 0.79 | AP161: 4.88 | AQ161: 0.98 | AR161: 2.82 | AS161: 0.39 | AT161: 2.42 | AU161: 0.35 | AV161: 2.8 | AW161: 0.57 | AX161: 0.62 | AY161: 0.2 | AZ161: 0.20 | BA161: 1.76 | BB161: 0.61 | BC161: 32.37 | BD161: 2.20 | BE161: 0.71 | BF161: 1.25 | BO161: 230 | BP161: 1.1 | BQ161: 6.62 | BR161: 10.80 | BS161: 4.91
A162: samp. 4721A4 | B162: high-Ti | C162: Wrangellia | D162: 49.49 | E162: 1.79 | F162: 13.98 | G162: 13.13 | I162: 11.81 | K162: 0.18 | L162: 6.46 | M162: 11.76 | N162: 1.92 | O162: 0.12 | P162: 0.14 | Q162: 0.87 | R162: 49.4 | S162: 42 | T162: 364 | U162: 151 | V162: 108 | W162: 53 | X162: 211 | Y162: 92 | Z162: 19 | AA162: 1 | AB162: 160 | AC162: 29 | AD162: 95 | AE162: 9 | AF162: 0.30 | AG162: 28 | AH162: 7.21 | AI162: 17.9 | AJ162: 2.57 | AK162: 13 | AL162: 3.81 | AM162: 1.38 | AN162: 4.28 | AO162: 0.77 | AP162: 4.77 | AQ162: 0.97 | AR162: 2.8 | AS162: 0.4 | AT162: 2.4 | AU162: 0.34 | AV162: 2.7 | AW162: 0.55 | AX162: 0.62 | AY162: 0.19 | AZ162: 0.22 | BA162: 1.76 | BB162: 0.60 | BC162: 43.16 | BD162: 2.16 | BE162: 0.70 | BF162: 1.22 | BI162: 0.70297 | BJ162: 0.51268 | BK162: 6.6 | BL162: 38.587 | BM162: 15.584 | BN162: 19.098 | BO162: 230 | BP162: 1.0 | BQ162: 6.47 | BR162: 10.49 | BS162: 4.87
A163: samp. 4721A5 | B163: high-Ti | C163: Wrangellia | D163: 49.37 | E163: 1.81 | F163: 13.98 | G163: 13.53 | I163: 12.17 | K163: 0.20 | L163: 5.98 | M163: 11.59 | N163: 1.92 | O163: 0.15 | P163: 0.15 | Q163: 1.04 | R163: 46.7 | S163: 40 | T163: 367 | U163: 122 | V163: 90 | W163: 47 | X163: 210 | Y163: 92 | Z163: 19 | AA163: 1 | AB163: 171 | AC163: 29 | AD163: 96 | AE163: 9 | AF163: 0.20 | AG163: 34 | AH163: 7.62 | AI163: 18.8 | AJ163: 2.73 | AK163: 13.9 | AL163: 3.91 | AM163: 1.47 | AN163: 4.73 | AO163: 0.83 | AP163: 5.12 | AQ163: 1.04 | AR163: 2.99 | AS163: 0.42 | AT163: 2.55 | AU163: 0.35 | AV163: 2.9 | AW163: 0.59 | AX163: 0.67 | AY163: 0.2 | AZ163: 0.21 | BA163: 1.70 | BB163: 0.66 | BC163: 69.96 | BD163: 2.14 | BE163: 0.72 | BF163: 1.26 | BO163: 230 | BP163: 1.1 | BQ163: 6.95 | BR163: 11.09 | BS163: 5.17
A164: samp. 4722A2(1) | B164: high-Ti | C164: Wrangellia | D164: 48.33 | E164: 1.80 | F164: 13.59 | G164: 13.75 | I164: 12.37 | K164: 0.19 | L164: 6.97 | M164: 11.42 | N164: 2.03 | O164: 0.14 | P164: 0.15 | Q164: 1.48 | R164: 50.1 | S164: 39 | T164: 365 | U164: 143 | V164: 107 | W164: 50 | X164: 189 | Y164: 104 | Z164: 19 | AA164: 2 | AB164: 190 | AC164: 27 | AD164: 96 | AE164: 8 | AF164: 0.20 | AG164: 34 | AH164: 6.95 | AI164: 17.8 | AJ164: 2.53 | AK164: 12.9 | AL164: 3.72 | AM164: 1.41 | AN164: 4.42 | AO164: 0.77 | AP164: 4.61 | AQ164: 0.94 | AR164: 2.65 | AS164: 0.38 | AT164: 2.32 | AU164: 0.32 | AV164: 2.8 | AW164: 0.55 | AX164: 0.66 | AY164: 0.19 | AZ164: 0.17 | BA164: 1.78 | BB164: 0.67 | BC164: 68.91 | BD164: 2.15 | BE164: 0.74 | BF164: 1.21 | BO164: 230 | BP164: 1.1 | BQ164: 6.26 | BR164: 10.12 | BS164: 4.71
A165: samp. 4722A2(2) | B165: high-Ti | C165: Wrangellia | D165: 48.67 | E165: 1.82 | F165: 13.74 | G165: 13.05 | I165: 11.74 | K165: 0.19 | L165: 7.02 | M165: 11.42 | N165: 2.05 | O165: 0.13 | P165: 0.14 | Q165: 1.34 | R165: 51.6 | S165: 29 | T165: 365 | U165: 98 | V165: 105 | W165: 38 | X165: 189 | Y165: 103 | Z165: 19 | AA165: 2 | AB165: 193 | AC165: 28 | AD165: 87 | AE165: 8 | AF165: 0.20 | AG165: 34 | AH165: 7.34 | AI165: 18.5 | AJ165: 2.64 | AK165: 12.7 | AL165: 3.66 | AM165: 1.42 | AN165: 4.62 | AO165: 0.77 | AP165: 4.6 | AQ165: 0.94 | AR165: 2.7 | AS165: 0.38 | AT165: 2.27 | AU165: 0.34 | AV165: 2.6 | AW165: 0.54 | AX165: 0.64 | AY165: 0.2 | AZ165: 0.27 | BA165: 1.79 | BB165: 0.64 | BC165: 66.82 | BD165: 2.32 | BE165: 0.66 | BF165: 1.30 | BO165: 230 | BP165: 1.0 | BQ165: 6.24 | BR165: 10.68 | BS165: 4.60
A166: samp. 4722A2(3) | B166: high-Ti | C166: Wrangellia | D166: 47.23 | E166: 1.78 | F166: 13.77 | G166: 14.13 | I166: 12.71 | K166: 0.19 | L166: 7.09 | M166: 11.43 | N166: 2.02 | O166: 0.06 | P166: 0.14 | Q166: 1.38 | R166: 49.9 | S166: 42 | T166: 362 | U166: 162 | V166: 93 | W166: 56 | X166: 178 | Y166: 98 | Z166: 20 | AA166: 2 | AB166: 178 | AC166: 26 | AD166: 94 | AE166: 9 | AF166: 0.40 | AG166: 28 | AH166: 7.65 | AI166: 19.3 | AJ166: 2.94 | AK166: 13.6 | AL166: 4.05 | AM166: 1.55 | AN166: 4.76 | AO166: 0.83 | AP166: 4.92 | AQ166: 0.92 | AR166: 2.64 | AS166: 0.389 | AT166: 2.41 | AU166: 0.349 | AV166: 2.8 | AW166: 0.6 | AX166: 0.59 | AY166: 0.23 | AZ166: 0.18 | BA166: 1.87 | BB166: 0.58 | BC166: 30.80 | BD166: 2.28 | BE166: 0.70 | BF166: 1.22 | BO166: 230 | BP166: 1.1 | BQ166: 6.68 | BR166: 11.14 | BS166: 4.89
A167: samp. 4722A2(4) | B167: high-Ti | C167: Wrangellia | D167: 48.16 | E167: 1.78 | F167: 13.62 | G167: 13.76 | I167: 12.38 | K167: 0.19 | L167: 7.09 | M167: 11.48 | N167: 2.08 | O167: 0.14 | P167: 0.12 | Q167: 1.37 | R167: 50.5 | S167: 42 | T167: 362 | U167: 165 | V167: 93 | W167: 54 | X167: 174 | Y167: 94 | Z167: 17 | AA167: 2 | AB167: 190 | AC167: 27 | AD167: 102 | AE167: 9 | AF167: 0.20 | AG167: 33 | AH167: 6.95 | AI167: 17.8 | AJ167: 2.67 | AK167: 13.3 | AL167: 3.77 | AM167: 1.42 | AN167: 4.59 | AO167: 0.8 | AP167: 4.77 | AQ167: 0.95 | AR167: 2.69 | AS167: 0.37 | AT167: 2.28 | AU167: 0.34 | AV167: 2.8 | AW167: 0.57 | AX167: 0.68 | AY167: 0.15 | AZ167: 0.13 | BA167: 1.84 | BB167: 0.67 | BC167: 71.00 | BD167: 2.19 | BE167: 0.76 | BF167: 1.19 | BO167: 230 | BP167: 1.1 | BQ167: 6.47 | BR167: 10.12 | BS167: 4.62
A168: samp. 4723A10 | B168: high-Ti | C168: Wrangellia | D168: 50.03 | E168: 2.08 | F168: 12.31 | G168: 15.21 | I168: 13.69 | K168: 0.22 | L168: 5.66 | M168: 9.19 | N168: 2.94 | O168: 0.70 | P168: 0.18 | Q168: 1.55 | R168: 42.4 | S168: 38 | T168: 496 | U168: 34 | V168: 61 | W168: 47 | X168: 306 | Y168: 107 | Z168: 20 | AA168: 12 | AB168: 299 | AC168: 32 | AD168: 110 | AE168: 10 | AF168: 0.40 | AG168: 152 | AH168: 8.93 | AI168: 21.5 | AJ168: 3.1 | AK168: 15.5 | AL168: 4.2 | AM168: 1.62 | AN168: 5.21 | AO168: 0.9 | AP168: 5.4 | AQ168: 1.11 | AR168: 3.23 | AS168: 0.45 | AT168: 2.71 | AU168: 0.39 | AV168: 3.1 | AW168: 0.65 | AX168: 0.77 | AY168: 0.27 | AZ168: 0.19 | BA168: 1.72 | BB168: 0.67 | BC168: 40.20 | BD168: 2.36 | BE168: 0.72 | BF168: 1.37 | BO168: 230 | BP168: 1.0 | BQ168: 7.33 | BR168: 13.00 | BS168: 5.50
A169: samp. 4724A5 | B169: high-Ti | C169: Wrangellia | D169: 48.08 | E169: 1.73 | F169: 16.39 | G169: 11.13 | I169: 10.01 | K169: 0.20 | L169: 5.54 | M169: 12.38 | N169: 2.01 | O169: 0.10 | P169: 0.15 | Q169: 1.29 | R169: 49.6 | S169: 34 | T169: 299 | U169: 207 | V169: 98 | W169: 43 | X169: 198 | Y169: 76 | Z169: 21 | AB169: 272 | AC169: 25 | AD169: 92 | AE169: 9 | AF169: 0.10 | AG169: 32 | AH169: 7.98 | AI169: 19.4 | AJ169: 2.72 | AK169: 13.3 | AL169: 3.69 | AM169: 1.42 | AN169: 4.58 | AO169: 0.75 | AP169: 4.53 | AQ169: 0.89 | AR169: 2.54 | AS169: 0.36 | AT169: 2.26 | AU169: 0.32 | AV169: 2.7 | AW169: 0.6 | AX169: 0.69 | AY169: 0.25 | AZ169: 0.19 | BA169: 1.81 | BB169: 0.67 | BC169: 144.09 | BD169: 2.53 | BE169: 0.68 | BF169: 1.40 | BO169: 230 | BP169: 1.0 | BQ169: 6.15 | BR169: 11.62 | BS169: 4.58
A170: samp. 5614A10 | B170: high-Ti | C170: Wrangellia | D170: 46.69 | E170: 1.76 | F170: 13.32 | G170: 12.72 | I170: 11.45 | K170: 0.17 | L170: 7.09 | M170: 10.62 | N170: 3.49 | O170: 0.01 | P170: 0.14 | Q170: 3.53 | R170: 52.5 | S170: 44 | T170: 354 | U170: 195 | V170: 93 | W170: 49 | X170: 134 | Y170: 80 | Z170: 20 | AB170: 86 | AC170: 26 | AD170: 90 | AE170: 8 | AF170: 0.80 | AG170: 11 | AH170: 8.04 | AI170: 19.7 | AJ170: 2.96 | AK170: 13.7 | AL170: 3.88 | AM170: 1.44 | AN170: 4.47 | AO170: 0.79 | AP170: 4.59 | AQ170: 0.85 | AR170: 2.47 | AS170: 0.37 | AT170: 2.27 | AU170: 0.325 | AV170: 2.7 | AW170: 0.6 | AX170: 0.75 | AY170: 0.3 | AZ170: 0.20 | BA170: 1.90 | BB170: 0.78 | BC170: 19.58 | BD170: 2.54 | BE170: 0.71 | BF170: 1.34 | BO170: 230 | BP170: 1.0 | BQ170: 6.23 | BR170: 11.70 | BS170: 4.60
A171: samp. 5614A11 | B171: high-Ti | C171: Wrangellia | D171: 48.06 | E171: 1.74 | F171: 13.35 | G171: 12.96 | I171: 11.66 | K171: 0.19 | L171: 6.38 | M171: 10.51 | N171: 3.23 | O171: 0.44 | P171: 0.13 | Q171: 2.39 | R171: 49.4 | S171: 44 | T171: 362 | U171: 76 | V171: 67 | W171: 54 | X171: 181 | Y171: 93 | Z171: 17 | AA171: 9 | AB171: 381 | AC171: 27 | AD171: 86 | AE171: 8 | AF171: 0.40 | AG171: 80 | AH171: 7.23 | AI171: 18 | AJ171: 2.68 | AK171: 12.3 | AL171: 3.6 | AM171: 1.39 | AN171: 4.24 | AO171: 0.77 | AP171: 4.57 | AQ171: 0.89 | AR171: 2.53 | AS171: 0.36 | AT171: 2.26 | AU171: 0.329 | AV171: 2.5 | AW171: 0.5 | AX171: 0.62 | AY171: 0.24 | AZ171: 0.25 | BA171: 1.77 | BB171: 0.65 | BC171: 32.37 | BD171: 2.30 | BE171: 0.68 | BF171: 1.30 | BO171: 230 | BP171: 1.0 | BQ171: 6.20 | BR171: 10.52 | BS171: 4.58
A172: samp. 5614A13 | B172: high-Ti | C172: Wrangellia | D172: 47.78 | E172: 1.86 | F172: 12.91 | G172: 14.23 | I172: 12.80 | K172: 0.21 | L172: 6.47 | M172: 10.24 | N172: 2.91 | O172: 0.44 | P172: 0.15 | Q172: 2.02 | R172: 47.4 | S172: 42 | T172: 372 | U172: 72 | V172: 65 | W172: 52 | X172: 165 | Y172: 102 | Z172: 20 | AA172: 8 | AB172: 274 | AC172: 29 | AD172: 98 | AE172: 9 | AF172: 0.10 | AG172: 85 | AH172: 8.51 | AI172: 20.9 | AJ172: 3.08 | AK172: 14.7 | AL172: 4.2 | AM172: 1.59 | AN172: 4.79 | AO172: 0.87 | AP172: 5.12 | AQ172: 0.98 | AR172: 2.83 | AS172: 0.413 | AT172: 2.54 | AU172: 0.375 | AV172: 2.9 | AW172: 0.7 | AX172: 0.66 | AY172: 0.26 | AZ172: 0.22 | BA172: 1.84 | BB172: 0.62 | BC172: 137.82 | BD172: 2.40 | BE172: 0.69 | BF172: 1.31 | BO172: 230 | BP172: 1.0 | BQ172: 6.95 | BR172: 12.39 | BS172: 5.15
A173: samp. 5615A1 | B173: high-Ti | C173: Wrangellia | D173: 47.61 | E173: 1.87 | F173: 13.55 | G173: 14.34 | I173: 12.90 | K173: 0.19 | L173: 7.42 | M173: 9.86 | N173: 2.87 | O173: 0.21 | P173: 0.15 | Q173: 1.92 | R173: 50.6 | S173: 45 | T173: 380 | U173: 172 | V173: 86 | W173: 57 | X173: 182 | Y173: 84 | Z173: 19 | AA173: 5 | AB173: 287 | AC173: 29 | AD173: 98 | AE173: 9 | AF173: 0.90 | AG173: 39 | AH173: 8.17 | AI173: 20.2 | AJ173: 3.01 | AK173: 14.3 | AL173: 4.12 | AM173: 1.58 | AN173: 4.88 | AO173: 0.85 | AP173: 5.01 | AQ173: 0.94 | AR173: 2.7 | AS173: 0.404 | AT173: 2.51 | AU173: 0.365 | AV173: 3 | AW173: 0.6 | AX173: 0.64 | AY173: 0.27 | AZ173: 0.20 | BA173: 1.82 | BB173: 0.62 | BC173: 14.85 | BD173: 2.34 | BE173: 0.73 | BF173: 1.28 | BO173: 230 | BP173: 1.0 | BQ173: 6.80 | BR173: 11.89 | BS173: 5.09
A174: samp. 5615A8 | B174: high-Ti | C174: Wrangellia | D174: 48.31 | E174: 1.75 | F174: 13.45 | G174: 13.48 | I174: 12.13 | K174: 0.20 | L174: 6.78 | M174: 11.77 | N174: 1.80 | O174: 0.03 | P174: 0.14 | Q174: 1.74 | R174: 49.9 | S174: 40 | T174: 353 | U174: 173 | V174: 96 | W174: 53 | X174: 175 | Y174: 88 | Z174: 20 | AA174: 2 | AB174: 194 | AC174: 28 | AD174: 91 | AE174: 8 | AF174: 0.60 | AG174: 39 | AH174: 7.32 | AI174: 18.4 | AJ174: 2.69 | AK174: 12.9 | AL174: 3.78 | AM174: 1.47 | AN174: 4.4 | AO174: 0.79 | AP174: 4.65 | AQ174: 0.89 | AR174: 2.58 | AS174: 0.379 | AT174: 2.34 | AU174: 0.339 | AV174: 2.7 | AW174: 0.6 | AX174: 0.59 | AY174: 0.22 | AZ174: 0.21 | BA174: 1.79 | BB174: 0.62 | BC174: 20.53 | BD174: 2.24 | BE174: 0.72 | BF174: 1.25 | BO174: 230 | BP174: 1.0 | BQ174: 6.31 | BR174: 10.66 | BS174: 4.75
A175: samp. 5615A10 | B175: high-Ti | C175: Wrangellia | D175: 47.29 | E175: 1.81 | F175: 13.70 | G175: 14.23 | I175: 12.80 | K175: 0.20 | L175: 6.77 | M175: 10.65 | N175: 2.58 | O175: 0.21 | P175: 0.14 | Q175: 1.57 | R175: 48.5 | S175: 40 | T175: 363 | U175: 166 | V175: 94 | W175: 52 | X175: 185 | Y175: 86 | Z175: 20 | AA175: 9 | AB175: 279 | AC175: 28 | AD175: 96 | AE175: 9 | AF175: 1.30 | AG175: 61 | AH175: 7.34 | AI175: 18.5 | AJ175: 2.84 | AK175: 13.2 | AL175: 3.92 | AM175: 1.48 | AN175: 4.65 | AO175: 0.81 | AP175: 4.79 | AQ175: 0.91 | AR175: 2.58 | AS175: 0.38 | AT175: 2.42 | AU175: 0.348 | AV175: 2.8 | AW175: 0.6 | AX175: 0.61 | AY175: 0.24 | AZ175: 0.19 | BA175: 1.80 | BB175: 0.60 | BC175: 9.80 | BD175: 2.18 | BE175: 0.72 | BF175: 1.21 | BO175: 230 | BP175: 1.0 | BQ175: 6.50 | BR175: 10.68 | BS175: 4.91
A176: samp. 5616A2 | B176: high-Ti | C176: Wrangellia | D176: 46.72 | E176: 1.94 | F176: 13.21 | G176: 14.11 | I176: 12.70 | K176: 0.24 | L176: 6.29 | M176: 11.19 | N176: 2.49 | O176: 0.01 | P176: 0.16 | Q176: 3.38 | R176: 46.9 | S176: 42 | T176: 401 | U176: 76 | V176: 58 | W176: 51 | X176: 210 | Y176: 85 | Z176: 22 | AB176: 67 | AC176: 30 | AD176: 100 | AE176: 9 | AG176: 8 | AH176: 8.87 | AI176: 21 | AJ176: 3.02 | AK176: 14.4 | AL176: 4.16 | AM176: 1.59 | AN176: 4.81 | AO176: 0.86 | AP176: 5.07 | AQ176: 0.92 | AR176: 2.72 | AS176: 0.413 | AT176: 2.62 | AU176: 0.378 | AV176: 2.9 | AW176: 0.6 | AX176: 0.63 | AY176: 0.25 | AZ176: 0.22 | BA176: 1.76 | BB176: 0.57 | BD176: 2.43 | BE176: 0.69 | BF176: 1.38 | BO176: 230 | BP176: 1.0 | BQ176: 6.88 | BR176: 12.91 | BS176: 5.31
A177: samp. 5618A1 | B177: high-Ti | C177: Wrangellia | D177: 48.61 | E177: 1.75 | F177: 12.82 | G177: 13.81 | I177: 12.43 | K177: 0.21 | L177: 6.96 | M177: 10.54 | N177: 2.76 | O177: 0.50 | P177: 0.14 | Q177: 1.80 | R177: 50.0 | S177: 43 | T177: 367 | U177: 114 | V177: 79 | W177: 53 | X177: 25 | Y177: 89 | Z177: 19 | AA177: 8 | AB177: 227 | AC177: 27 | AD177: 89 | AE177: 8 | AF177: 0.40 | AG177: 103 | AH177: 7.72 | AI177: 19.1 | AJ177: 2.85 | AK177: 13.5 | AL177: 3.98 | AM177: 1.47 | AN177: 4.56 | AO177: 0.79 | AP177: 4.71 | AQ177: 0.88 | AR177: 2.56 | AS177: 0.375 | AT177: 2.35 | AU177: 0.342 | AV177: 2.7 | AW177: 0.6 | AX177: 0.57 | AY177: 0.22 | AZ177: 0.22 | BA177: 1.88 | BB177: 0.59 | BC177: 29.76 | BD177: 2.36 | BE177: 0.70 | BF177: 1.25 | BO177: 230 | BP177: 1.0 | BQ177: 6.39 | BR177: 11.24 | BS177: 4.77
A178: samp. 5618A3 | B178: high-Ti | C178: Wrangellia | D178: 47.90 | E178: 1.36 | F178: 13.79 | G178: 11.62 | I178: 10.46 | K178: 0.16 | L178: 6.57 | M178: 12.08 | N178: 3.13 | O178: 0.12 | P178: 0.10 | Q178: 3.17 | R178: 52.8 | S178: 42 | T178: 313 | U178: 194 | V178: 67 | W178: 46 | X178: 125 | Y178: 92 | Z178: 18 | AA178: 3 | AB178: 170 | AC178: 21 | AD178: 67 | AE178: 7 | AG178: 17 | AH178: 6.57 | AI178: 15.4 | AJ178: 2.22 | AK178: 10.5 | AL178: 2.98 | AM178: 1.21 | AN178: 3.56 | AO178: 0.63 | AP178: 3.84 | AQ178: 0.75 | AR178: 2.16 | AS178: 0.331 | AT178: 2.12 | AU178: 0.296 | AV178: 2 | AW178: 0.5 | AX178: 0.45 | AY178: 0.22 | AZ178: 0.27 | BA178: 1.56 | BB178: 0.57 | BD178: 2.22 | BE178: 0.65 | BF178: 1.42 | BO178: 230 | BP178: 0.9 | BQ178: 5.21 | BR178: 9.56 | BS178: 4.30
A179: samp. 5618A4 | B179: high-Ti | C179: Wrangellia | D179: 40.29 | E179: 2.16 | F179: 16.27 | G179: 18.10 | I179: 16.29 | K179: 0.28 | L179: 9.70 | M179: 6.78 | N179: 0.58 | O179: 0.52 | P179: 0.18 | Q179: 4.77 | R179: 51.5 | S179: 54 | T179: 499 | U179: 159 | V179: 68 | W179: 62 | X179: 109 | Y179: 75 | Z179: 24 | AA179: 10 | AB179: 220 | AC179: 38 | AD179: 112 | AE179: 10 | AF179: 0.60 | AG179: 109 | AH179: 10.7 | AI179: 24.3 | AJ179: 3.48 | AK179: 15.9 | AL179: 4.53 | AM179: 2.04 | AN179: 5.64 | AO179: 0.99 | AP179: 5.95 | AQ179: 1.15 | AR179: 3.36 | AS179: 0.495 | AT179: 3.11 | AU179: 0.455 | AV179: 3.3 | AW179: 0.7 | AX179: 0.71 | AY179: 0.34 | AZ179: 0.25 | BA179: 1.62 | BB179: 0.61 | BC179: 24.71 | BD179: 2.47 | BE179: 0.73 | BF179: 1.53 | BO179: 230 | BP179: 1.0 | BQ179: 8.07 | BR179: 15.57 | BS179: 6.31
A180: samp. 4722A4(1) | B180: low-Ti | C180: Wrangellia | D180: 43.85 | E180: 0.43 | F180: 11.56 | G180: 10.11 | I180: =0.8998*G180 -> 9.10 | K180: 0.16 | L180: 17.74 | M180: 9.43 | N180: 0.53 | O180: 0.10 | P180: 0.04 | Q180: 5.45 | R180: 77.7 | S180: 38 | T180: 201 | U180: 1710 | V180: 755 | W180: 80 | X180: 92 | Y180: 77 | Z180: 10 | AA180: 5 | AB180: 100 | AC180: 16 | AD180: 16 | AE180: 0.7 | AF180: 2.80 | AG180: 19 | AH180: 1.06 | AI180: 2.60 | AJ180: 0.41 | AK180: 2.60 | AL180: 0.92 | AM180: 0.38 | AN180: 1.40 | AO180: 0.30 | AP180: 2.16 | AQ180: 0.49 | AR180: 1.53 | AS180: 0.24 | AT180: 1.58 | AU180: 0.23 | AV180: 0.50 | AW180: 0.09 | AX180: 0.10 | AY180: 0.05 | AZ180: 0.38 | BA180: 0.65 | BB180: 1.20 | BC180: 0.75 | BD180: 0.48 | BE180: 1.46 | BF180: 0.74 | BO180: 230 | BP180: 1.1 | BQ180: 2.93 | BR180: 1.54 | BS180: 3.20
A181: samp. 4722A4(2) | B181: low-Ti | C181: Wrangellia | D181: 43.84 | E181: 0.43 | F181: 11.74 | G181: 9.65 | I181: 8.68 | K181: 0.16 | L181: 17.51 | M181: 9.36 | N181: 0.53 | O181: 0.13 | P181: 0.00 | Q181: 5.33 | R181: 78.2 | S181: 40 | T181: 189 | U181: 1830 | V181: 755 | W181: 85 | X181: 83 | Y181: 55 | Z181: 9 | AA181: 4 | AB181: 97 | AC181: 13 | AD181: 19 | AE181: 0.9 | AF181: 2.70 | AG181: 18 | AH181: 0.96 | AI181: 2.50 | AJ181: 0.38 | AK181: 2.30 | AL181: 0.84 | AM181: 0.37 | AN181: 1.42 | AO181: 0.30 | AP181: 2.17 | AQ181: 0.50 | AR181: 1.54 | AS181: 0.23 | AT181: 1.52 | AU181: 0.23 | AV181: 0.60 | AW181: 0.03 | AX181: 0.11 | AY181: 0.03 | AZ181: 0.26 | BA181: 0.61 | BB181: 1.03 | BC181: 0.85 | BD181: 0.45 | BE181: 1.34 | BF181: 0.74 | BO181: 230 | BP181: 1.2 | BQ181: 2.94 | BR181: 1.40 | BS181: 3.08
A182: samp. 4722A4(3) | B182: low-Ti | C182: Wrangellia | D182: 42.94 | E182: 0.42 | F182: 11.26 | G182: 10.82 | I182: 9.74 | K182: 0.16 | L182: 18.28 | M182: 8.98 | N182: 0.54 | O182: 0.02 | P182: 0.03 | Q182: 5.70 | R182: 77.0 | S182: 36 | T182: 194 | U182: 1750 | V182: 755 | W182: 80 | X182: 83 | Y182: 55 | Z182: 11 | AA182: 6 | AB182: 93 | AC182: 15 | AD182: 16 | AE182: 0.7 | AF182: 5.80 | AG182: 27 | AH182: 1.08 | AI182: 2.60 | AJ182: 0.43 | AK182: 2.50 | AL182: 0.87 | AM182: 0.41 | AN182: 1.45 | AO182: 0.30 | AP182: 2.11 | AQ182: 0.47 | AR182: 1.54 | AS182: 0.24 | AT182: 1.62 | AU182: 0.24 | AV182: 0.60 | AX182: 0.09 | AY182: 0.07 | AZ182: 0.36 | BA182: 0.60 | BB182: 1.08 | BC182: 0.32 | BD182: 0.48 | BE182: 1.46 | BF182: 0.80 | BO182: 230 | BP182: 1.1 | BQ182: 2.86 | BR182: 1.57 | BS182: 3.29
A183: samp. 4723A3 | B183: low-Ti | C183: Wrangellia | D183: 44.41 | E183: 0.54 | F183: 12.75 | G183: 10.33 | I183: 9.29 | K183: 0.15 | L183: 15.42 | M183: 8.73 | N183: 0.78 | O183: 0.07 | P183: 0.05 | Q183: 5.61 | R183: 74.7 | S183: 41 | T183: 218 | U183: 1570 | V183: 656 | W183: 73 | X183: 110 | Y183: 60 | Z183: 12 | AA183: 2 | AB183: 64 | AC183: 17 | AD183: 29 | AE183: 1.3 | AF183: 0.90 | AG183: 15 | AH183: 1.80 | AI183: 4.50 | AJ183: 0.67 | AK183: 3.80 | AL183: 1.27 | AM183: 0.51 | AN183: 1.86 | AO183: 0.37 | AP183: 2.60 | AQ183: 0.59 | AR183: 1.86 | AS183: 0.29 | AT183: 1.85 | AU183: 0.28 | AV183: 0.90 | AW183: 0.06 | AX183: 0.20 | AY183: 0.09 | AZ183: 0.18 | BA183: 0.76 | BB183: 1.29 | BC183: 4.64 | BD183: 0.70 | BE183: 1.42 | BF183: 0.92 | BI183: 0.70398 | BJ183: 0.51278 | BK183: 8.5 | BL183: 37.996 | BM183: 15.561 | BN183: 18.573 | BO183: 230 | BP183: 1.0 | BQ183: 3.53 | BR183: 2.62 | BS183: 3.75
A184: samp. 4723A4 | B184: low-Ti | C184: Wrangellia | D184: 44.39 | E184: 0.66 | F184: 14.93 | G184: 10.11 | I184: 9.10 | K184: 0.14 | L184: 13.02 | M184: 9.73 | N184: 1.56 | O184: 0.07 | P184: 0.06 | Q184: 4.91 | R184: 71.8 | S184: 38 | T184: 235 | U184: 725 | V184: 339 | W184: 60 | X184: 106 | Y184: 63 | Z184: 13 | AA184: 2 | AB184: 132 | AC184: 18 | AD184: 36 | AE184: 1.1 | AF184: 0.80 | AG184: 20 | AH184: 1.78 | AI184: 4.50 | AJ184: 0.71 | AK184: 4.10 | AL184: 1.48 | AM184: 0.63 | AN184: 2.16 | AO184: 0.42 | AP184: 2.79 | AQ184: 0.60 | AR184: 1.79 | AS184: 0.26 | AT184: 1.67 | AU184: 0.25 | AV184: 1.00 | AW184: 0.05 | AX184: 0.10 | AY184: 0.05 | AZ184: -0.05 | BA184: 0.98 | BB184: 0.76 | BC184: 2.61 | BD184: 0.76 | BE184: 2.08 | BF184: 0.78 | BI184: 0.70423 | BJ184: 0.51273 | BK184: 7.6 | BL184: 37.858 | BM184: 15.517 | BN184: 17.868 | BO184: 230 | BP184: 1.2 | BQ184: 3.79 | BR184: 2.59 | BS184: 3.39
A185: samp. 4723A13(1) | B185: low-Ti | C185: Wrangellia | D185: 44.62 | E185: 0.44 | F185: 13.71 | G185: 10.38 | I185: 9.34 | K185: 0.14 | L185: 14.47 | M185: 9.37 | N185: 0.86 | O185: 0.06 | P185: 0.05 | Q185: 5.59 | R185: 73.4 | S185: 44 | T185: 219 | U185: 1370 | V185: 583 | W185: 72 | X185: 142 | Y185: 106 | Z185: 12 | AA185: 2 | AB185: 73 | AC185: 16 | AD185: 24 | AE185: 0.8 | AF185: 0.70 | AG185: 13 | AH185: 1.40 | AI185: 3.40 | AJ185: 0.52 | AK185: 3.00 | AL185: 1.00 | AM185: 0.46 | AN185: 1.71 | AO185: 0.36 | AP185: 2.54 | AQ185: 0.59 | AR185: 1.89 | AS185: 0.29 | AT185: 1.89 | AU185: 0.29 | AV185: 0.70 | AW185: 0.04 | AX185: 0.15 | AY185: 0.08 | AZ185: 0.10 | BA185: 0.59 | BB185: 1.57 | BC185: 4.47 | BD185: 0.53 | BE185: 1.91 | BF185: 0.90 | BO185: 230 | BP185: 1.1 | BQ185: 3.45 | BR185: 2.04 | BS185: 3.83
A186: samp. 4723A13(2) | B186: low-Ti | C186: Wrangellia | D186: 44.71 | E186: 0.44 | F186: 13.75 | G186: 10.37 | I186: 9.33 | K186: 0.14 | L186: 14.48 | M186: 9.36 | N186: 0.86 | O186: 0.07 | P186: 0.05 | Q186: 5.59 | R186: 73.4 | T186: 222 | V186: 583 | X186: 98 | Y186: 62 | Z186: 12 | AA186: 1 | AB186: 73 | AC186: 17 | AD186: 22 | AE186: 0.7 | AF186: 0.70 | AG186: 13 | AH186: 1.36 | AI186: 3.40 | AJ186: 0.51 | AK186: 2.90 | AL186: 1.01 | AM186: 0.44 | AN186: 1.69 | AO186: 0.35 | AP186: 2.50 | AQ186: 0.56 | AR186: 1.79 | AS186: 0.28 | AT186: 1.84 | AU186: 0.28 | AV186: 0.70 | AW186: 0.04 | AX186: 0.14 | AY186: 0.07 | AZ186: 0.14 | BA186: 0.61 | BB186: 1.68 | BC186: 4.18 | BD186: 0.53 | BE186: 2.00 | BF186: 0.87 | BO186: 230 | BP186: 1.1 | BQ186: 3.39 | BR186: 1.98 | BS186: 3.73
A187: samp. 5614A1 | B187: low-Ti | C187: Wrangellia | D187: 46.24 | E187: 0.47 | F187: 14.57 | G187: 8.57 | I187: 7.71 | K187: 0.15 | L187: 12.11 | M187: 10.81 | N187: 1.30 | O187: 0.01 | P187: 0.04 | Q187: 4.91 | R187: 73.7 | S187: 45 | T187: 222 | U187: 1370 | V187: 564 | W187: 69 | X187: 104 | Y187: 53 | Z187: 11 | AA187: 1 | AB187: 120 | AC187: 18 | AD187: 22 | AE187: 0.7 | AF187: 0.40 | AG187: 18 | AH187: 1.79 | AI187: 4.30 | AJ187: 0.65 | AK187: 3.40 | AL187: 1.11 | AM187: 0.50 | AN187: 1.74 | AO187: 0.37 | AP187: 2.67 | AQ187: 0.60 | AR187: 1.87 | AS187: 0.30 | AT187: 2.01 | AU187: 0.31 | AV187: 0.70 | AX187: 0.15 | AY187: 0.11 | AZ187: 0.16 | BA187: 0.61 | BB187: 1.80 | BC187: 7.83 | BD187: 0.64 | BE187: 2.00 | BF187: 1.04 | BG187: 1395 | BH187: 1300 | BO187: 230 | BP187: 1.0 | BQ187: 3.62 | BR187: 2.61 | BS187: 4.08
A188: samp. 5615A7 | B188: low-Ti | C188: Wrangellia | D188: 44.08 | E188: 0.45 | F188: 11.68 | G188: 10.98 | I188: 9.88 | K188: 0.18 | L188: 17.94 | M188: 9.19 | N188: 0.37 | O188: 0.11 | P188: 0.04 | Q188: 4.98 | R188: 76.4 | S188: 40 | T188: 222 | U188: 1850 | V188: 680 | W188: 89 | X188: 80 | Y188: 54 | Z188: 10 | AA188: 6 | AB188: 120 | AC188: 15 | AD188: 15 | AE188: 0.7 | AF188: 4.50 | AG188: 24 | AH188: 1.02 | AI188: 2.60 | AJ188: 0.41 | AK188: 2.40 | AL188: 0.85 | AM188: 0.36 | AN188: 1.35 | AO188: 0.30 | AP188: 2.12 | AQ188: 0.46 | AR188: 1.46 | AS188: 0.24 | AT188: 1.58 | AU188: 0.25 | AV188: 0.50 | AX188: 0.08 | AY188: 0.07 | AZ188: 0.41 | BA188: 0.60 | BB188: 0.96 | BC188: 0.37 | BD188: 0.46 | BE188: 1.36 | BF188: 0.78 | BO188: 230 | BP188: 1.1 | BQ188: 2.88 | BR188: 1.48 | BS188: 3.20
A189: samp. 5615A12 | B189: low-Ti | C189: Wrangellia | D189: 45.35 | E189: 0.64 | F189: 14.07 | G189: 10.40 | I189: 9.36 | K189: 0.14 | L189: 12.56 | M189: 9.00 | N189: 2.11 | O189: 0.02 | P189: 0.06 | Q189: 4.68 | R189: 70.5 | S189: 38 | T189: 215 | U189: 906 | V189: 368 | W189: 67 | X189: 83 | Y189: 50 | Z189: 14 | AA189: 2 | AB189: 189 | AC189: 16 | AD189: 35 | AE189: 1.4 | AF189: 0.60 | AG189: 15 | AH189: 1.73 | AI189: 4.70 | AJ189: 0.77 | AK189: 4.40 | AL189: 1.47 | AM189: 0.61 | AN189: 2.13 | AO189: 0.42 | AP189: 2.78 | AQ189: 0.59 | AR189: 1.78 | AS189: 0.27 | AT189: 1.75 | AU189: 0.27 | AV189: 1.10 | AX189: 0.09 | AY189: 0.07 | AZ189: 0.03 | BA189: 0.93 | BB189: 0.54 | BC189: 3.13 | BD189: 0.71 | BE189: 1.59 | BF189: 0.76 | BO189: 230 | BP189: 1.2 | BQ189: 3.77 | BR189: 2.52 | BS189: 3.55
A190: samp. 5616A1 | B190: low-Ti | C190: Wrangellia | D190: 43.70 | E190: 0.44 | F190: 13.66 | G190: 10.47 | I190: 9.42 | K190: 0.16 | L190: 15.55 | M190: 8.71 | N190: 0.98 | O190: 0.04 | P190: 0.04 | Q190: 6.05 | R190: 74.6 | S190: 38 | T190: 204 | U190: 3000 | V190: 559 | W190: 68 | X190: 77 | Y190: 53 | Z190: 12 | AA190: 1 | AB190: 112 | AC190: 16 | AD190: 22 | AE190: 0.9 | AF190: 0.80 | AG190: 20 | AH190: 1.52 | AI190: 3.60 | AJ190: 0.55 | AK190: 3.00 | AL190: 1.02 | AM190: 0.45 | AN190: 1.57 | AO190: 0.34 | AP190: 2.44 | AQ190: 0.55 | AR190: 1.73 | AS190: 0.27 | AT190: 1.77 | AU190: 0.28 | AV190: 0.70 | AX190: 0.14 | AY190: 0.10 | AZ190: 0.22 | BA190: 0.64 | BB190: 1.30 | BC190: 3.65 | BD190: 0.62 | BE190: 1.56 | BF190: 0.96 | BO190: 230 | BP190: 1.1 | BQ190: 3.31 | BR190: 2.21 | BS190: 3.59
A191: samp. 93G171 | B191: low-Ti | C191: Wrangellia | D191: 47.93 | E191: 0.46 | F191: 14.02 | G191: 9.93 | I191: 8.94 | K191: 0.19 | L191: 15.84 | M191: 10.42 | N191: 1.02 | O191: 0.11 | P191: 0.08 | R191: 76.0 | T191: 140 | U191: 606 | V191: 491 | X191: 91 | Y191: 57 | AC191: 13 | AD191: 24 | AE191: 0.9 | AG191: 20 | AH191: 1.40 | AI191: 3.60 | AJ191: 0.56 | AK191: 2.90 | AL191: 1.23 | AM191: 0.47 | AN191: 2.10 | AO191: 0.32 | AP191: 2.38 | AQ191: 0.64 | AR191: 2.11 | AS191: 0.30 | AT191: 1.97 | AU191: 0.28 | AV191: 0.80 | AW191: 0.10 | AX191: 0.15 | AZ191: 0.07 | BA191: 0.69 | BB191: 1.40 | BD191: 0.51 | BE191: 1.70 | BF191: 0.74 | BG191: 1440 | BH191: 1335 | BO191: 230 | BP191: 1.0 | BQ191: 3.23 | BR191: 2.04 | BS191: 4.00
A192: samp. 4723A2 | B192: low-Ti | C192: Wrangellia | D192: 46.73 | E192: 0.61 | F192: 15.24 | G192: 10.26 | I192: 9.23 | K192: 0.16 | L192: 10.27 | M192: 9.93 | N192: 2.26 | O192: 0.38 | P192: 0.06 | Q192: 3.70 | R192: 66.5 | S192: 47 | T192: 261 | U192: 358 | V192: 163 | W192: 49 | X192: 111 | Y192: 61 | Z192: 13 | AA192: 10 | AB192: 271 | AC192: 20 | AD192: 33 | AE192: 1.5 | AF192: 6.50 | AG192: 84 | AH192: 1.94 | AI192: 5.00 | AJ192: 0.74 | AK192: 4.20 | AL192: 1.41 | AM192: 0.52 | AN192: 2.09 | AO192: 0.42 | AP192: 2.91 | AQ192: 0.67 | AR192: 2.10 | AS192: 0.32 | AT192: 2.06 | AU192: 0.31 | AV192: 1.00 | AW192: 0.08 | AX192: 0.23 | AY192: 0.10 | AZ192: 0.20 | BA192: 0.76 | BB192: 1.29 | BC192: 0.74 | BD192: 0.68 | BE192: 1.40 | BF192: 0.89 | BO192: 230 | BP192: 1.1 | BQ192: 3.95 | BR192: 2.82 | BS192: 4.18
A193: samp. 5614A3 | B193: low-Ti | C193: Wrangellia | D193: 48.43 | E193: 0.48 | F193: 14.90 | G193: 7.59 | I193: 6.83 | K193: 0.13 | L193: 10.66 | M193: 10.68 | N193: 1.51 | O193: 0.06 | P193: 0.04 | Q193: 4.13 | R193: =((L193/40.305)/((L193/40.305)+(I193/71.847)))*100 -> 73.6 | S193: 49 | T193: 217 | U193: 1420 | V193: 551 | W193: 76 | X193: 111 | Y193: 51 | Z193: 12 | AA193: 2 | AB193: 130 | AC193: 17 | AD193: 24 | AE193: 0.8 | AF193: 0.40 | AG193: 20 | AH193: 1.71 | AI193: 4.00 | AJ193: 0.59 | AK193: 3.20 | AL193: 1.09 | AM193: 0.48 | AN193: 1.71 | AO193: 0.37 | AP193: 2.66 | AQ193: 0.59 | AR193: 1.87 | AS193: 0.29 | AT193: 1.99 | AU193: 0.31 | AV193: 0.70 | AX193: 0.17 | AY193: 0.11 | AZ193: =1.74+(LOG(AE193/AC193))-1.92*(LOG(AD193/AC193)) -> 0.13 | BA193: 0.61 | BB193: 1.78 | BC193: 8.88 | BD193: 0.62 | BE193: 1.91 | BF193: 1.01 | BO193: 230 | BP193: 1.0 | BQ193: 3.61 | BR193: 2.49 | BS193: 4.04
A194: samp. 5614A5 | B194: low-Ti | C194: Wrangellia | D194: 47.10 | E194: 0.51 | F194: 14.52 | G194: 9.12 | I194: 8.21 | K194: 0.14 | L194: 10.92 | M194: 10.78 | N194: 2.10 | O194: 0.01 | P194: 0.05 | Q194: 4.67 | R194: 70.3 | S194: 44 | T194: 206 | U194: 797 | V194: 315 | W194: 69 | X194: 96 | Y194: 48 | Z194: 13 | AA194: 0 | AB194: 141 | AC194: 16 | AD194: 19 | AE194: 0.5 | AG194: 9 | AH194: 0.91 | AI194: 2.50 | AJ194: 0.43 | AK194: 2.70 | AL194: 1.02 | AM194: 0.53 | AN194: 1.60 | AO194: 0.34 | AP194: 2.35 | AQ194: 0.52 | AR194: 1.67 | AS194: 0.27 | AT194: 1.80 | AU194: 0.27 | AV194: 0.60 | AX194: 0.08 | AY194: 0.06 | AZ194: 0.09 | BA194: =(AL194/0.444)/(AT194/0.493) -> 0.63 | BB194: =(AX194/0.085)/(AE194/0.713) -> 1.34 | BD194: =(AH194/0.687)/(AT194/0.493) -> 0.36 | BE194: =(AD194/11.2)/(AE194/0.713) -> 2.42 | BF194: =(AH194/0.687)/(AL194/0.444) -> 0.58 | BO194: 230 | BP194: 1.2 | BQ194: 3.19 | BR194: 1.32 | BS194: 3.65
A195: samp. 5616A7 | B195: low-Ti | C195: Wrangellia | D195: 46.75 | E195: 0.73 | F195: 15.92 | G195: 10.88 | I195: 9.79 | K195: 0.15 | L195: 8.70 | M195: 11.69 | N195: 2.12 | O195: 0.07 | P195: 0.04 | Q195: 2.86 | R195: 61.3 | S195: 51 | T195: 270 | U195: 346 | V195: 122 | W195: 57 | X195: 111 | Y195: 51 | Z195: 15 | AA195: 7 | AB195: 181 | AC195: 19 | AD195: 26 | AE195: 1.1 | AF195: 0.30 | AG195: 23 | AH195: 1.51 | AI195: 3.80 | AJ195: 0.59 | AK195: 3.50 | AL195: 1.36 | AM195: 0.64 | AN195: 2.05 | AO195: 0.43 | AP195: 2.90 | AQ195: 0.61 | AR195: 1.91 | AS195: 0.31 | AT195: 2.02 | AU195: 0.30 | AV195: 0.80 | AX195: 0.14 | AY195: 0.09 | AZ195: 0.24 | BA195: 0.75 | BB195: 1.07 | BC195: =(AX195/0.085)/(AF195/1.775) -> 9.75 | BD195: 0.54 | BE195: 1.50 | BF195: 0.72 | BG195: 1493 | BH195: 1387 | BO195: 230 | BP195: =(BQ195)/((BR195^(4/13))*(BS195^(9/13))) -> 1.2 | BQ195: =AP195/0.737 -> 3.93 | BR195: =AH195/0.687 -> 2.20 | BS195: =AT195/0.493 -> 4.10
A196: samp. 4722A4 | B196: low-Ti | C196: Wrangellia | D196: 46.05 | E196: 0.47 | F196: 12.47 | G196: 11.37 | I196: 10.23 | K196: 0.19 | L196: 18.67 | M196: 9.71 | N196: 0.57 | O196: 0.12 | P196: 0.04 | Q196: 5.28 | R196: 76.5 | S196: 38 | T196: 184 | U196: 1784 | V196: 755 | W196: 64 | X196: 71 | Y196: 62 | Z196: 10 | AA196: 3 | AB196: 77 | AC196: 14 | AD196: 19 | AE196: 1.0 | AF196: 2.26 | AG196: 37 | AH196: 2.00 | AI196: 1.00 | AJ196: 0.51 | AK196: 2.70 | AL196: 1.07 | AM196: 0.44 | AN196: 1.73 | AO196: 0.35 | AP196: 2.53 | AQ196: 0.61 | AR196: 1.88 | AS196: 0.27 | AT196: 1.83 | AU196: 0.29 | AV196: 0.48 | AW196: 0.05 | AX196: 0.07 | AY196: 0.05 | AZ196: 0.34 | BA196: 0.65 | BB196: 0.59 | BC196: 0.65 | BD196: 0.78 | BE196: 1.21 | BF196: 1.21 | BO196: 230 | BP196: 1.0 | BQ196: 3.44 | BR196: 2.91 | BS196: 3.71
A197: samp. 4723A13 | B197: low-Ti | C197: Wrangellia | D197: 46.91 | E197: 0.50 | F197: 14.77 | G197: 10.90 | I197: 9.81 | K197: 0.17 | L197: 15.02 | M197: 10.21 | N197: 1.04 | O197: 0.05 | P197: 0.05 | Q197: 5.21 | R197: 73.2 | S197: 43 | T197: 208 | U197: 1541 | V197: 583 | W197: 60 | X197: 75 | Y197: 68 | Z197: 11 | AA197: 1 | AB197: 63 | AC197: 17 | AD197: 27 | AE197: 1.0 | AF197: 0.47 | AG197: 20 | AH197: 2.00 | AI197: 3.00 | AJ197: 0.70 | AK197: 3.54 | AL197: 1.33 | AM197: 0.55 | AN197: 2.09 | AO197: 0.43 | AP197: 3.03 | AQ197: 0.73 | AR197: 2.26 | AS197: 0.34 | AT197: 2.19 | AU197: 0.35 | AV197: 0.63 | AW197: 0.05 | AX197: 0.11 | AY197: 0.03 | AZ197: 0.11 | BA197: 0.67 | BB197: 0.92 | BC197: 4.93 | BD197: 0.66 | BE197: 1.72 | BF197: 0.97 | BO197: 230 | BP197: 1.1 | BQ197: 4.11 | BR197: 2.91 | BS197: 4.44
A198: samp. 4722A2 | B198: high-Ti | C198: Wrangellia | D198: 48.48 | E198: 1.89 | F198: 14.23 | G198: 13.96 | I198: 12.56 | K198: 0.21 | L198: 7.18 | M198: 11.87 | N198: 2.06 | O198: 0.11 | P198: 0.16 | Q198: 1.49 | R198: 50.5 | T198: 351 | U198: 160 | V198: 95 | Y198: 126 | Z198: 19 | AA198: 1 | AB198: 182 | AC198: 26 | AD198: 109 | AE198: 9 | AG198: 39 | AH198: 5 | AI198: 16 | AY198: 1 | AZ198: 0.10 | BE198: 0.74 | BO198: 230 | BR198: 7.28
A199: samp. 231 | B199: high-Ti | C199: Wrangellia | D199: 45.16 | E199: 2.17 | F199: 14.82 | G199: 13.60 | I199: 12.24 | K199: 0.25 | L199: 7.85 | M199: 9.21 | N199: 2.42 | O199: 0.42 | P199: 0.18 | Q199: 3.92 | R199: 53.3 | S199: 40 | T199: 446 | U199: 214 | V199: 78 | W199: 49 | X199: 230 | Y199: 202 | Z199: 22 | AA199: 7 | AB199: 171 | AC199: 33 | AD199: 113 | AE199: 10 | AF199: 1.40 | AG199: 83 | AH199: 9.32 | AI199: 22.4 | AJ199: 3.29 | AK199: 16.8 | AL199: 4.97 | AM199: 1.68 | AN199: 5.81 | AO199: 1.01 | AP199: 6.23 | AQ199: 1.28 | AR199: 3.83 | AS199: 0.55 | AT199: 3.29 | AU199: 0.47 | AV199: 3.2 | AW199: 0.59 | AX199: 0.62 | AY199: 0.19 | AZ199: 0.18 | BA199: 1.68 | BB199: 0.54 | BC199: 9.25 | BD199: 2.03 | BE199: 0.74 | BF199: 1.21 | BO199: 230 | BP199: 1.0 | BQ199: 8.45 | BR199: 13.57 | BS199: 6.67
A200: samp. 441 | B200: low-Ti | C200: Wrangellia | D200: 45.94 | E200: 0.55 | F200: 16.88 | G200: 11.14 | I200: 10.02 | K200: 0.21 | L200: 9.48 | M200: 7.08 | N200: 1.65 | O200: 3.17 | P200: 0.07 | Q200: 4.01 | R200: 62.8 | S200: 37 | T200: 181 | U200: 201 | V200: 139 | W200: 44 | X200: 56 | Y200: 71 | Z200: 15 | AA200: 38 | AB200: 174 | AC200: 15 | AD200: 21 | AE200: 1.0 | AF200: 2.00 | AG200: 258 | AH200: 1.10 | AI200: 2.70 | AJ200: 0.43 | AK200: 2.70 | AL200: 1.14 | AM200: 0.48 | AN200: 1.72 | AO200: 0.34 | AP200: 2.30 | AQ200: 0.53 | AR200: 1.74 | AS200: 0.27 | AT200: 1.61 | AU200: 0.24 | AV200: 0.70 | AW200: 0.02 | AX200: 0.14 | AY200: 0.07 | AZ200: 0.28 | BA200: 0.79 | BB200: 1.17 | BC200: 1.46 | BD200: 0.49 | BE200: 1.34 | BF200: 0.62 | BI200: 0.70345 | BJ200: 0.51267 | BK200: 6.3 | BL200: 38.363 | BM200: 15.570 | BN200: 18.951 | BO200: 230 | BP200: 1.2 | BQ200: 3.12 | BR200: 1.60 | BS200: 3.27
... 1114 more rows

Sheet Table S2
A1: Sample | B1: Type | C1: Location | D1: %ol addition | E1: SiO2 (wt%) | F1: TiO2 | G1: Al2O3 | H1: Cr2O3 | I1: Fe2O3 | J1: FeO | K1: MnO | L1: MgO | M1: CaO | N1: Na2O | O1: K2O | P1: NiO | Q1: P2O5 | R1: T(°C) | S1: TP_AFM | T1: TP new | U1: KD | V1: Xfo | W1: F_AFM | X1: Proj F1 | Y1: Proj F2 | Z1: Proj F3 | AA1: Residual Lithology | AB1: FeOsource | AC1: MgOsource | AD1: Fe2O3/TiO2
A2: samp. 11 | B2: high-Ti | C2: Wrangellia | D2: 34.7 | E2: 46.72 | F2: 0.99 | G2: 10.67 | H2: 0.00 | I2: 0.49 | J2: 10.29 | K2: 0.17 | L2: 19.46 | M2: 9.49 | N2: 1.51 | O2: 0.12 | P2: 0.00 | Q2: 0.09 | R2: 1425 | S2: 1561 | T2: 1550 | U2: 0.299 | V2: 0.918 | W2: 0.262 | X2: 0.288 | Y2: 0.262 | Z2: 0.262 | AA2: Spinel Peridotite | AB2: 8.02 | AC2: 38.12 | AD2: 0.5
D3: 30.0 | E3: 47.00 | F3: 1.03 | G3: 11.16 | H3: 0.00 | I3: 1.02 | J3: 9.74 | K3: 0.18 | L3: 18.13 | M3: 9.93 | N3: 1.58 | O3: 0.13 | P3: 0.00 | Q3: 0.10 | R3: 1403 | S3: 1533 | T3: 1516 | U3: 0.301 | V3: 0.917 | W3: 0.261 | X3: 0.275 | Y3: 0.261 | Z3: 0.285 | AA3: Spinel Peridotite | AB3: 8.02 | AC3: 38.12 | AD3: 1
A4: samp. 5727A2 | B4: low-Ti | C4: Wrangellia | D4: 27.6 | E4: 48.64 | F4: 0.42 | G4: 11.16 | H4: 0.00 | I4: 0.21 | J4: 10.28 | K4: 0.19 | L4: 18.68 | M4: 9.51 | N4: 0.84 | O4: 0.05 | P4: 0.00 | Q4: 0.03 | R4: 1400 | S4: 1544 | T4: 1530 | U4: 0.311 | V4: 0.912 | W4: 0.321 | X4: 0.321 | Y4: 0.521 | Z4: 0.579 | AA4: Harzburgite | AB4: 8.50 | AC4: 38.12 | AD4: 0.5
D5: 25.6 | E5: 48.80 | F5: 0.43 | G5: 11.38 | H5: 0.00 | I5: 0.42 | J5: 10.07 | K5: 0.19 | L5: 18.08 | M5: 9.70 | N5: 0.85 | O5: 0.05 | P5: 0.00 | Q5: 0.03 | R5: 1390 | S5: 1532 | T5: 1515 | U5: 0.313 | V5: 0.911 | W5: 0.315 | X5: 0.315 | Y5: 0.523 | Z5: 0.598 | AA5: Harzburgite | AB5: 8.51 | AC5: 38.12 | AD5: 1
A6: samp. 5727A7 | B6: low-Ti | C6: Wrangellia | D6: 30.2 | E6: 45.09 | F6: 0.42 | G6: 13.52 | H6: 0.00 | I6: 0.21 | J6: 10.68 | K6: 0.17 | L6: 19.23 | M6: 9.66 | N6: 0.89 | O6: 0.08 | P6: 0.00 | Q6: 0.05 | R6: 1415 | S6: 1556 | T6: 1544 | U6: 0.292 | V6: 0.917 | W6: 0.158 | X6: 0.270 | Y6: 0.171 | Z6: 0.158 | AA6: Garnet Peridotite | AB6: 8.02 | AC6: 38.12 | AD6: 0.5
D7: 28.7 | E7: 45.15 | F7: 0.43 | G7: 13.72 | H7: 0.00 | I7: 0.43 | J7: 10.46 | K7: 0.17 | L7: 18.80 | M7: 9.80 | N7: 0.91 | O7: 0.08 | P7: 0.00 | Q7: 0.05 | R7: 1408 | S7: 1547 | T7: 1533 | U7: 0.293 | V7: 0.916 | W7: 0.162 | X7: 0.266 | Y7: 0.172 | Z7: 0.162 | AA7: Garnet Peridotite | AB7: 8.02 | AC7: 38.12 | AD7: 1
A8: samp. 5731A4 | B8: low-Ti | C8: Wrangellia | D8: 20.7 | E8: 47.64 | F8: 0.40 | G8: 13.13 | H8: 0.00 | I8: 0.20 | J8: 9.46 | K8: 0.19 | L8: 16.92 | M8: 9.95 | N8: 1.54 | O8: 0.52 | P8: 0.00 | Q8: 0.05 | R8: 1380 | S8: 1506 | T8: 1485 | U8: 0.304 | V8: 0.913 | W8: 0.255 | X8: 0.273 | Y8: 0.255 | Z8: 0.280 | AA8: Spinel Peridotite | AB8: 8.20 | AC8: 38.12 | AD8: 0.5
D9: 18.9 | E9: 47.76 | F9: 0.41 | G9: 13.36 | H9: 0.00 | I9: 0.40 | J9: 9.25 | K9: 0.19 | L9: 16.35 | M9: 10.13 | N9: 1.57 | O9: 0.53 | P9: 0.00 | Q9: 0.05 | R9: 1370 | S9: 1493 | T9: 1470 | U9: 0.304 | V9: 0.912 | W9: 0.253 | X9: 0.268 | Y9: 0.253 | Z9: 0.289 | AA9: Spinel Peridotite | AB9: 8.23 | AC9: 38.12 | AD9: 1
A10: samp. 5802A2 | B10: low-Ti | C10: Wrangellia | D10: 24.3 | E10: 48.33 | F10: 0.38 | G10: 12.20 | H10: 0.00 | I10: 0.19 | J10: 9.68 | K10: 0.19 | L10: 17.27 | M10: 10.13 | N10: 1.49 | O10: 0.09 | P10: 0.00 | Q10: 0.05 | R10: 1381 | S10: 1514 | T10: 1494 | U10: 0.308 | V10: 0.912 | W10: 0.286 | X10: 0.286 | Y10: 0.349 | Z10: 0.405 | AA10: Harzburgite | AB10: 8.37 | AC10: 38.12 | AD10: 0.5
D11: 22.5 | E11: 48.46 | F11: 0.39 | G11: 12.41 | H11: 0.00 | I11: 0.39 | J11: 9.47 | K11: 0.19 | L11: 16.73 | M11: 10.30 | N11: 1.52 | O11: 0.09 | P11: 0.00 | Q11: 0.05 | R11: 1372 | S11: 1501 | T11: 1480 | U11: 0.308 | V11: 0.911 | W11: 0.282 | X11: 0.282 | Y11: 0.348 | Z11: 0.417 | AA11: Harzburgite | AB11: 8.38 | AC11: 38.12 | AD11: 1
A12: samp. 5802A3 | B12: low-Ti | C12: Wrangellia | D12: 20.7 | E12: 46.96 | F12: 0.43 | G12: 13.86 | H12: 0.00 | I12: 0.21 | J12: 9.50 | K12: 0.18 | L12: 17.12 | M12: 10.21 | N12: 0.99 | O12: 0.49 | P12: 0.00 | Q12: 0.05 | R12: 1376 | S12: 1510 | T12: 1490 | U12: 0.302 | V12: 0.914 | W12: 0.245 | X12: 0.269 | Y12: 0.245 | Z12: 0.273 | AA12: Spinel Peridotite | AB12: 8.13 | AC12: 38.12 | AD12: 0.5
D13: 18.7 | E13: 47.08 | F13: 0.44 | G13: 14.13 | H13: 0.00 | I13: 0.44 | J13: 9.28 | K13: 0.18 | L13: 16.49 | M13: 10.41 | N13: 1.01 | O13: 0.50 | P13: 0.00 | Q13: 0.05 | R13: 1366 | S13: 1496 | T13: 1474 | U13: 0.303 | V13: 0.913 | W13: 0.243 | X13: 0.263 | Y13: 0.243 | Z13: 0.282 | AA13: Spinel Peridotite | AB13: 8.17 | AC13: 38.12 | AD13: 1
A14: samp. 5802A5 | B14: low-Ti | C14: Wrangellia | D14: 27.5 | E14: 45.61 | F14: 0.72 | G14: 12.50 | H14: 0.00 | I14: 0.36 | J14: 10.71 | K14: 0.19 | L14: 19.37 | M14: 9.42 | N14: 0.95 | O14: 0.09 | P14: 0.00 | Q14: 0.08 | R14: 1418 | S14: 1559 | T14: 1547 | U14: 0.295 | V14: 0.916 | W14: 0.230 | X14: 0.280 | Y14: 0.230 | Z14: 0.227 | AA14: Spinel Peridotite | AB14: 8.26 | AC14: 38.12 | AD14: 0.5
D15: 24.7 | E15: 45.74 | F15: 0.74 | G15: 12.84 | H15: 0.00 | I15: 0.74 | J15: 10.36 | K15: 0.20 | L15: 18.57 | M15: 9.68 | N15: 0.97 | O15: 0.09 | P15: 0.00 | Q15: 0.08 | R15: 1406 | S15: 1542 | T15: 1527 | U15: 0.297 | V15: 0.915 | W15: 0.230 | X15: 0.273 | Y15: 0.230 | Z15: 0.239 | AA15: Spinel Peridotite | AB15: 8.26 | AC15: 38.12 | AD15: 1
A16: samp. 5808A2 | B16: high-Ti | C16: Wrangellia | D16: 2.7 | E16: 48.75 | F16: 1.09 | G16: 11.01 | H16: 0.00 | I16: 0.54 | J16: 9.65 | K16: 0.16 | L16: 17.13 | M16: 9.85 | N16: 1.38 | O16: 0.36 | P16: 0.00 | Q16: 0.09 | R16: 1380 | S16: 1510 | T16: 1490 | U16: 0.310 | V16: 0.911 | W16: 0.293 | X16: 0.293 | Y16: 0.420 | Z16: 0.505 | AA16: Harzburgite | AB16: 8.42 | AC16: 38.12 | AD16: 0.5
D17: -1.0 | E17: 49.01 | F17: 1.13 | G17: 11.40 | H17: 0.00 | I17: 1.13 | J17: 9.16 | K17: 0.16 | L17: 15.92 | M17: 10.20 | N17: 1.43 | O17: 0.37 | P17: 0.00 | Q17: 0.10 | R17: 1361 | S17: 1482 | T17: 1459 | U17: 0.311 | V17: 0.909 | W17: 0.284 | X17: 0.284 | Y17: 0.416 | Z17: 0.543 | AA17: Harzburgite | AB17: 8.43 | AC17: 38.12 | AD17: 1
A18: samp. 5810A2 | B18: low-Ti | C18: Wrangellia | D18: 26.4 | E18: 46.92 | F18: 0.42 | G18: 12.62 | H18: 0.00 | I18: 0.21 | J18: 10.20 | K18: 0.19 | L18: 18.84 | M18: 9.55 | N18: 0.95 | O18: 0.05 | P18: 0.00 | Q18: 0.05 | R18: 1405 | S18: 1548 | T18: 1534 | U18: 0.302 | V18: 0.916 | W18: 0.291 | X18: 0.291 | Y18: 0.327 | Z18: 0.353 | AA18: Harzburgite | AB18: 8.02 | AC18: 38.12 | AD18: 0.5
D19: 24.3 | E19: 47.05 | F19: 0.43 | G19: 12.88 | H19: 0.00 | I19: 0.43 | J19: 9.99 | K19: 0.20 | L19: 18.21 | M19: 9.74 | N19: 0.97 | O19: 0.06 | P19: 0.00 | Q19: 0.05 | R19: 1395 | S19: 1534 | T19: 1518 | U19: 0.303 | V19: 0.915 | W19: 0.286 | X19: 0.286 | Y19: 0.327 | Z19: 0.365 | AA19: Harzburgite | AB19: 8.02 | AC19: 38.12 | AD19: 1
A20: samp. 4720A2 | B20: high-Ti | C20: Wrangellia | D20: 42.7 | E20: 47.05 | F20: 1.08 | G20: 9.15 | H20: 0.00 | I20: 0.53 | J20: 10.51 | K20: 0.21 | L20: 20.39 | M20: 9.52 | N20: 1.43 | O20: 0.07 | P20: 0.00 | Q20: 0.08 | R20: 1439 | S20: 1579 | T20: 1573 | U20: 0.300 | V20: 0.920 | W20: 0.307 | X20: 0.307 | Y20: 0.327 | Z20: 0.321 | AA20: Harzburgite | AB20: 8.07 | AC20: 38.12 | AD20: 0.5
D21: 34.0 | E21: 47.62 | F21: 1.17 | G21: 9.95 | H21: 0.00 | I21: 1.16 | J21: 9.91 | K21: 0.22 | L21: 17.92 | M21: 10.35 | N21: 1.55 | O21: 0.07 | P21: 0.00 | Q21: 0.09 | R21: 1399 | S21: 1528 | T21: 1511 | U21: 0.304 | V21: 0.914 | W21: 0.285 | X21: 0.285 | Y21: 0.323 | Z21: 0.365 | AA21: Harzburgite | AB21: 8.32 | AC21: 38.12 | AD21: 1
A22: samp. 4721A2 | B22: high-Ti | C22: Wrangellia | D22: 59.0 | E22: 46.07 | F22: 1.03 | G22: 7.98 | H22: 0.00 | I22: 0.50 | J22: 11.57 | K22: 0.16 | L22: 24.38 | M22: 7.02 | N22: 1.14 | O22: 0.05 | P22: 0.00 | Q22: 0.09 | R22: 1506 | S22: 1654 | T22: 1672 | U22: 0.296 | V22: 0.927 | W22: 0.386 | X22: 0.385 | Y22: 0.424 | Z22: 0.386 | AA22: Garnet Peridotite | AB22: 8.02 | AC22: 38.12 | AD22: 0.5
A23: samp. 5614A1 | B23: low-Ti | C23: Wrangellia | D23: 1.5 | E23: 49.36 | F23: 0.50 | G23: 15.36 | H23: 0.00 | I23: 0.25 | J23: 8.05 | K23: 0.16 | L23: 13.50 | M23: 11.40 | N23: 1.37 | O23: 0.01 | P23: 0.00 | Q23: 0.04 | R23: 1300 | S23: 1418 | T23: 1396 | U23: 0.312 | V23: 0.906 | W23: 0.236 | X23: 0.236 | Y23: 0.280 | Z23: 0.483 | AA23: Harzburgite | AB23: 8.27 | AC23: 38.12 | AD23: 0.5
D24: 0.0 | E24: 49.47 | F24: 0.50 | G24: 15.59 | H24: 0.00 | I24: 0.50 | J24: 7.80 | K24: 0.16 | L24: 12.97 | M24: 11.56 | N24: 1.39 | O24: 0.01 | P24: 0.00 | Q24: 0.04 | R24: 1290 | S24: 1403 | T24: 1382 | U24: 0.312 | V24: 0.905 | W24: 0.229 | X24: 0.229 | Y24: 0.270 | Z24: 0.499 | AA24: Harzburgite | AB24: 8.25 | AC24: 38.12 | AD24: 1
A25: samp. 93G171 | B25: low-Ti | C25: Wrangellia | D25: -2.4 | E25: 48.58 | F25: 0.48 | G25: 14.50 | H25: 0.00 | I25: 0.24 | J25: 8.82 | K25: 0.19 | L25: 15.17 | M25: 10.77 | N25: 1.05 | O25: 0.11 | P25: 0.00 | Q25: 0.08 | R25: 1334 | S25: 1464 | T25: 1440 | U25: 0.310 | V25: 0.908 | W25: 0.263 | X25: 0.263 | Y25: 0.329 | Z25: 0.464 | AA25: Harzburgite | AB25: 8.35 | AC25: 38.12 | AD25: 0.5
D26: -3.8 | E26: 48.68 | F26: 0.48 | G26: 14.70 | H26: 0.00 | I26: 0.48 | J26: 8.60 | K26: 0.19 | L26: 14.67 | M26: 10.92 | N26: 1.07 | O26: 0.12 | P26: 0.00 | Q26: 0.08 | R26: 1325 | S26: 1451 | T26: 1427 | U26: 0.311 | V26: 0.907 | W26: 0.258 | X26: 0.258 | Y26: 0.324 | Z26: 0.477 | AA26: Harzburgite | AB26: 8.35 | AC26: 38.12 | AD26: 1
A27: samp. 5616A7 | B27: low-Ti | C27: Wrangellia | D27: 24.1 | E27: 46.93 | F27: 0.60 | G27: 13.08 | H27: 0.00 | I27: 0.30 | J27: 10.19 | K27: 0.15 | L27: 17.27 | M27: 9.64 | N27: 1.74 | O27: 0.06 | P27: 0.00 | Q27: 0.03 | R27: 1387 | S27: 1514 | T27: 1494 | U27: 0.301 | V27: 0.909 | W27: 0.222 | X27: 0.264 | Y27: 0.222 | Z27: 0.245 | AA27: Spinel Peridotite | AB27: 8.58 | AC27: 38.12 | AD27: 0.5
D28: 24.1 | E28: 46.93 | F28: 0.60 | G28: 13.07 | H28: 0.00 | I28: 0.60 | J28: 9.84 | K28: 0.15 | L28: 17.34 | M28: 9.64 | N28: 1.74 | O28: 0.06 | P28: 0.00 | Q28: 0.03 | R28: 1389 | S28: 1515 | T28: 1496 | U28: 0.301 | V28: 0.912 | W28: 0.227 | X28: 0.264 | Y28: 0.227 | Z28: 0.254 | AA28: Spinel Peridotite | AB28: 8.28 | AC28: 38.12 | AD28: 1
A29: samp. 92-205B | B29: low-Ti | C29: Wrangellia | D29: 29.6 | E29: 46.34 | F29: 0.69 | G29: 11.29 | H29: 0.00 | I29: 0.34 | J29: 10.30 | K29: 0.20 | L29: 19.40 | M29: 9.70 | N29: 0.58 | O29: 1.05 | P29: 0.00 | Q29: 0.11 | R29: 1421 | S29: 1559 | T29: 1548 | U29: 0.299 | V29: 0.918 | W29: 0.254 | X29: 0.301 | Y29: 0.270 | Z29: 0.254 | AA29: Garnet Peridotite | AB29: 8.02 | AC29: 38.12 | AD29: 0.5
D30: 27.3 | E30: 46.47 | F30: 0.70 | G30: 11.54 | H30: 0.00 | I30: 0.70 | J30: 9.93 | K30: 0.20 | L30: 18.74 | M30: 9.92 | N30: 0.60 | O30: 1.07 | P30: 0.00 | Q30: 0.12 | R30: 1411 | S30: 1546 | T30: 1531 | U30: 0.300 | V30: 0.918 | W30: 0.274 | X30: 0.296 | Y30: 0.274 | Z30: 0.266 | AA30: Spinel Peridotite | AB30: 8.02 | AC30: 38.12 | AD30: 1
A31: 5617A5(2) | B31: high-Ti | C31: Wrangellia | D31: 48.1 | E31: 46.07 | F31: 1.13 | G31: 8.69 | H31: 0.00 | I31: 0.55 | J31: 11.24 | K31: 0.16 | L31: 22.95 | M31: 7.83 | N31: 1.17 | O31: 0.11 | P31: 0.00 | Q31: 0.09 | R31: 1483 | S31: 1628 | T31: 1637 | U31: 0.296 | V31: 0.925 | W31: 0.340 | X31: 0.341 | Y31: 0.367 | Z31: 0.340 | AA31: Garnet Peridotite | AB31: 8.02 | AC31: 38.12 | AD31: 0.5
A32: 28-Dostal | B32: high-Ti | C32: Wrangellia | D32: 59.1 | E32: 46.05 | F32: 0.94 | G32: 8.20 | H32: 0.00 | I32: 0.46 | J32: 11.45 | K32: 0.20 | L32: 24.45 | M32: 7.06 | N32: 1.02 | O32: 0.09 | P32: 0.00 | Q32: 0.07 | R32: 1506 | S32: 1655 | T32: 1674 | U32: 0.295 | V32: 0.928 | W32: 0.389 | X32: 0.386 | Y32: 0.427 | Z32: 0.389 | AA32: Garnet Peridotite | AB32: 8.02 | AC32: 38.12 | AD32: 0.5
A33: 15-Dostal | B33: high-Ti | C33: Wrangellia | D33: 50.4 | E33: 46.06 | F33: 0.93 | G33: 8.87 | H33: 0.00 | I33: 0.46 | J33: 11.36 | K33: 0.19 | L33: 23.11 | M33: 7.57 | N33: 1.28 | O33: 0.11 | P33: 0.00 | Q33: 0.07 | R33: 1488 | S33: 1631 | T33: 1641 | U33: 0.296 | V33: 0.924 | W33: 0.329 | X33: 0.346 | Y33: 0.360 | Z33: 0.329 | AA33: Garnet Peridotite | AB33: 8.02 | AC33: 38.12 | AD33: 0.5
A34: samp. FL-14 | B34: low-Ti | C34: Galapagos | D34: 18.1 | E34: 46.73 | F34: 1.11 | G34: 13.32 | H34: 0.00 | I34: 0.55 | J34: 9.23 | K34: 0.18 | L34: 15.16 | M34: 10.36 | N34: 2.36 | O34: 0.80 | P34: 0.00 | Q34: 0.19 | R34: 1359 | S34: 1463 | T34: 1439 | U34: 0.296 | V34: 0.908 | W34: 0.050 | X34: 0.184 | Y34: 0.059 | Z34: 0.050 | AA34: Garnet Peridotite | AB34: 8.02 | AC34: 38.12 | AD34: 0.5
D35: 14.6 | E35: 46.93 | F35: 1.15 | G35: 13.78 | H35: 0.00 | I35: 1.14 | J35: 8.62 | K35: 0.18 | L35: 14.02 | M35: 10.71 | N35: 2.45 | O35: 0.82 | P35: 0.00 | Q35: 0.20 | R35: 1339 | S35: 1433 | T35: 1409 | U35: 0.296 | V35: 0.907 | W35: 0.055 | X35: 0.145 | Y35: 0.055 | Z35: 0.055 | AA35: Spinel Peridotite | AB35: 8.02 | AC35: 38.12 | AD35: 1
A36: samp. FL-25 | B36: low-Ti | C36: Galapagos | D36: 16.8 | E36: 45.95 | F36: 1.30 | G36: 13.30 | H36: 0.00 | I36: 0.65 | J36: 9.66 | K36: 0.19 | L36: 15.95 | M36: 10.56 | N36: 2.10 | O36: 0.22 | P36: 0.00 | Q36: 0.13 | R36: 1367 | S36: 1483 | T36: 1460 | U36: 0.295 | V36: 0.909 | W36: 0.046 | X36: 0.164 | Y36: 0.052 | Z36: 0.046 | AA36: Garnet Peridotite | AB36: 8.02 | AC36: 38.12 | AD36: 0.5
D37: 12.7 | E37: 46.15 | F37: 1.36 | G37: 13.83 | H37: 0.00 | I37: 1.35 | J37: 8.97 | K37: 0.19 | L37: 14.62 | M37: 10.98 | N37: 2.19 | O37: 0.23 | P37: 0.00 | Q37: 0.13 | R37: 1344 | S37: 1449 | T37: 1425 | U37: 0.295 | V37: 0.908 | W37: 0.046 | X37: 0.108 | Y37: 0.046 | Z37: 0.052 | AA37: Spinel Peridotite | AB37: 8.02 | AC37: 38.12 | AD37: 1
A38: samp. FL-26 | B38: low-Ti | C38: Galapagos | D38: 17.6 | E38: 45.88 | F38: 1.24 | G38: 13.35 | H38: 0.00 | I38: 0.62 | J38: 9.74 | K38: 0.18 | L38: 16.35 | M38: 10.42 | N38: 1.95 | O38: 0.15 | P38: 0.00 | Q38: 0.11 | R38: 1373 | S38: 1492 | T38: 1470 | U38: 0.295 | V38: 0.910 | W38: 0.068 | X38: 0.186 | Y38: 0.072 | Z38: 0.068 | AA38: Garnet Peridotite | AB38: 8.02 | AC38: 38.12 | AD38: 0.5
D39: 13.5 | E39: 46.08 | F39: 1.29 | G39: 13.88 | H39: 0.00 | I39: 1.29 | J39: 9.10 | K39: 0.18 | L39: 15.04 | M39: 10.84 | N39: 2.03 | O39: 0.16 | P39: 0.00 | Q39: 0.11 | R39: 1350 | S39: 1460 | T39: 1436 | U39: 0.296 | V39: 0.909 | W39: 0.065 | X39: 0.140 | Y39: 0.065 | Z39: 0.076 | AA39: Spinel Peridotite | AB39: 8.02 | AC39: 38.12 | AD39: 1
A40: samp. E-165 | B40: low-Ti | C40: Galapagos | D40: 7.4 | E40: 48.86 | F40: 0.65 | G40: 16.68 | H40: 0.00 | I40: 0.32 | J40: 7.33 | K40: 0.12 | L40: 11.65 | M40: 11.51 | N40: 2.58 | O40: 0.16 | P40: 0.00 | Q40: 0.13 | R40: 1275 | S40: 1360 | T40: 1347 | U40: 0.300 | V40: 0.904 | W40: 0.081 | X40: 0.081 | Y40: 0.081 | Z40: 0.211 | AA40: Spinel Peridotite | AB40: 8.02 | AC40: 38.12 | AD40: 0.5
D41: 5.2 | E41: 49.03 | F41: 0.66 | G41: 17.04 | H41: 0.00 | I41: 0.66 | J41: 6.95 | K41: 0.12 | L41: 10.83 | M41: 11.76 | N41: 2.63 | O41: 0.16 | P41: 0.00 | Q41: 0.13 | R41: 1257 | S41: 1331 | T41: 1325 | U41: 0.300 | V41: 0.903 | W41: 0.065 | X41: 0.040 | Y41: 0.065 | Z41: -0.141 | AA41: Spinel Peridotite | AB41: 8.02 | AC41: 38.12 | AD41: 1
A42: samp. JH-86 | B42: low-Ti | C42: Galapagos | D42: 15.6 | E42: 45.94 | F42: 1.09 | G42: 13.84 | H42: 0.00 | I42: 0.54 | J42: 9.66 | K42: 0.18 | L42: 16.26 | M42: 10.38 | N42: 1.97 | O42: 0.05 | P42: 0.00 | Q42: 0.09 | R42: 1370 | S42: 1490 | T42: 1468 | U42: 0.295 | V42: 0.910 | W42: 0.077 | X42: 0.184 | Y42: 0.077 | Z42: 0.077 | AA42: Garnet Peridotite | AB42: 8.02 | AC42: 38.12 | AD42: 0.5
D43: 11.9 | E43: 46.12 | F43: 1.13 | G43: 14.33 | H43: 0.00 | I43: 1.13 | J43: 9.10 | K43: 0.18 | L43: 15.08 | M43: 10.74 | N43: 2.04 | O43: 0.05 | P43: 0.00 | Q43: 0.09 | R43: 1350 | S43: 1461 | T43: 1437 | U43: 0.296 | V43: 0.909 | W43: 0.070 | X43: 0.145 | Y43: 0.070 | Z43: 0.084 | AA43: Spinel Peridotite | AB43: 8.02 | AC43: 38.12 | AD43: 1
A44: samp. JL-74 | B44: low-Ti | C44: Galapagos | D44: 27.3 | E44: 45.72 | F44: 1.43 | G44: 12.55 | H44: 0.00 | I44: 0.71 | J44: 10.11 | K44: 0.19 | L44: 17.63 | M44: 9.70 | N44: 1.82 | O44: 0.05 | P44: 0.00 | Q44: 0.08 | R44: 1396 | S44: 1522 | T44: 1503 | U44: 0.295 | V44: 0.913 | W44: 0.123 | X44: 0.228 | Y44: 0.122 | Z44: 0.123 | AA44: Garnet Peridotite | AB44: 8.02 | AC44: 38.12 | AD44: 0.5
D45: 21.4 | E45: 46.02 | F45: 1.52 | G45: 13.29 | H45: 0.00 | I45: 1.50 | J45: 9.31 | K45: 0.19 | L45: 15.84 | M45: 10.26 | N45: 1.93 | O45: 0.06 | P45: 0.00 | Q45: 0.09 | R45: 1366 | S45: 1480 | T45: 1457 | U45: 0.297 | V45: 0.911 | W45: 0.109 | X45: 0.185 | Y45: 0.109 | Z45: 0.138 | AA45: Spinel Peridotite | AB45: 8.02 | AC45: 38.12 | AD45: 1
A46: samp. JL-122 | B46: low-Ti | C46: Galapagos | D46: 19.1 | E46: 45.94 | F46: 1.14 | G46: 13.85 | H46: 0.00 | I46: 0.57 | J46: 9.65 | K46: 0.18 | L46: 16.16 | M46: 10.41 | N46: 2.03 | O46: 0.02 | P46: 0.00 | Q46: 0.06 | R46: 1368 | S46: 1488 | T46: 1465 | U46: 0.295 | V46: 0.910 | W46: 0.069 | X46: 0.174 | Y46: 0.070 | Z46: 0.069 | AA46: Garnet Peridotite | AB46: 8.02 | AC46: 38.12 | AD46: 0.5
D47: 15.1 | E47: 46.13 | F47: 1.18 | G47: 14.39 | H47: 0.00 | I47: 1.18 | J47: 9.04 | K47: 0.18 | L47: 14.88 | M47: 10.81 | N47: 2.11 | O47: 0.03 | P47: 0.00 | Q47: 0.06 | R47: 1346 | S47: 1456 | T47: 1432 | U47: 0.296 | V47: 0.908 | W47: 0.061 | X47: 0.126 | Y47: 0.061 | Z47: 0.076 | AA47: Spinel Peridotite | AB47: 8.02 | AC47: 38.12 | AD47: 1
A48: samp. JH-86 | B48: low-Ti | C48: Galapagos | D48: 15.6 | E48: 45.94 | F48: 1.09 | G48: 13.84 | H48: 0.00 | I48: 0.54 | J48: 9.66 | K48: 0.18 | L48: 16.26 | M48: 10.38 | N48: 1.97 | O48: 0.05 | P48: 0.00 | Q48: 0.09 | R48: 1370 | S48: 1490 | T48: 1468 | U48: 0.295 | V48: 0.910 | W48: 0.077 | X48: 0.184 | Y48: 0.077 | Z48: 0.077 | AA48: Garnet Peridotite | AB48: 8.02 | AC48: 38.12 | AD48: 0.5
D49: 11.9 | E49: 46.12 | F49: 1.13 | G49: 14.33 | H49: 0.00 | I49: 1.13 | J49: 9.10 | K49: 0.18 | L49: 15.08 | M49: 10.74 | N49: 2.04 | O49: 0.05 | P49: 0.00 | Q49: 0.09 | R49: 1350 | S49: 1461 | T49: 1437 | U49: 0.296 | V49: 0.909 | W49: 0.070 | X49: 0.145 | Y49: 0.070 | Z49: 0.084 | AA49: Spinel Peridotite | AB49: 8.02 | AC49: 38.12 | AD49: 1
A50: samp. W95 62 | B50: low-Ti | C50: Galapagos | D50: 4.3 | E50: 48.14 | F50: 1.54 | G50: 16.47 | H50: 0.00 | I50: 0.77 | J50: 7.18 | K50: 0.13 | L50: 11.10 | M50: 12.19 | N50: 2.06 | O50: 0.24 | P50: 0.00 | Q50: 0.18 | R50: 1256 | S50: 1341 | T50: 1332 | U50: 0.299 | V50: 0.902 | W50: 0.038 | X50: -0.034 | Y50: 0.038 | Z50: -0.194 | AA50: Spinel Peridotite | AB50: 8.02 | AC50: 38.12 | AD50: 0.5
D51: 0.0 | E51: 48.43 | F51: 1.60 | G51: 17.16 | H51: 0.00 | I51: 1.60 | J51: 6.32 | K51: 0.13 | L51: 9.47 | M51: 12.69 | N51: 2.15 | O51: 0.25 | P51: 0.00 | Q51: 0.19 | R51: 1219 | S51: 1275 | T51: 1288 | U51: 0.298 | V51: 0.900 | W51: 0.037 | X51: -0.161 | Y51: 0.006 | Z51: -0.222 | AA51: Garnet Peridotite | AB51: 8.02 | AC51: 38.12 | AD51: 1
A52: samp. W95 78 | B52: high-Ti | C52: Galapagos | D52: 17.6 | E52: 47.03 | F52: 1.83 | G52: 14.91 | H52: 0.00 | I52: 0.91 | J52: 8.31 | K52: 0.14 | L52: 13.58 | M52: 10.52 | N52: 2.25 | O52: 0.31 | P52: 0.00 | Q52: 0.21 | R52: 1320 | S52: 1421 | T52: 1398 | U52: 0.298 | V52: 0.907 | W52: 0.076 | X52: 0.095 | Y52: 0.076 | Z52: 0.152 | AA52: Spinel Peridotite | AB52: 8.02 | AC52: 38.12 | AD52: 0.5
D53: 10.5 | E53: 47.48 | F53: 1.96 | G53: 15.98 | H53: 0.00 | I53: 1.95 | J53: 7.17 | K53: 0.14 | L53: 11.09 | M53: 11.26 | N53: 2.41 | O53: 0.33 | P53: 0.00 | Q53: 0.23 | R53: 1269 | S53: 1340 | T53: 1332 | U53: 0.297 | V53: 0.903 | W53: 0.031 | X53: -0.056 | Y53: 0.031 | Z53: -0.178 | AA53: Spinel Peridotite | AB53: 8.02 | AC53: 38.12 | AD53: 1
A54: samp. NSK97-220 | B54: high-Ti | C54: Galapagos | D54: 25.2 | E54: 46.94 | F54: 1.94 | G54: 12.58 | H54: 0.00 | I54: 0.96 | J54: 9.16 | K54: 0.17 | L54: 16.10 | M54: 9.93 | N54: 1.80 | O54: 0.24 | P54: 0.00 | Q54: 0.19 | R54: 1366 | S54: 1486 | T54: 1464 | U54: 0.300 | V54: 0.913 | W54: 0.181 | X54: 0.219 | Y54: 0.181 | Z54: 0.256 | AA54: Spinel Peridotite | AB54: 8.02 | AC54: 38.12 | AD54: 0.5
D55: 16.2 | E55: 47.51 | F55: 2.11 | G55: 13.72 | H55: 0.00 | I55: 2.10 | J55: 7.96 | K55: 0.17 | L55: 13.19 | M55: 10.81 | N55: 1.97 | O55: 0.26 | P55: 0.00 | Q55: 0.21 | R55: 1313 | S55: 1409 | T55: 1388 | U55: 0.302 | V55: 0.907 | W55: 0.128 | X55: 0.138 | Y55: 0.128 | Z55: 0.304 | AA55: Spinel Peridotite | AB55: 8.02 | AC55: 38.12 | AD55: 1
A56: samp. NSK97-252 | B56: low-Ti | C56: Galapagos | D56: 7.1 | E56: 46.83 | F56: 0.94 | G56: 15.63 | H56: 0.00 | I56: 0.47 | J56: 8.48 | K56: 0.16 | L56: 13.72 | M56: 11.54 | N56: 2.01 | O56: 0.11 | P56: 0.00 | Q56: 0.10 | R56: 1315 | S56: 1425 | T56: 1402 | U56: 0.297 | V56: 0.907 | W56: 0.053 | X56: 0.083 | Y56: 0.053 | Z56: 0.082 | AA56: Spinel Peridotite | AB56: 8.02 | AC56: 38.12 | AD56: 0.5
D57: 4.2 | E57: 46.99 | F57: 0.97 | G57: 16.08 | H57: 0.00 | I57: 0.97 | J57: 7.99 | K57: 0.16 | L57: 12.69 | M57: 11.87 | N57: 2.07 | O57: 0.12 | P57: 0.00 | Q57: 0.10 | R57: 1295 | S57: 1394 | T57: 1374 | U57: 0.297 | V57: 0.905 | W57: 0.042 | X57: 0.026 | Y57: 0.042 | Z57: 0.089 | AA57: Spinel Peridotite | AB57: 8.02 | AC57: 38.12 | AD57: 1
A58: samp. NSK97-254 | B58: low-Ti | C58: Galapagos | D58: 7.2 | E58: 46.96 | F58: 0.91 | G58: 15.27 | H58: 0.00 | I58: 0.46 | J58: 8.68 | K58: 0.17 | L58: 14.36 | M58: 10.77 | N58: 2.15 | O58: 0.18 | P58: 0.00 | Q58: 0.10 | R58: 1332 | S58: 1442 | T58: 1418 | U58: 0.298 | V58: 0.908 | W58: 0.084 | X58: 0.146 | Y58: 0.084 | Z58: 0.117 | AA58: Spinel Peridotite | AB58: 8.02 | AC58: 38.12 | AD58: 0.5
D59: 4.4 | E59: 47.11 | F59: 0.94 | G59: 15.69 | H59: 0.00 | I59: 0.94 | J59: 8.22 | K59: 0.17 | L59: 13.38 | M59: 11.06 | N59: 2.21 | O59: 0.18 | P59: 0.00 | Q59: 0.11 | R59: 1314 | S59: 1415 | T59: 1393 | U59: 0.298 | V59: 0.907 | W59: 0.074 | X59: 0.109 | Y59: 0.074 | Z59: 0.126 | AA59: Spinel Peridotite | AB59: 8.02 | AC59: 38.12 | AD59: 1
A60: samp. SG93-1 | B60: high-Ti | C60: Galapagos | D60: 26.6 | E60: 46.16 | F60: 1.76 | G60: 11.89 | H60: 0.00 | I60: 0.87 | J60: 9.80 | K60: 0.17 | L60: 17.07 | M60: 9.78 | N60: 1.99 | O60: 0.31 | P60: 0.00 | Q60: 0.20 | R60: 1390 | S60: 1509 | T60: 1489 | U60: 0.297 | V60: 0.913 | W60: 0.131 | X60: 0.222 | Y60: 0.124 | Z60: 0.131 | AA60: Garnet Peridotite | AB60: 8.02 | AC60: 38.12 | AD60: 0.5
D61: 19.0 | E61: 46.58 | F61: 1.89 | G61: 12.79 | H61: 0.00 | I61: 1.88 | J61: 8.78 | K61: 0.18 | L61: 14.69 | M61: 10.52 | N61: 2.14 | O61: 0.34 | P61: 0.00 | Q61: 0.21 | R61: 1349 | S61: 1451 | T61: 1427 | U61: 0.298 | V61: 0.909 | W61: 0.100 | X61: 0.154 | Y61: 0.100 | Z61: 0.152 | AA61: Spinel Peridotite | AB61: 8.02 | AC61: 38.12 | AD61: 1
A62: samp. SG93-5 | B62: high-Ti | C62: Galapagos | D62: 16.5 | E62: 46.90 | F62: 1.74 | G62: 12.55 | H62: 0.00 | I62: 0.86 | J62: 9.24 | K62: 0.17 | L62: 15.99 | M62: 10.00 | N62: 2.08 | O62: 0.29 | P62: 0.00 | Q62: 0.18 | R62: 1368 | S62: 1484 | T62: 1461 | U62: 0.299 | V62: 0.912 | W62: 0.145 | X62: 0.209 | Y62: 0.145 | Z62: 0.189 | AA62: Spinel Peridotite | AB62: 8.02 | AC62: 38.12 | AD62: 0.5
D63: 10.0 | E63: 47.29 | F63: 1.85 | G63: 13.37 | H63: 0.00 | I63: 1.84 | J63: 8.30 | K63: 0.17 | L63: 13.82 | M63: 10.64 | N63: 2.21 | O63: 0.31 | P63: 0.00 | Q63: 0.19 | R63: 1330 | S63: 1428 | T63: 1404 | U63: 0.300 | V63: 0.908 | W63: 0.116 | X63: 0.146 | Y63: 0.116 | Z63: 0.219 | AA63: Spinel Peridotite | AB63: 8.02 | AC63: 38.12 | AD63: 1
A64: samp. 07DSG74 | B64: low-Ti | C64: Galapagos | D64: 18.8 | E64: 46.03 | F64: 1.05 | G64: 14.09 | H64: 0.00 | I64: 0.52 | J64: 9.57 | K64: 0.17 | L64: 16.22 | M64: 10.27 | N64: 1.93 | O64: 0.06 | P64: 0.00 | Q64: 0.08 | R64: 1369 | S64: 1489 | T64: 1467 | U64: 0.296 | V64: 0.911 | W64: 0.091 | X64: 0.191 | Y64: 0.091 | Z64: 0.096 | AA64: Spinel Peridotite | AB64: 8.02 | AC64: 38.12 | AD64: 0.5
D65: 15.1 | E65: 46.22 | F65: 1.09 | G65: 14.62 | H65: 0.00 | I65: 1.08 | J65: 9.01 | K65: 0.17 | L65: 15.01 | M65: 10.64 | N65: 2.00 | O65: 0.06 | P65: 0.00 | Q65: 0.08 | R65: 1348 | S65: 1459 | T65: 1435 | U65: 0.297 | V65: 0.909 | W65: 0.082 | X65: 0.154 | Y65: 0.082 | Z65: 0.105 | AA65: Spinel Peridotite | AB65: 8.02 | AC65: 38.12 | AD65: 1
A66: samp. PJT01 | B66: low-Ti | C66: Galapagos | D66: 22.0 | E66: 46.03 | F66: 1.06 | G66: 13.84 | H66: 0.00 | I66: 0.53 | J66: 9.70 | K66: 0.17 | L66: 16.67 | M66: 9.83 | N66: 1.98 | O66: 0.09 | P66: 0.00 | Q66: 0.10 | R66: 1379 | S66: 1500 | T66: 1478 | U66: 0.296 | V66: 0.912 | W66: 0.112 | X66: 0.211 | Y66: 0.108 | Z66: 0.112 | AA66: Garnet Peridotite | AB66: 8.02 | AC66: 38.12 | AD66: 0.5
D67: 17.8 | E67: 46.24 | F67: 1.10 | G67: 14.40 | H67: 0.00 | I67: 1.10 | J67: 9.12 | K67: 0.17 | L67: 15.38 | M67: 10.23 | N67: 2.06 | O67: 0.10 | P67: 0.00 | Q67: 0.10 | R67: 1357 | S67: 1469 | T67: 1445 | U67: 0.297 | V67: 0.910 | W67: 0.099 | X67: 0.178 | Y67: 0.099 | Z67: 0.122 | AA67: Spinel Peridotite | AB67: 8.02 | AC67: 38.12 | AD67: 1
A68: samp. PJT02 | B68: low-Ti | C68: Galapagos | D68: 18.9 | E68: 45.75 | F68: 1.09 | G68: 14.20 | H68: 0.00 | I68: 0.54 | J68: 9.63 | K68: 0.17 | L68: 16.00 | M68: 10.37 | N68: 2.01 | O68: 0.09 | P68: 0.00 | Q68: 0.14 | R68: 1366 | S68: 1484 | T68: 1461 | U68: 0.295 | V68: 0.910 | W68: 0.056 | X68: 0.167 | Y68: 0.060 | Z68: 0.056 | AA68: Garnet Peridotite | AB68: 8.02 | AC68: 38.12 | AD68: 0.5
D69: 15.3 | E69: 45.92 | F69: 1.13 | G69: 14.70 | H69: 0.00 | I69: 1.12 | J69: 9.05 | K69: 0.17 | L69: 14.85 | M69: 10.73 | N69: 2.08 | O69: 0.09 | P69: 0.00 | Q69: 0.14 | R69: 1347 | S69: 1455 | T69: 1431 | U69: 0.295 | V69: 0.908 | W69: 0.054 | X69: 0.123 | Y69: 0.054 | Z69: 0.062 | AA69: Spinel Peridotite | AB69: 8.02 | AC69: 38.12 | AD69: 1
A70: samp. 07DSG79B | B70: low-Ti | C70: Galapagos | D70: 20.7 | E70: 46.06 | F70: 1.17 | G70: 13.73 | H70: 0.00 | I70: 0.58 | J70: 9.62 | K70: 0.17 | L70: 16.37 | M70: 10.22 | N70: 1.94 | O70: 0.06 | P70: 0.00 | Q70: 0.08 | R70: 1372 | S70: 1493 | T70: 1471 | U70: 0.296 | V70: 0.911 | W70: 0.096 | X70: 0.195 | Y70: 0.096 | Z70: 0.103 | AA70: Spinel Peridotite | AB70: 8.02 | AC70: 38.12 | AD70: 0.5
D71: 16.4 | E71: 46.28 | F71: 1.22 | G71: 14.31 | H71: 0.00 | I71: 1.21 | J71: 8.99 | K71: 0.17 | L71: 15.00 | M71: 10.64 | N71: 2.02 | O71: 0.06 | P71: 0.00 | Q71: 0.08 | R71: 1348 | S71: 1459 | T71: 1435 | U71: 0.297 | V71: 0.909 | W71: 0.086 | X71: 0.153 | Y71: 0.086 | Z71: 0.114 | AA71: Spinel Peridotite | AB71: 8.02 | AC71: 38.12 | AD71: 1
A72: samp. 07DSG71 | B72: low-Ti | C72: Galapagos | D72: 19.9 | E72: 45.50 | F72: 1.17 | G72: 13.99 | H72: 0.00 | I72: 0.58 | J72: 9.81 | K72: 0.17 | L72: 16.18 | M72: 10.56 | N72: 1.91 | O72: 0.05 | P72: 0.00 | Q72: 0.08 | R72: 1368 | S72: 1488 | T72: 1466 | U72: 0.294 | V72: 0.909 | W72: 0.040 | X72: 0.159 | Y72: 0.047 | Z72: 0.040 | AA72: Garnet Peridotite | AB72: 8.02 | AC72: 38.12 | AD72: 0.5
D73: 16.1 | E73: 45.67 | F73: 1.21 | G73: 14.51 | H73: 0.00 | I73: 1.21 | J73: 9.18 | K73: 0.17 | L73: 14.98 | M73: 10.95 | N73: 1.98 | O73: 0.05 | P73: 0.00 | Q73: 0.09 | R73: 1348 | S73: 1459 | T73: 1435 | U73: 0.294 | V73: 0.908 | W73: 0.042 | X73: 0.108 | Y73: 0.042 | Z73: 0.045 | AA73: Spinel Peridotite | AB73: 8.02 | AC73: 38.12 | AD73: 1
A74: samp. 07DSG73 | B74: low-Ti | C74: Galapagos | D74: 20.9 | E74: 45.72 | F74: 1.16 | G74: 13.96 | H74: 0.00 | I74: 0.58 | J74: 9.74 | K74: 0.17 | L74: 16.50 | M74: 10.12 | N74: 1.89 | O74: 0.06 | P74: 0.00 | Q74: 0.10 | R74: 1375 | S74: 1496 | T74: 1474 | U74: 0.295 | V74: 0.911 | W74: 0.083 | X74: 0.191 | Y74: 0.083 | Z74: 0.083 | AA74: Garnet Peridotite | AB74: 8.02 | AC74: 38.12 | AD74: 0.5
D75: 16.7 | E75: 45.92 | F75: 1.21 | G75: 14.54 | H75: 0.00 | I75: 1.20 | J75: 9.12 | K75: 0.17 | L75: 15.16 | M75: 10.54 | N75: 1.97 | O75: 0.06 | P75: 0.00 | Q75: 0.10 | R75: 1351 | S75: 1463 | T75: 1439 | U75: 0.296 | V75: 0.909 | W75: 0.074 | X75: 0.148 | Y75: 0.074 | Z75: 0.091 | AA75: Spinel Peridotite | AB75: 8.02 | AC75: 38.12 | AD75: 1
A76: samp. 07DSG74 | B76: low-Ti | C76: Galapagos | D76: 18.8 | E76: 46.03 | F76: 1.05 | G76: 14.09 | H76: 0.00 | I76: 0.52 | J76: 9.57 | K76: 0.17 | L76: 16.22 | M76: 10.27 | N76: 1.93 | O76: 0.06 | P76: 0.00 | Q76: 0.08 | R76: 1369 | S76: 1489 | T76: 1467 | U76: 0.296 | V76: 0.911 | W76: 0.091 | X76: 0.191 | Y76: 0.091 | Z76: 0.096 | AA76: Spinel Peridotite | AB76: 8.02 | AC76: 38.12 | AD76: 0.5
D77: 15.1 | E77: 46.22 | F77: 1.09 | G77: 14.62 | H77: 0.00 | I77: 1.08 | J77: 9.01 | K77: 0.17 | L77: 15.01 | M77: 10.64 | N77: 2.00 | O77: 0.06 | P77: 0.00 | Q77: 0.08 | R77: 1348 | S77: 1459 | T77: 1435 | U77: 0.297 | V77: 0.909 | W77: 0.082 | X77: 0.154 | Y77: 0.082 | Z77: 0.105 | AA77: Spinel Peridotite | AB77: 8.02 | AC77: 38.12 | AD77: 1
A78: samp. PJT02 | B78: low-Ti | C78: Galapagos | D78: 18.9 | E78: 45.75 | F78: 1.09 | G78: 14.20 | H78: 0.00 | I78: 0.54 | J78: 9.63 | K78: 0.17 | L78: 16.00 | M78: 10.37 | N78: 2.01 | O78: 0.09 | P78: 0.00 | Q78: 0.14 | R78: 1366 | S78: 1484 | T78: 1461 | U78: 0.295 | V78: 0.910 | W78: 0.056 | X78: 0.167 | Y78: 0.060 | Z78: 0.056 | AA78: Garnet Peridotite | AB78: 8.02 | AC78: 38.12 | AD78: 0.5
D79: 15.3 | E79: 45.92 | F79: 1.13 | G79: 14.70 | H79: 0.00 | I79: 1.12 | J79: 9.05 | K79: 0.17 | L79: 14.85 | M79: 10.73 | N79: 2.08 | O79: 0.09 | P79: 0.00 | Q79: 0.14 | R79: 1347 | S79: 1455 | T79: 1431 | U79: 0.295 | V79: 0.908 | W79: 0.054 | X79: 0.123 | Y79: 0.054 | Z79: 0.062 | AA79: Spinel Peridotite | AB79: 8.02 | AC79: 38.12 | AD79: 1
A80: samp. 08DSG02 | B80: low-Ti | C80: Galapagos | D80: 20.8 | E80: 46.49 | F80: 1.01 | G80: 13.80 | H80: 0.00 | I80: 0.50 | J80: 9.50 | K80: 0.17 | L80: 16.46 | M80: 10.00 | N80: 1.93 | O80: 0.06 | P80: 0.00 | Q80: 0.07 | R80: 1373 | S80: 1495 | T80: 1473 | U80: 0.298 | V80: 0.912 | W80: 0.135 | X80: 0.218 | Y80: 0.135 | Z80: 0.155 | AA80: Spinel Peridotite | AB80: 8.02 | AC80: 38.12 | AD80: 0.5
D81: 16.9 | E81: 46.70 | F81: 1.05 | G81: 14.33 | H81: 0.00 | I81: 1.04 | J81: 8.95 | K81: 0.17 | L81: 15.23 | M81: 10.38 | N81: 2.01 | O81: 0.07 | P81: 0.00 | Q81: 0.08 | R81: 1352 | S81: 1465 | T81: 1441 | U81: 0.299 | V81: 0.910 | W81: 0.124 | X81: 0.190 | Y81: 0.124 | Z81: 0.168 | AA81: Spinel Peridotite | AB81: 8.02 | AC81: 38.12 | AD81: 1
A82: samp. 08DSG19 | B82: low-Ti | C82: Galapagos | D82: 21.2 | E82: 45.86 | F82: 1.24 | G82: 13.78 | H82: 0.00 | I82: 0.61 | J82: 9.73 | K82: 0.16 | L82: 16.73 | M82: 9.71 | N82: 1.96 | O82: 0.10 | P82: 0.00 | Q82: 0.11 | R82: 1381 | S82: 1501 | T82: 1480 | U82: 0.296 | V82: 0.912 | W82: 0.111 | X82: 0.207 | Y82: 0.106 | Z82: 0.111 | AA82: Garnet Peridotite | AB82: 8.02 | AC82: 38.12 | AD82: 0.5
D83: 16.5 | E83: 46.10 | F83: 1.29 | G83: 14.43 | H83: 0.00 | I83: 1.29 | J83: 9.07 | K83: 0.16 | L83: 15.22 | M83: 10.16 | N83: 2.05 | O83: 0.11 | P83: 0.00 | Q83: 0.11 | R83: 1355 | S83: 1465 | T83: 1441 | U83: 0.297 | V83: 0.910 | W83: 0.094 | X83: 0.166 | Y83: 0.094 | Z83: 0.122 | AA83: Spinel Peridotite | AB83: 8.02 | AC83: 38.12 | AD83: 1
A84: samp. 08DSG38 | B84: low-Ti | C84: Galapagos | D84: 20.9 | E84: 45.78 | F84: 1.04 | G84: 13.67 | H84: 0.00 | I84: 0.52 | J84: 9.92 | K84: 0.17 | L84: 16.91 | M84: 9.90 | N84: 1.94 | O84: 0.07 | P84: 0.00 | Q84: 0.08 | R84: 1384 | S84: 1506 | T84: 1485 | U84: 0.295 | V84: 0.911 | W84: 0.090 | X84: 0.211 | Y84: 0.094 | Z84: 0.090 | AA84: Garnet Peridotite | AB84: 8.02 | AC84: 38.12 | AD84: 0.5
D85: 17.3 | E85: 45.95 | F85: 1.07 | G85: 14.15 | H85: 0.00 | I85: 1.07 | J85: 9.37 | K85: 0.17 | L85: 15.80 | M85: 10.25 | N85: 2.01 | O85: 0.07 | P85: 0.00 | Q85: 0.08 | R85: 1365 | S85: 1479 | T85: 1456 | U85: 0.296 | V85: 0.910 | W85: 0.088 | X85: 0.182 | Y85: 0.088 | Z85: 0.098 | AA85: Spinel Peridotite | AB85: 8.02 | AC85: 38.12 | AD85: 1
A86: samp. 08DSG42 | B86: low-Ti | C86: Galapagos | D86: 18.8 | E86: 46.10 | F86: 0.95 | G86: 13.95 | H86: 0.00 | I86: 0.47 | J86: 9.73 | K86: 0.17 | L86: 16.88 | M86: 9.73 | N86: 1.88 | O86: 0.06 | P86: 0.00 | Q86: 0.07 | R86: 1381 | S86: 1505 | T86: 1484 | U86: 0.297 | V86: 0.912 | W86: 0.128 | X86: 0.223 | Y86: 0.128 | Z86: 0.137 | AA86: Spinel Peridotite | AB86: 8.02 | AC86: 38.12 | AD86: 0.5
D87: 15.3 | E87: 46.27 | F87: 0.98 | G87: 14.41 | H87: 0.00 | I87: 0.98 | J87: 9.24 | K87: 0.17 | L87: 15.80 | M87: 10.06 | N87: 1.95 | O87: 0.06 | P87: 0.00 | Q87: 0.08 | R87: 1363 | S87: 1479 | T87: 1456 | U87: 0.298 | V87: 0.911 | W87: 0.121 | X87: 0.201 | Y87: 0.121 | Z87: 0.148 | AA87: Spinel Peridotite | AB87: 8.02 | AC87: 38.12 | AD87: 1
A88: samp. 08DSG43 | B88: low-Ti | C88: Galapagos | D88: 20.4 | E88: 45.73 | F88: 1.02 | G88: 13.87 | H88: 0.00 | I88: 0.51 | J88: 9.89 | K88: 0.17 | L88: 16.95 | M88: 9.87 | N88: 1.86 | O88: 0.06 | P88: 0.00 | Q88: 0.07 | R88: 1383 | S88: 1506 | T88: 1486 | U88: 0.295 | V88: 0.912 | W88: 0.098 | X88: 0.213 | Y88: 0.100 | Z88: 0.098 | AA88: Garnet Peridotite | AB88: 8.02 | AC88: 38.12 | AD88: 0.5
D89: 16.8 | E89: 45.90 | F89: 1.06 | G89: 14.36 | H89: 0.00 | I89: 1.05 | J89: 9.36 | K89: 0.17 | L89: 15.82 | M89: 10.22 | N89: 1.92 | O89: 0.06 | P89: 0.00 | Q89: 0.08 | R89: 1364 | S89: 1480 | T89: 1456 | U89: 0.296 | V89: 0.910 | W89: 0.094 | X89: 0.184 | Y89: 0.094 | Z89: 0.106 | AA89: Spinel Peridotite | AB89: 8.02 | AC89: 38.12 | AD89: 1
A90: samp. 15-146-1 | B90: low-Ti | C90: Caribbean | D90: 30.6 | E90: 47.18 | F90: 0.82 | G90: 11.09 | H90: 0.00 | I90: 0.41 | J90: 10.12 | K90: 0.17 | L90: 18.71 | M90: 9.98 | N90: 1.42 | O90: 0.02 | P90: 0.00 | Q90: 0.06 | R90: 1408 | S90: 1545 | T90: 1531 | U90: 0.302 | V90: 0.916 | W90: 0.285 | X90: 0.285 | Y90: 0.287 | Z90: 0.305 | AA90: Harzburgite | AB90: 8.22 | AC90: 38.12 | AD90: 0.5
D91: 26.0 | E91: 47.47 | F91: 0.86 | G91: 11.59 | H91: 0.00 | I91: 0.85 | J91: 9.68 | K91: 0.17 | L91: 17.36 | M91: 10.43 | N91: 1.49 | O91: 0.02 | P91: 0.00 | Q91: 0.07 | R91: 1386 | S91: 1516 | T91: 1496 | U91: 0.304 | V91: 0.913 | W91: 0.272 | X91: 0.272 | Y91: 0.282 | Z91: 0.329 | AA91: Harzburgite | AB91: 8.29 | AC91: 38.12 | AD91: 1
A92: samp. 96VD126* | B92: low-Ti | C92: Caribbean | D92: 29.3 | E92: 46.21 | F92: 1.17 | G92: 8.38 | H92: 0.00 | I92: 0.58 | J92: 11.24 | K92: 0.17 | L92: 20.94 | M92: 9.50 | N92: 1.62 | O92: 0.08 | P92: 0.00 | Q92: 0.12 | R92: 1455 | S92: 1590 | T92: 1587 | U92: 0.296 | V92: 0.918 | W92: 0.196 | X92: 0.305 | Y92: 0.226 | Z92: 0.196 | AA92: Garnet Peridotite | AB92: 8.02 | AC92: 38.12 | AD92: 0.5
D93: 25.4 | E93: 46.41 | F93: 1.22 | G93: 8.70 | H93: 0.00 | I93: 1.20 | J93: 10.68 | K93: 0.18 | L93: 19.87 | M93: 9.86 | N93: 1.68 | O93: 0.08 | P93: 0.00 | Q93: 0.12 | R93: 1439 | S93: 1569 | T93: 1560 | U93: 0.298 | V93: 0.918 | W93: 0.216 | X93: 0.294 | Y93: 0.235 | Z93: 0.216 | AA93: Garnet Peridotite | AB93: 8.02 | AC93: 38.12 | AD93: 1
A94: samp. GOR501 | B94: low-Ti | C94: Caribbean | D94: -3.6 | E94: 45.37 | F94: 0.64 | G94: 10.61 | H94: 0.00 | I94: 0.32 | J94: 11.30 | K94: 0.20 | L94: 21.31 | M94: 9.35 | N94: 0.85 | O94: 0.02 | P94: 0.00 | Q94: 0.03 | R94: 1451 | S94: 1597 | T94: 1596 | U94: 0.292 | V94: 0.920 | W94: 0.214 | X94: 0.303 | Y94: 0.240 | Z94: 0.214 | AA94: Garnet Peridotite | AB94: 8.02 | AC94: 38.12 | AD94: 0.5
D95: -5.1 | E95: 45.42 | F95: 0.65 | G95: 10.76 | H95: 0.00 | I95: 0.65 | J95: 11.07 | K95: 0.20 | L95: 20.87 | M95: 9.48 | N95: 0.86 | O95: 0.02 | P95: 0.00 | Q95: 0.03 | R95: 1446 | S95: 1589 | T95: 1585 | U95: 0.293 | V95: 0.920 | W95: 0.223 | X95: 0.300 | Y95: 0.245 | Z95: 0.223 | AA95: Garnet Peridotite | AB95: 8.02 | AC95: 38.12 | AD95: 1
A96: samp. GOR502 | B96: low-Ti | C96: Caribbean | D96: 17.1 | E96: 45.73 | F96: 0.64 | G96: 11.20 | H96: 0.00 | I96: 0.32 | J96: 10.90 | K96: 0.19 | L96: 20.12 | M96: 9.76 | N96: 1.08 | O96: 0.03 | P96: 0.00 | Q96: 0.03 | R96: 1432 | S96: 1574 | T96: 1567 | U96: 0.294 | V96: 0.918 | W96: 0.195 | X96: 0.289 | Y96: 0.214 | Z96: 0.195 | AA96: Garnet Peridotite | AB96: 8.02 | AC96: 38.12 | AD96: 0.5
D97: 15.4 | E97: 45.80 | F97: 0.65 | G97: 11.39 | H97: 0.00 | I97: 0.64 | J97: 10.62 | K97: 0.19 | L97: 19.61 | M97: 9.93 | N97: 1.09 | O97: 0.03 | P97: 0.00 | Q97: 0.03 | R97: 1425 | S97: 1564 | T97: 1553 | U97: 0.295 | V97: 0.918 | W97: 0.204 | X97: 0.284 | Y97: 0.217 | Z97: 0.204 | AA97: Garnet Peridotite | AB97: 8.02 | AC97: 38.12 | AD97: 1
A98: samp. GOR519 | B98: low-Ti | C98: Caribbean | D98: 11.5 | E98: 46.74 | F98: 0.43 | G98: 11.39 | H98: 0.00 | I98: 0.22 | J98: 10.31 | K98: 0.19 | L98: 19.43 | M98: 9.61 | N98: 1.13 | O98: 0.53 | P98: 0.00 | Q98: 0.03 | R98: 1423 | S98: 1560 | T98: 1549 | U98: 0.300 | V98: 0.918 | W98: 0.254 | X98: 0.298 | Y98: 0.267 | Z98: 0.254 | AA98: Garnet Peridotite | AB98: 8.02 | AC98: 38.12 | AD98: 0.5
D99: 10.3 | E99: 46.80 | F99: 0.44 | G99: 11.52 | H99: 0.00 | I99: 0.44 | J99: 10.12 | K99: 0.19 | L99: 19.06 | M99: 9.72 | N99: 1.14 | O99: 0.54 | P99: 0.00 | Q99: 0.03 | R99: 1417 | S99: 1552 | T99: 1540 | U99: 0.301 | V99: 0.918 | W99: 0.262 | X99: 0.295 | Y99: 0.270 | Z99: 0.262 | AA99: Garnet Peridotite | AB99: 8.02 | AC99: 38.12 | AD99: 1
A100: samp. GOR520 | B100: low-Ti | C100: Caribbean | D100: 32.4 | E100: 46.51 | F100: 0.41 | G100: 10.92 | H100: 0.00 | I100: 0.20 | J100: 10.64 | K100: 0.18 | L100: 20.22 | M100: 9.62 | N100: 1.24 | O100: 0.03 | P100: 0.00 | Q100: 0.03 | R100: 1434 | S100: 1576 | T100: 1569 | U100: 0.298 | V100: 0.919 | W100: 0.254 | X100: 0.300 | Y100: 0.269 | Z100: 0.254 | AA100: Garnet Peridotite | AB100: 8.02 | AC100: 38.12 | AD100: 0.5
D101: 30.9 | E101: 46.60 | F101: 0.41 | G101: 11.08 | H101: 0.00 | I101: 0.41 | J101: 10.43 | K101: 0.18 | L101: 19.81 | M101: 9.76 | N101: 1.26 | O101: 0.03 | P101: 0.00 | Q101: 0.03 | R101: 1428 | S101: 1568 | T101: 1559 | U101: 0.299 | V101: 0.919 | W101: 0.262 | X101: 0.296 | Y101: 0.272 | Z101: 0.262 | AA101: Garnet Peridotite | AB101: 8.02 | AC101: 38.12 | AD101: 1
A102: samp. GOR512 | B102: low-Ti | C102: Caribbean | D102: -15.3 | E102: 46.52 | F102: 0.35 | G102: 11.47 | H102: 0.00 | I102: 0.18 | J102: 10.50 | K102: 0.19 | L102: 20.28 | M102: 9.64 | N102: 0.78 | O102: 0.08 | P102: 0.00 | Q102: 0.02 | R102: 1429 | S102: 1577 | T102: 1570 | U102: 0.298 | V102: 0.920 | W102: 0.304 | X102: 0.304 | Y102: 0.319 | Z102: 0.314 | AA102: Harzburgite | AB102: 8.08 | AC102: 38.12 | AD102: 0.5
D103: -17.1 | E103: 46.60 | F103: 0.36 | G103: 11.67 | H103: 0.00 | I103: 0.36 | J103: 10.40 | K103: 0.19 | L103: 19.71 | M103: 9.80 | N103: 0.79 | O103: 0.08 | P103: 0.00 | Q103: 0.02 | R103: 1421 | S103: 1566 | T103: 1556 | U103: 0.299 | V103: 0.919 | W103: 0.300 | X103: 0.300 | Y103: 0.320 | Z103: 0.323 | AA103: Harzburgite | AB103: 8.16 | AC103: 38.12 | AD103: 1
A104: samp. GOR513 | B104: low-Ti | C104: Caribbean | D104: -11.9 | E104: 46.47 | F104: 0.37 | G104: 11.35 | H104: 0.00 | I104: 0.19 | J104: 10.44 | K104: 0.19 | L104: 20.31 | M104: 9.86 | N104: 0.75 | O104: 0.06 | P104: 0.00 | Q104: 0.01 | R104: 1429 | S104: 1578 | T104: 1571 | U104: 0.298 | V104: 0.921 | W104: 0.303 | X104: 0.303 | Y104: 0.306 | Z104: 0.300 | AA104: Harzburgite | AB104: 8.02 | AC104: 38.12 | AD104: 0.5
A105: samp. GOR515 | B105: low-Ti | C105: Caribbean | D105: -24.0 | E105: 45.95 | F105: 0.34 | G105: 11.14 | H105: 0.00 | I105: 0.17 | J105: 10.80 | K105: 0.19 | L105: 20.99 | M105: 9.88 | N105: 0.48 | O105: 0.03 | P105: 0.00 | Q105: 0.03 | R105: 1439 | S105: 1591 | T105: 1588 | U105: 0.294 | V105: 0.922 | W105: 0.285 | X105: 0.308 | Y105: 0.300 | Z105: 0.285 | AA105: Garnet Peridotite | AB105: 8.02 | AC105: 38.12 | AD105: 0.5
A106: samp. GOR517 | B106: low-Ti | C106: Caribbean | D106: -24.6 | E106: 46.11 | F106: 0.41 | G106: 10.93 | H106: 0.00 | I106: 0.21 | J106: 10.82 | K106: 0.20 | L106: 21.54 | M106: 9.30 | N106: 0.43 | O106: 0.04 | P106: 0.00 | Q106: 0.03 | R106: 1447 | S106: 1602 | T106: 1602 | U106: 0.295 | V106: 0.923 | W106: 0.319 | X106: 0.319 | Y106: 0.354 | Z106: 0.342 | AA106: Harzburgite | AB106: 8.02 | AC106: 38.12 | AD106: 0.5
A107: samp. CBU6 | B107: low-Ti | C107: Caribbean | D107: 31.9 | E107: 46.76 | F107: 0.93 | G107: 10.91 | H107: 0.00 | I107: 0.46 | J107: 10.27 | K107: 0.15 | L107: 19.09 | M107: 9.53 | N107: 1.70 | O107: 0.13 | P107: 0.00 | Q107: 0.06 | R107: 1420 | S107: 1553 | T107: 1540 | U107: 0.300 | V107: 0.917 | W107: 0.231 | X107: 0.282 | Y107: 0.234 | Z107: 0.231 | AA107: Garnet Peridotite | AB107: 8.02 | AC107: 38.12 | AD107: 0.5
D108: 27.8 | E108: 47.00 | F108: 0.97 | G108: 11.35 | H108: 0.00 | I108: 0.96 | J108: 9.77 | K108: 0.15 | L108: 17.93 | M108: 9.91 | N108: 1.77 | O108: 0.13 | P108: 0.00 | Q108: 0.07 | R108: 1402 | S108: 1528 | T108: 1511 | U108: 0.301 | V108: 0.916 | W108: 0.233 | X108: 0.270 | Y108: 0.233 | Z108: 0.250 | AA108: Spinel Peridotite | AB108: 8.02 | AC108: 38.12 | AD108: 1
A109: samp. CBU8 | B109: low-Ti | C109: Caribbean | D109: 26.7 | E109: 46.58 | F109: 0.91 | G109: 11.75 | H109: 0.00 | I109: 0.45 | J109: 10.03 | K109: 0.19 | L109: 17.91 | M109: 10.25 | N109: 1.64 | O109: 0.22 | P109: 0.00 | Q109: 0.07 | R109: 1398 | S109: 1528 | T109: 1510 | U109: 0.298 | V109: 0.914 | W109: 0.169 | X109: 0.261 | Y109: 0.172 | Z109: 0.169 | AA109: Garnet Peridotite | AB109: 8.02 | AC109: 38.12 | AD109: 0.5
D110: 23.1 | E110: 46.78 | F110: 0.94 | G110: 12.17 | H110: 0.00 | I110: 0.93 | J110: 9.54 | K110: 0.19 | L110: 16.83 | M110: 10.61 | N110: 1.69 | O110: 0.23 | P110: 0.00 | Q110: 0.07 | R110: 1381 | S110: 1504 | T110: 1483 | U110: 0.300 | V110: 0.913 | W110: 0.168 | X110: 0.246 | Y110: 0.168 | Z110: 0.182 | AA110: Spinel Peridotite | AB110: 8.02 | AC110: 38.12 | AD110: 1
A111: samp. AMA3 | B111: low-Ti | C111: Caribbean | D111: 18.2 | E111: 49.14 | F111: 0.75 | G111: 11.67 | H111: 0.00 | I111: 0.37 | J111: 9.48 | K111: 0.17 | L111: 16.69 | M111: 10.38 | N111: 1.22 | O111: 0.07 | P111: 0.00 | Q111: 0.07 | R111: 1366 | S111: 1500 | T111: 1479 | U111: 0.312 | V111: 0.909 | W111: 0.291 | X111: 0.291 | Y111: 0.444 | Z111: 0.558 | AA111: Harzburgite | AB111: 8.44 | AC111: 38.12 | AD111: 0.5
D112: 15.2 | E112: 49.38 | F112: 0.77 | G112: 12.01 | H112: 0.00 | I112: 0.77 | J112: 9.09 | K112: 0.18 | L112: 15.73 | M112: 10.68 | N112: 1.26 | O112: 0.07 | P112: 0.00 | Q112: 0.07 | R112: 1350 | S112: 1477 | T112: 1454 | U112: 0.314 | V112: 0.908 | W112: 0.284 | X112: 0.284 | Y112: 0.438 | Z112: 0.590 | AA112: Harzburgite | AB112: 8.44 | AC112: 38.12 | AD112: 1
A113: samp. AMA4 | B113: low-Ti | C113: Caribbean | D113: 23.9 | E113: 48.36 | F113: 0.74 | G113: 11.48 | H113: 0.00 | I113: 0.37 | J113: 9.71 | K113: 0.17 | L113: 17.35 | M113: 10.23 | N113: 1.29 | O113: 0.24 | P113: 0.00 | Q113: 0.06 | R113: 1382 | S113: 1515 | T113: 1496 | U113: 0.308 | V113: 0.912 | W113: 0.289 | X113: 0.289 | Y113: 0.375 | Z113: 0.438 | AA113: Harzburgite | AB113: 8.38 | AC113: 38.12 | AD113: 0.5
D114: 20.5 | E114: 48.61 | F114: 0.76 | G114: 11.86 | H114: 0.00 | I114: 0.76 | J114: 9.31 | K114: 0.17 | L114: 16.30 | M114: 10.57 | N114: 1.34 | O114: 0.25 | P114: 0.00 | Q114: 0.07 | R114: 1364 | S114: 1491 | T114: 1469 | U114: 0.309 | V114: 0.910 | W114: 0.281 | X114: 0.281 | Y114: 0.371 | Z114: 0.465 | AA114: Harzburgite | AB114: 8.40 | AC114: 38.12 | AD114: 1
A115: samp. AMA6 | B115: low-Ti | C115: Caribbean | D115: 23.3 | E115: 48.54 | F115: 0.80 | G115: 11.55 | H115: 0.00 | I115: 0.40 | J115: 9.63 | K115: 0.18 | L115: 17.13 | M115: 9.72 | N115: 1.72 | O115: 0.26 | P115: 0.00 | Q115: 0.07 | R115: 1384 | S115: 1511 | T115: 1490 | U115: 0.308 | V115: 0.911 | W115: 0.286 | X115: 0.286 | Y115: 0.361 | Z115: 0.425 | AA115: Harzburgite | AB115: 8.38 | AC115: 38.12 | AD115: 0.5
D116: 19.7 | E116: 48.82 | F116: 0.83 | G116: 11.95 | H116: 0.00 | I116: 0.82 | J116: 9.19 | K116: 0.18 | L116: 16.03 | M116: 10.06 | N116: 1.79 | O116: 0.27 | P116: 0.00 | Q116: 0.07 | R116: 1365 | S116: 1485 | T116: 1462 | U116: 0.309 | V116: 0.910 | W116: 0.277 | X116: 0.277 | Y116: 0.357 | Z116: 0.454 | AA116: Harzburgite | AB116: 8.39 | AC116: 38.12 | AD116: 1
A117: samp. AMA9 | B117: low-Ti | C117: Caribbean | D117: 23.9 | E117: 48.59 | F117: 0.80 | G117: 11.47 | H117: 0.00 | I117: 0.39 | J117: 9.62 | K117: 0.18 | L117: 17.10 | M117: 10.30 | N117: 1.44 | O117: 0.03 | P117: 0.00 | Q117: 0.07 | R117: 1377 | S117: 1510 | T117: 1489 | U117: 0.309 | V117: 0.911 | W117: 0.286 | X117: 0.286 | Y117: 0.382 | Z117: 0.466 | AA117: Harzburgite | AB117: 8.38 | AC117: 38.12 | AD117: 0.5
D118: 20.3 | E118: 48.87 | F118: 0.82 | G118: 11.87 | H118: 0.00 | I118: 0.82 | J118: 9.18 | K118: 0.18 | L118: 15.99 | M118: 10.66 | N118: 1.49 | O118: 0.03 | P118: 0.00 | Q118: 0.07 | R118: 1358 | S118: 1484 | T118: 1461 | U118: 0.310 | V118: 0.909 | W118: 0.276 | X118: 0.276 | Y118: 0.375 | Z118: 0.497 | AA118: Harzburgite | AB118: 8.39 | AC118: 38.12 | AD118: 1
A119: samp. FLO1 | B119: low-Ti | C119: Caribbean | D119: 24.3 | E119: 48.75 | F119: 0.79 | G119: 11.31 | H119: 0.00 | I119: 0.39 | J119: 9.55 | K119: 0.17 | L119: 16.96 | M119: 9.68 | N119: 2.15 | O119: 0.16 | P119: 0.00 | Q119: 0.07 | R119: 1385 | S119: 1507 | T119: 1486 | U119: 0.307 | V119: 0.912 | W119: 0.281 | X119: 0.281 | Y119: 0.335 | Z119: 0.397 | AA119: Harzburgite | AB119: 8.36 | AC119: 38.12 | AD119: 0.5
D120: 20.7 | E120: 49.04 | F120: 0.82 | G120: 11.72 | H120: 0.00 | I120: 0.81 | J120: 9.11 | K120: 0.17 | L120: 15.84 | M120: 10.02 | N120: 2.23 | O120: 0.16 | P120: 0.00 | Q120: 0.07 | R120: 1366 | S120: 1480 | T120: 1457 | U120: 0.308 | V120: 0.910 | W120: 0.271 | X120: 0.271 | Y120: 0.329 | Z120: 0.424 | AA120: Harzburgite | AB120: 8.02 | AC120: 38.12 | AD120: 1
A121: samp. YAN4 | B121: low-Ti | C121: Caribbean | D121: 25.0 | E121: 48.99 | F121: 0.69 | G121: 11.24 | H121: 0.00 | I121: 0.34 | J121: 9.69 | K121: 0.18 | L121: 17.21 | M121: 10.49 | N121: 1.10 | O121: 0.02 | P121: 0.00 | Q121: 0.05 | R121: 1374 | S121: 1512 | T121: 1492 | U121: 0.312 | V121: 0.910 | W121: 0.297 | X121: 0.297 | Y121: 0.457 | Z121: 0.555 | AA121: Harzburgite | AB121: 8.44 | AC121: 38.12 | AD121: 0.5
A122: samp. AN53 | B122: low-Ti | C122: Caribbean | D122: 30.5 | E122: 47.30 | F122: 0.76 | G122: 10.81 | H122: 0.00 | I122: 0.37 | J122: 10.28 | K122: 0.23 | L122: 19.04 | M122: 9.63 | N122: 1.48 | O122: 0.04 | P122: 0.00 | Q122: 0.06 | R122: 1415 | S122: 1552 | T122: 1539 | U122: 0.302 | V122: 0.916 | W122: 0.293 | X122: 0.293 | Y122: 0.315 | Z122: 0.330 | AA122: Harzburgite | AB122: 8.27 | AC122: 38.12 | AD122: 0.5
D123: 26.6 | E123: 47.55 | F123: 0.79 | G123: 11.23 | H123: 0.00 | I123: 0.78 | J123: 9.89 | K123: 0.23 | L123: 17.89 | M123: 10.00 | N123: 1.54 | O123: 0.04 | P123: 0.00 | Q123: 0.06 | R123: 1397 | S123: 1527 | T123: 1510 | U123: 0.304 | V123: 0.914 | W123: 0.284 | X123: 0.284 | Y123: 0.314 | Z123: 0.352 | AA123: Harzburgite | AB123: 8.31 | AC123: 38.12 | AD123: 1
A124: samp. AN54 | B124: low-Ti | C124: Caribbean | D124: 28.8 | E124: 47.68 | F124: 0.76 | G124: 11.00 | H124: 0.00 | I124: 0.38 | J124: 10.10 | K124: 0.22 | L124: 18.47 | M124: 9.79 | N124: 1.49 | O124: 0.05 | P124: 0.00 | Q124: 0.06 | R124: 1405 | S124: 1540 | T124: 1525 | U124: 0.304 | V124: 0.915 | W124: 0.291 | X124: 0.291 | Y124: 0.336 | Z124: 0.366 | AA124: Harzburgite | AB124: 8.31 | AC124: 38.12 | AD124: 0.5
D125: 24.9 | E125: 47.94 | F125: 0.79 | G125: 11.41 | H125: 0.00 | I125: 0.78 | J125: 9.69 | K125: 0.22 | L125: 17.34 | M125: 10.15 | N125: 1.55 | O125: 0.06 | P125: 0.00 | Q125: 0.06 | R125: 1386 | S125: 1515 | T125: 1496 | U125: 0.306 | V125: 0.912 | W125: 0.282 | X125: 0.282 | Y125: 0.334 | Z125: 0.391 | AA125: Harzburgite | AB125: 8.34 | AC125: 38.12 | AD125: 1
A126: samp. AN75 | B126: low-Ti | C126: Caribbean | D126: 25.6 | E126: 48.19 | F126: 0.73 | G126: 11.21 | H126: 0.00 | I126: 0.36 | J126: 9.87 | K126: 0.19 | L126: 17.80 | M126: 9.73 | N126: 1.68 | O126: 0.17 | P126: 0.00 | Q126: 0.06 | R126: 1395 | S126: 1526 | T126: 1507 | U126: 0.306 | V126: 0.913 | W126: 0.290 | X126: 0.290 | Y126: 0.350 | Z126: 0.393 | AA126: Harzburgite | AB126: 8.35 | AC126: 38.12 | AD126: 0.5
D127: 22.0 | E127: 48.45 | F127: 0.76 | G127: 11.60 | H127: 0.00 | I127: 0.75 | J127: 9.48 | K127: 0.19 | L127: 16.73 | M127: 10.06 | N127: 1.74 | O127: 0.17 | P127: 0.00 | Q127: 0.07 | R127: 1377 | S127: 1501 | T127: 1480 | U127: 0.308 | V127: 0.911 | W127: 0.281 | X127: 0.281 | Y127: 0.347 | Z127: 0.418 | AA127: Harzburgite | AB127: 8.38 | AC127: 38.12 | AD127: 1
A128: samp. AN76 | B128: low-Ti | C128: Caribbean | D128: 23.0 | E128: 48.52 | F128: 0.62 | G128: 11.91 | H128: 0.00 | I128: 0.31 | J128: 9.55 | K128: 0.16 | L128: 16.93 | M128: 10.13 | N128: 1.54 | O128: 0.28 | P128: 0.00 | Q128: 0.04 | R128: 1377 | S128: 1506 | T128: 1485 | U128: 0.308 | V128: 0.911 | W128: 0.284 | X128: 0.284 | Y128: 0.350 | Z128: 0.412 | AA128: Harzburgite | AB128: 8.38 | AC128: 38.12 | AD128: 0.5
D129: 20.2 | E129: 48.73 | F129: 0.64 | G129: 12.23 | H129: 0.00 | I129: 0.64 | J129: 9.21 | K129: 0.17 | L129: 16.07 | M129: 10.41 | N129: 1.59 | O129: 0.29 | P129: 0.00 | Q129: 0.04 | R129: 1362 | S129: 1486 | T129: 1463 | U129: 0.309 | V129: 0.910 | W129: 0.277 | X129: 0.277 | Y129: 0.346 | Z129: 0.433 | AA129: Harzburgite | AB129: 8.39 | AC129: 38.12 | AD129: 1
A130: samp. AN87 | B130: low-Ti | C130: Caribbean | D130: 22.4 | E130: 48.66 | F130: 0.63 | G130: 11.86 | H130: 0.00 | I130: 0.32 | J130: 9.48 | K130: 0.16 | L130: 16.75 | M130: 10.21 | N130: 1.61 | O130: 0.28 | P130: 0.00 | Q130: 0.04 | R130: 1374 | S130: 1502 | T130: 1480 | U130: 0.308 | V130: 0.911 | W130: 0.283 | X130: 0.283 | Y130: 0.350 | Z130: 0.416 | AA130: Harzburgite | AB130: 8.38 | AC130: 38.12 | AD130: 0.5
D131: 19.6 | E131: 48.88 | F131: 0.65 | G131: 12.19 | H131: 0.00 | I131: 0.65 | J131: 9.13 | K131: 0.16 | L131: 15.87 | M131: 10.48 | N131: 1.65 | O131: 0.29 | P131: 0.00 | Q131: 0.04 | R131: 1359 | S131: 1481 | T131: 1458 | U131: 0.309 | V131: 0.909 | W131: 0.276 | X131: 0.276 | Y131: 0.345 | Z131: 0.438 | AA131: Harzburgite | AB131: 8.39 | AC131: 38.12 | AD131: 1
A132: samp. BN14 | B132: low-Ti | C132: Caribbean | D132: 30.4 | E132: 47.41 | F132: 0.65 | G132: 10.98 | H132: 0.00 | I132: 0.32 | J132: 10.00 | K132: 0.17 | L132: 18.76 | M132: 9.49 | N132: 1.82 | O132: 0.35 | P132: 0.00 | Q132: 0.05 | R132: 1417 | S132: 1546 | T132: 1532 | U132: 0.302 | V132: 0.917 | W132: 0.261 | X132: 0.289 | Y132: 0.261 | Z132: 0.258 | AA132: Spinel Peridotite | AB132: 8.02 | AC132: 38.12 | AD132: 0.5
D133: 26.3 | E133: 47.69 | F133: 0.67 | G133: 11.43 | H133: 0.00 | I133: 0.67 | J133: 9.67 | K133: 0.17 | L133: 17.52 | M133: 9.87 | N133: 1.90 | O133: 0.37 | P133: 0.00 | Q133: 0.05 | R133: 1396 | S133: 1519 | T133: 1500 | U133: 0.303 | V133: 0.914 | W133: 0.258 | X133: 0.279 | Y133: 0.258 | Z133: 0.274 | AA133: Spinel Peridotite | AB133: 8.17 | AC133: 38.12 | AD133: 1
A134: samp. BN19 | B134: low-Ti | C134: Caribbean | D134: 17.6 | E134: 49.46 | F134: 0.76 | G134: 12.63 | H134: 0.00 | I134: 0.38 | J134: 8.78 | K134: 0.17 | L134: 15.06 | M134: 10.97 | N134: 1.59 | O134: 0.14 | P134: 0.00 | Q134: 0.06 | R134: 1338 | S134: 1461 | T134: 1437 | U134: 0.311 | V134: 0.908 | W134: 0.267 | X134: 0.267 | Y134: 0.352 | Z134: 0.500 | AA134: Harzburgite | AB134: 8.38 | AC134: 38.12 | AD134: 0.5
D135: 14.6 | E135: 49.72 | F135: 0.78 | G135: 13.01 | H135: 0.00 | I135: 0.78 | J135: 8.34 | K135: 0.17 | L135: 14.07 | M135: 11.29 | N135: 1.64 | O135: 0.14 | P135: 0.00 | Q135: 0.06 | R135: 1320 | S135: 1434 | T135: 1411 | U135: 0.312 | V135: 0.906 | W135: 0.256 | X135: 0.256 | Y135: 0.338 | Z135: 0.531 | AA135: Harzburgite | AB135: 8.36 | AC135: 38.12 | AD135: 1
A136: samp. BUR5 | B136: low-Ti | C136: Caribbean | D136: 21.9 | E136: 48.44 | F136: 0.71 | G136: 12.02 | H136: 0.00 | I136: 0.35 | J136: 9.42 | K136: 0.16 | L136: 16.65 | M136: 10.50 | N136: 1.60 | O136: 0.09 | P136: 0.00 | Q136: 0.05 | R136: 1370 | S136: 1500 | T136: 1478 | U136: 0.307 | V136: 0.911 | W136: 0.274 | X136: 0.274 | Y136: 0.321 | Z136: 0.395 | AA136: Harzburgite | AB136: 8.34 | AC136: 38.12 | AD136: 0.5
D137: 18.8 | E137: 48.68 | F137: 0.73 | G137: 12.39 | H137: 0.00 | I137: 0.73 | J137: 9.03 | K137: 0.16 | L137: 15.67 | M137: 10.82 | N137: 1.65 | O137: 0.09 | P137: 0.00 | Q137: 0.05 | R137: 1353 | S137: 1476 | T137: 1452 | U137: 0.308 | V137: 0.909 | W137: 0.265 | X137: 0.265 | Y137: 0.314 | Z137: 0.419 | AA137: Harzburgite | AB137: 8.02 | AC137: 38.12 | AD137: 1
A138: samp. BUR11 | B138: low-Ti | C138: Caribbean | D138: 26.6 | E138: 47.33 | F138: 0.90 | G138: 11.44 | H138: 0.00 | I138: 0.45 | J138: 9.95 | K138: 0.20 | L138: 17.76 | M138: 9.59 | N138: 2.22 | O138: 0.08 | P138: 0.00 | Q138: 0.07 | R138: 1401 | S138: 1525 | T138: 1506 | U138: 0.301 | V138: 0.913 | W138: 0.212 | X138: 0.266 | Y138: 0.212 | Z138: 0.222 | AA138: Spinel Peridotite | AB138: 8.16 | AC138: 38.12 | AD138: 0.5
D139: 24.0 | E139: 47.51 | F139: 0.92 | G139: 11.73 | H139: 0.00 | I139: 0.92 | J139: 9.45 | K139: 0.20 | L139: 17.00 | M139: 9.84 | N139: 2.28 | O139: 0.08 | P139: 0.00 | Q139: 0.07 | R139: 1390 | S139: 1508 | T139: 1487 | U139: 0.302 | V139: 0.914 | W139: 0.211 | X139: 0.257 | Y139: 0.211 | Z139: 0.238 | AA139: Spinel Peridotite | AB139: 8.02 | AC139: 38.12 | AD139: 1
A140: samp. BN10 | B140: low-Ti | C140: Caribbean | D140: 22.8 | E140: 48.98 | F140: 0.71 | G140: 11.85 | H140: 0.00 | I140: 0.35 | J140: 9.38 | K140: 0.16 | L140: 16.44 | M140: 10.24 | N140: 1.34 | O140: 0.51 | P140: 0.00 | Q140: 0.04 | R140: 1367 | S140: 1495 | T140: 1473 | U140: 0.310 | V140: 0.910 | W140: 0.289 | X140: 0.289 | Y140: 0.395 | Z140: 0.477 | AA140: Harzburgite | AB140: 8.43 | AC140: 38.12 | AD140: 0.5
D141: 19.6 | E141: 49.24 | F141: 0.73 | G141: 12.22 | H141: 0.00 | I141: 0.73 | J141: 8.97 | K141: 0.16 | L141: 15.45 | M141: 10.55 | N141: 1.39 | O141: 0.52 | P141: 0.00 | Q141: 0.04 | R141: 1350 | S141: 1471 | T141: 1447 | U141: 0.311 | V141: 0.908 | W141: 0.281 | X141: 0.281 | Y141: 0.391 | Z141: 0.504 | AA141: Harzburgite | AB141: 8.44 | AC141: 38.12 | AD141: 1
A142: samp. GOR-94-19 | B142: low-Ti | C142: Caribbean | D142: -1.4 | E142: 46.20 | F142: 0.64 | G142: 10.97 | H142: 0.00 | I142: 0.32 | J142: 10.81 | K142: 0.18 | L142: 20.59 | M142: 9.30 | N142: 0.91 | O142: 0.03 | P142: 0.00 | Q142: 0.05 | R142: 1438 | S142: 1583 | T142: 1578 | U142: 0.297 | V142: 0.920 | W142: 0.304 | X142: 0.304 | Y142: 0.307 | Z142: 0.300 | AA142: Harzburgite | AB142: 8.22 | AC142: 38.12 | AD142: 0.5
D143: -1.6 | E143: 46.19 | F143: 0.64 | G143: 10.99 | H143: 0.00 | I143: 0.64 | J143: 10.52 | K143: 0.18 | L143: 20.53 | M143: 9.31 | N143: 0.91 | O143: 0.03 | P143: 0.00 | Q143: 0.05 | R143: 1438 | S143: 1582 | T143: 1577 | U143: 0.297 | V143: 0.921 | W143: 0.303 | X143: 0.303 | Y143: 0.314 | Z143: 0.309 | AA143: Harzburgite | AB143: 8.02 | AC143: 38.12 | AD143: 1
A144: samp. GOR-94-32 | B144: low-Ti | C144: Caribbean | D144: -11.5 | E144: 47.55 | F144: 0.39 | G144: 11.89 | H144: 0.00 | I144: 0.20 | J144: 10.32 | K144: 0.18 | L144: 19.02 | M144: 9.71 | N144: 0.63 | O144: 0.08 | P144: 0.00 | Q144: 0.03 | R144: 1404 | S144: 1552 | T144: 1539 | U144: 0.305 | V144: 0.915 | W144: 0.307 | X144: 0.307 | Y144: 0.423 | Z144: 0.461 | AA144: Harzburgite | AB144: 8.35 | AC144: 38.12 | AD144: 0.5
D145: -12.8 | E145: 47.63 | F145: 0.40 | G145: 12.04 | H145: 0.00 | I145: 0.40 | J145: 10.17 | K145: 0.18 | L145: 18.60 | M145: 9.83 | N145: 0.64 | O145: 0.08 | P145: 0.00 | Q145: 0.03 | R145: 1398 | S145: 1543 | T145: 1528 | U145: 0.306 | V145: 0.914 | W145: 0.304 | X145: 0.304 | Y145: 0.425 | Z145: 0.473 | AA145: Harzburgite | AB145: 8.37 | AC145: 38.12 | AD145: 1
A146: samp. GOR-156 | B146: low-Ti | C146: Caribbean | D146: -5.5 | E146: 45.97 | F146: 0.46 | G146: 10.35 | H146: 0.00 | I146: 0.23 | J146: 11.12 | K146: 0.00 | L146: 22.35 | M146: 8.87 | N146: 0.63 | O146: 0.01 | P146: 0.00 | Q146: 0.00 | R146: 1464 | S146: 1617 | T146: 1622 | U146: 0.294 | V146: 0.924 | W146: 0.322 | X146: 0.327 | Y146: 0.344 | Z146: 0.322 | AA146: Garnet Peridotite | AB146: 8.02 | AC146: 38.12 | AD146: 0.5
D147: -6.9 | E147: 46.02 | F147: 0.47 | G147: 10.48 | H147: 0.00 | I147: 0.47 | J147: 10.97 | K147: 0.00 | L147: 21.95 | M147: 8.98 | N147: 0.64 | O147: 0.01 | P147: 0.00 | Q147: 0.00 | R147: 1458 | S147: 1609 | T147: 1612 | U147: 0.295 | V147: 0.924 | W147: 0.323 | X147: 0.323 | Y147: 0.349 | Z147: 0.331 | AA147: Harzburgite | AB147: 8.02 | AC147: 38.12 | AD147: 1
A148: samp. GOR-139 | B148: low-Ti | C148: Caribbean | D148: -5.4 | E148: 45.69 | F148: 0.49 | G148: 10.84 | H148: 0.00 | I148: 0.24 | J148: 11.18 | K148: 0.00 | L148: 21.53 | M148: 9.24 | N148: 0.78 | O148: 0.02 | P148: 0.00 | Q148: 0.00 | R148: 1453 | S148: 1601 | T148: 1602 | U148: 0.293 | V148: 0.921 | W148: 0.253 | X148: 0.309 | Y148: 0.276 | Z148: 0.253 | AA148: Garnet Peridotite | AB148: 8.02 | AC148: 38.12 | AD148: 0.5
D149: -6.5 | E149: 45.73 | F149: 0.49 | G149: 10.95 | H149: 0.00 | I149: 0.49 | J149: 11.00 | K149: 0.00 | L149: 21.19 | M149: 9.34 | N149: 0.78 | O149: 0.02 | P149: 0.00 | Q149: 0.00 | R149: 1448 | S149: 1595 | T149: 1593 | U149: 0.294 | V149: 0.921 | W149: 0.261 | X149: 0.306 | Y149: 0.280 | Z149: 0.261 | AA149: Garnet Peridotite | AB149: 8.02 | AC149: 38.12 | AD149: 1
A150: samp. GOR-142 | B150: low-Ti | C150: Caribbean | D150: -3.4 | E150: 46.23 | F150: 0.54 | G150: 10.86 | H150: 0.00 | I150: 0.27 | J150: 10.79 | K150: 0.00 | L150: 21.35 | M150: 9.21 | N150: 0.74 | O150: 0.02 | P150: 0.00 | Q150: 0.00 | R150: 1447 | S150: 1598 | T150: 1597 | U150: 0.296 | V150: 0.922 | W150: 0.312 | X150: 0.312 | Y150: 0.331 | Z150: 0.320 | AA150: Harzburgite | AB150: 8.02 | AC150: 38.12 | AD150: 0.5
D151: -5.8 | E151: 46.34 | F151: 0.55 | G151: 11.13 | H151: 0.00 | I151: 0.55 | J151: 10.63 | K151: 0.00 | L151: 20.60 | M151: 9.43 | N151: 0.75 | O151: 0.02 | P151: 0.00 | Q151: 0.00 | R151: 1436 | S151: 1584 | T151: 1579 | U151: 0.298 | V151: 0.921 | W151: 0.306 | X151: 0.306 | Y151: 0.334 | Z151: 0.333 | AA151: Harzburgite | AB151: 8.09 | AC151: 38.12 | AD151: 1
A152: samp. GOR-145 | B152: low-Ti | C152: Caribbean | D152: 3.0 | E152: 45.97 | F152: 0.52 | G152: 10.81 | H152: 0.00 | I152: 0.26 | J152: 11.00 | K152: 0.00 | L152: 21.55 | M152: 9.06 | N152: 0.82 | O152: 0.03 | P152: 0.00 | Q152: 0.00 | R152: 1453 | S152: 1602 | T152: 1602 | U152: 0.295 | V152: 0.922 | W152: 0.288 | X152: 0.312 | Y152: 0.306 | Z152: 0.288 | AA152: Garnet Peridotite | AB152: 8.02 | AC152: 38.12 | AD152: 0.5
D153: 1.7 | E153: 46.03 | F153: 0.52 | G153: 10.94 | H153: 0.00 | I153: 0.52 | J153: 10.80 | K153: 0.00 | L153: 21.16 | M153: 9.17 | N153: 0.83 | O153: 0.03 | P153: 0.00 | Q153: 0.00 | R153: 1447 | S153: 1594 | T153: 1593 | U153: 0.296 | V153: 0.922 | W153: 0.298 | X153: 0.309 | Y153: 0.311 | Z153: 0.298 | AA153: Garnet Peridotite | AB153: 8.02 | AC153: 38.12 | AD153: 1
A154: samp. GOR-166 | B154: low-Ti | C154: Caribbean | D154: 7.8 | E154: 46.01 | F154: 0.49 | G154: 10.50 | H154: 0.00 | I154: 0.25 | J154: 11.05 | K154: 0.00 | L154: 21.84 | M154: 9.11 | N154: 0.75 | O154: 0.00 | P154: 0.00 | Q154: 0.00 | R154: 1456 | S154: 1607 | T154: 1609 | U154: 0.295 | V154: 0.923 | W154: 0.299 | X154: 0.318 | Y154: 0.319 | Z154: 0.299 | AA154: Garnet Peridotite | AB154: 8.02 | AC154: 38.12 | AD154: 0.5
D155: 6.8 | E155: 46.05 | F155: 0.50 | G155: 10.60 | H155: 0.00 | I155: 0.50 | J155: 10.85 | K155: 0.00 | L155: 21.55 | M155: 9.20 | N155: 0.76 | O155: 0.00 | P155: 0.00 | Q155: 0.00 | R155: 1453 | S155: 1602 | T155: 1602 | U155: 0.296 | V155: 0.923 | W155: 0.315 | X155: 0.315 | Y155: 0.324 | Z155: 0.307 | AA155: Harzburgite | AB155: 8.02 | AC155: 38.12 | AD155: 1
A156: samp. GOR-141 | B156: low-Ti | C156: Caribbean | D156: 9.6 | E156: 45.85 | F156: 0.51 | G156: 10.82 | H156: 0.00 | I156: 0.25 | J156: 11.07 | K156: 0.00 | L156: 21.42 | M156: 9.27 | N156: 0.81 | O156: 0.00 | P156: 0.00 | Q156: 0.00 | R156: 1450 | S156: 1599 | T156: 1599 | U156: 0.294 | V156: 0.921 | W156: 0.265 | X156: 0.309 | Y156: 0.285 | Z156: 0.265 | AA156: Garnet Peridotite | AB156: 8.02 | AC156: 38.12 | AD156: 0.5
D157: 8.3 | E157: 45.90 | F157: 0.51 | G157: 10.96 | H157: 0.00 | I157: 0.51 | J157: 10.87 | K157: 0.00 | L157: 21.03 | M157: 9.39 | N157: 0.83 | O157: 0.00 | P157: 0.00 | Q157: 0.00 | R157: 1445 | S157: 1592 | T157: 1589 | U157: 0.295 | V157: 0.921 | W157: 0.274 | X157: 0.305 | Y157: 0.289 | Z157: 0.274 | AA157: Garnet Peridotite | AB157: 8.02 | AC157: 38.12 | AD157: 1
A158: samp. GOR-149 | B158: low-Ti | C158: Caribbean | D158: 8.6 | E158: 46.06 | F158: 0.53 | G158: 11.13 | H158: 0.00 | I158: 0.27 | J158: 10.84 | K158: 0.00 | L158: 20.65 | M158: 9.48 | N158: 0.98 | O158: 0.07 | P158: 0.00 | Q158: 0.00 | R158: 1439 | S158: 1584 | T158: 1580 | U158: 0.296 | V158: 0.920 | W158: 0.248 | X158: 0.299 | Y158: 0.264 | Z158: 0.248 | AA158: Garnet Peridotite | AB158: 8.02 | AC158: 38.12 | AD158: 0.5
D159: 7.2 | E159: 46.12 | F159: 0.54 | G159: 11.28 | H159: 0.00 | I159: 0.54 | J159: 10.62 | K159: 0.00 | L159: 20.21 | M159: 9.61 | N159: 1.00 | O159: 0.07 | P159: 0.00 | Q159: 0.00 | R159: 1433 | S159: 1576 | T159: 1569 | U159: 0.297 | V159: 0.920 | W159: 0.257 | X159: 0.296 | Y159: 0.267 | Z159: 0.257 | AA159: Garnet Peridotite | AB159: 8.02 | AC159: 38.12 | AD159: 1
A160: samp. GOR-148 | B160: low-Ti | C160: Caribbean | D160: 12.6 | E160: 46.08 | F160: 0.55 | G160: 10.93 | H160: 0.00 | I160: 0.27 | J160: 10.88 | K160: 0.00 | L160: 21.38 | M160: 9.00 | N160: 0.84 | O160: 0.07 | P160: 0.00 | Q160: 0.00 | R160: 1450 | S160: 1599 | T160: 1598 | U160: 0.296 | V160: 0.922 | W160: 0.297 | X160: 0.311 | Y160: 0.312 | Z160: 0.297 | AA160: Garnet Peridotite | AB160: 8.02 | AC160: 38.12 | AD160: 0.5
D161: 8.9 | E161: 46.26 | F161: 0.57 | G161: 11.33 | H161: 0.00 | I161: 0.57 | J161: 10.72 | K161: 0.00 | L161: 20.29 | M161: 9.33 | N161: 0.87 | O161: 0.07 | P161: 0.00 | Q161: 0.00 | R161: 1433 | S161: 1577 | T161: 1571 | U161: 0.298 | V161: 0.919 | W161: 0.302 | X161: 0.302 | Y161: 0.314 | Z161: 0.313 | AA161: Harzburgite | AB161: 8.24 | AC161: 38.12 | AD161: 1
A162: samp. GOR-146 | B162: low-Ti | C162: Caribbean | D162: 12.7 | E162: 45.98 | F162: 0.54 | G162: 10.97 | H162: 0.00 | I162: 0.27 | J162: 10.95 | K162: 0.00 | L162: 21.00 | M162: 9.30 | N162: 0.94 | O162: 0.06 | P162: 0.00 | Q162: 0.00 | R162: 1445 | S162: 1591 | T162: 1589 | U162: 0.295 | V162: 0.920 | W162: 0.257 | X162: 0.304 | Y162: 0.275 | Z162: 0.257 | AA162: Garnet Peridotite | AB162: 8.02 | AC162: 38.12 | AD162: 0.5
D163: 11.2 | E163: 46.04 | F163: 0.55 | G163: 11.13 | H163: 0.00 | I163: 0.55 | J163: 10.72 | K163: 0.00 | L163: 20.56 | M163: 9.43 | N163: 0.95 | O163: 0.06 | P163: 0.00 | Q163: 0.00 | R163: 1439 | S163: 1583 | T163: 1578 | U163: 0.296 | V163: 0.920 | W163: 0.266 | X163: 0.300 | Y163: 0.279 | Z163: 0.266 | AA163: Garnet Peridotite | AB163: 8.02 | AC163: 38.12 | AD163: 1
A164: samp. GOR-157 | B164: low-Ti | C164: Caribbean | D164: 17.3 | E164: 46.09 | F164: 0.50 | G164: 10.85 | H164: 0.00 | I164: 0.25 | J164: 10.93 | K164: 0.00 | L164: 21.12 | M164: 9.25 | N164: 0.93 | O164: 0.08 | P164: 0.00 | Q164: 0.00 | R164: 1447 | S164: 1594 | T164: 1592 | U164: 0.296 | V164: 0.921 | W164: 0.269 | X164: 0.308 | Y164: 0.287 | Z164: 0.269 | AA164: Garnet Peridotite | AB164: 8.02 | AC164: 38.12 | AD164: 0.5
D165: 15.8 | E165: 46.16 | F165: 0.51 | G165: 11.01 | H165: 0.00 | I165: 0.51 | J165: 10.72 | K165: 0.00 | L165: 20.68 | M165: 9.39 | N165: 0.94 | O165: 0.09 | P165: 0.00 | Q165: 0.00 | R165: 1441 | S165: 1585 | T165: 1580 | U165: 0.297 | V165: 0.921 | W165: 0.278 | X165: 0.304 | Y165: 0.291 | Z165: 0.278 | AA165: Garnet Peridotite | AB165: 8.02 | AC165: 38.12 | AD165: 1
A166: samp. GOR-167 | B166: low-Ti | C166: Caribbean | D166: 23.4 | E166: 45.84 | F166: 0.54 | G166: 11.12 | H166: 0.00 | I166: 0.27 | J166: 10.96 | K166: 0.00 | L166: 20.69 | M166: 9.63 | N166: 0.92 | O166: 0.02 | P166: 0.00 | Q166: 0.00 | R166: 1439 | S166: 1585 | T166: 1581 | U166: 0.295 | V166: 0.919 | W166: 0.228 | X166: 0.297 | Y166: 0.247 | Z166: 0.228 | AA166: Garnet Peridotite | AB166: 8.02 | AC166: 38.12 | AD166: 0.5
D167: 21.7 | E167: 45.92 | F167: 0.55 | G167: 11.31 | H167: 0.00 | I167: 0.54 | J167: 10.72 | K167: 0.00 | L167: 20.21 | M167: 9.78 | N167: 0.94 | O167: 0.02 | P167: 0.00 | Q167: 0.00 | R167: 1432 | S167: 1576 | T167: 1569 | U167: 0.296 | V167: 0.919 | W167: 0.237 | X167: 0.293 | Y167: 0.250 | Z167: 0.237 | AA167: Garnet Peridotite | AB167: 8.02 | AC167: 38.12 | AD167: 1
A168: samp. GOR-94-32 | B168: low-Ti | C168: Caribbean | D168: 9.7 | E168: 45.78 | F168: 0.62 | G168: 11.44 | H168: 0.00 | I168: 0.31 | J168: 10.79 | K168: 0.19 | L168: 19.74 | M168: 9.94 | N168: 1.13 | O168: 0.02 | P168: 0.00 | Q168: 0.05 | R168: 1426 | S168: 1566 | T168: 1557 | U168: 0.295 | V168: 0.917 | W168: 0.182 | X168: 0.283 | Y168: 0.200 | Z168: 0.182 | AA168: Garnet Peridotite | AB168: 8.02 | AC168: 38.12 | AD168: 0.5
D169: 8.0 | E169: 45.85 | F169: 0.63 | G169: 11.62 | H169: 0.00 | I169: 0.63 | J169: 10.53 | K169: 0.19 | L169: 19.24 | M169: 10.10 | N169: 1.15 | O169: 0.02 | P169: 0.00 | Q169: 0.05 | R169: 1419 | S169: 1556 | T169: 1544 | U169: 0.296 | V169: 0.917 | W169: 0.191 | X169: 0.279 | Y169: 0.202 | Z169: 0.191 | AA169: Garnet Peridotite | AB169: 8.02 | AC169: 38.12 | AD169: 1
A170: samp. GOR-94-19 | B170: low-Ti | C170: Caribbean | D170: 0.6 | E170: 46.10 | F170: 0.63 | G170: 10.76 | H170: 0.00 | I170: 0.32 | J170: 10.75 | K170: 0.18 | L170: 21.18 | M170: 9.12 | N170: 0.89 | O170: 0.03 | P170: 0.00 | Q170: 0.05 | R170: 1447 | S170: 1595 | T170: 1593 | U170: 0.296 | V170: 0.922 | W170: 0.309 | X170: 0.309 | Y170: 0.309 | Z170: 0.296 | AA170: Harzburgite | AB170: 8.02 | AC170: 38.12 | AD170: 0.5
D171: -1.6 | E171: 46.19 | F171: 0.64 | G171: 10.99 | H171: 0.00 | I171: 0.64 | J171: 10.52 | K171: 0.18 | L171: 20.53 | M171: 9.31 | N171: 0.91 | O171: 0.03 | P171: 0.00 | Q171: 0.05 | R171: 1438 | S171: 1582 | T171: 1577 | U171: 0.297 | V171: 0.921 | W171: 0.303 | X171: 0.303 | Y171: 0.313 | Z171: 0.309 | AA171: Harzburgite | AB171: 8.02 | AC171: 38.12 | AD171: 1
A172: samp. 6 | B172: low-Ti | C172: Caribbean | D172: 15.3 | E172: 46.13 | F172: 0.62 | G172: 10.96 | H172: 0.00 | I172: 0.31 | J172: 10.72 | K172: 0.19 | L172: 20.58 | M172: 9.42 | N172: 0.97 | O172: 0.04 | P172: 0.00 | Q172: 0.04 | R172: 1438 | S172: 1583 | T172: 1578 | U172: 0.296 | V172: 0.920 | W172: 0.271 | X172: 0.301 | Y172: 0.282 | Z172: 0.271 | AA172: Garnet Peridotite | AB172: 8.02 | AC172: 38.12 | AD172: 0.5
D173: 13.7 | E173: 46.20 | F173: 0.63 | G173: 11.13 | H173: 0.00 | I173: 0.63 | J173: 10.44 | K173: 0.19 | L173: 20.13 | M173: 9.56 | N173: 0.99 | O173: 0.04 | P173: 0.00 | Q173: 0.04 | R173: 1432 | S173: 1574 | T173: 1567 | U173: 0.297 | V173: 0.920 | W173: 0.287 | X173: 0.297 | Y173: 0.287 | Z173: 0.282 | AA173: Spinel Peridotite | AB173: 8.02 | AC173: 38.12 | AD173: 1
A174: samp. 23B | B174: low-Ti | C174: Caribbean | D174: 13.2 | E174: 44.60 | F174: 0.60 | G174: 10.65 | H174: 0.00 | I174: 0.30 | J174: 11.88 | K174: 0.18 | L174: 22.05 | M174: 8.86 | N174: 0.81 | O174: 0.03 | P174: 0.00 | Q174: 0.04 | R174: 1467 | S174: 1611 | T174: 1615 | U174: 0.288 | V174: 0.920 | W174: 0.169 | X174: 0.306 | Y174: 0.202 | Z174: 0.169 | AA174: Garnet Peridotite | AB174: 8.02 | AC174: 38.12 | AD174: 0.5
D175: 11.6 | E175: 44.65 | F175: 0.60 | G175: 10.81 | H175: 0.00 | I175: 0.60 | J175: 11.65 | K175: 0.18 | L175: 21.62 | M175: 8.99 | N175: 0.83 | O175: 0.03 | P175: 0.00 | Q175: 0.04 | R175: 1461 | S175: 1603 | T175: 1604 | U175: 0.289 | V175: 0.920 | W175: 0.176 | X175: 0.302 | Y175: 0.207 | Z175: 0.176 | AA175: Garnet Peridotite | AB175: 8.02 | AC175: 38.12 | AD175: 1
A176: samp. 38 | B176: low-Ti | C176: Caribbean | D176: 12.5 | E176: 45.75 | F176: 0.57 | G176: 11.70 | H176: 0.00 | I176: 0.28 | J176: 10.81 | K176: 0.20 | L176: 19.78 | M176: 9.59 | N176: 1.27 | O176: 0.02 | P176: 0.00 | Q176: 0.04 | R176: 1428 | S176: 1567 | T176: 1558 | U176: 0.295 | V176: 0.917 | W176: 0.180 | X176: 0.283 | Y176: 0.198 | Z176: 0.180 | AA176: Garnet Peridotite | AB176: 8.02 | AC176: 38.12 | AD176: 0.5
D177: 11.0 | E177: 45.81 | F177: 0.58 | G177: 11.88 | H177: 0.00 | I177: 0.57 | J177: 10.57 | K177: 0.20 | L177: 19.31 | M177: 9.73 | N177: 1.28 | O177: 0.02 | P177: 0.00 | Q177: 0.04 | R177: 1422 | S177: 1558 | T177: 1546 | U177: 0.296 | V177: 0.917 | W177: 0.188 | X177: 0.279 | Y177: 0.201 | Z177: 0.188 | AA177: Garnet Peridotite | AB177: 8.02 | AC177: 38.12 | AD177: 1
A178: samp. 71 | B178: low-Ti | C178: Caribbean | D178: 9.8 | E178: 46.01 | F178: 0.61 | G178: 11.18 | H178: 0.00 | I178: 0.30 | J178: 10.80 | K178: 0.17 | L178: 20.14 | M178: 9.56 | N178: 1.21 | O178: 0.02 | P178: 0.00 | Q178: 0.00 | R178: 1433 | S178: 1574 | T178: 1567 | U178: 0.296 | V178: 0.918 | W178: 0.216 | X178: 0.291 | Y178: 0.232 | Z178: 0.216 | AA178: Garnet Peridotite | AB178: 8.02 | AC178: 38.12 | AD178: 0.5
D179: 8.2 | E179: 46.08 | F179: 0.62 | G179: 11.36 | H179: 0.00 | I179: 0.62 | J179: 10.54 | K179: 0.18 | L179: 19.66 | M179: 9.70 | N179: 1.23 | O179: 0.02 | P179: 0.00 | Q179: 0.00 | R179: 1426 | S179: 1565 | T179: 1555 | U179: 0.297 | V179: 0.918 | W179: 0.225 | X179: 0.287 | Y179: 0.235 | Z179: 0.225 | AA179: Garnet Peridotite | AB179: 8.02 | AC179: 38.12 | AD179: 1
A180: samp. 72 | B180: low-Ti | C180: Caribbean | D180: 12.8 | E180: 45.72 | F180: 0.63 | G180: 11.21 | H180: 0.00 | I180: 0.32 | J180: 10.91 | K180: 0.20 | L180: 20.30 | M180: 9.62 | N180: 1.06 | O180: 0.02 | P180: 0.00 | Q180: 0.00 | R180: 1435 | S180: 1578 | T180: 1571 | U180: 0.294 | V180: 0.918 | W180: 0.205 | X180: 0.291 | Y180: 0.223 | Z180: 0.205 | AA180: Garnet Peridotite | AB180: 8.02 | AC180: 38.12 | AD180: 0.5
D181: 11.0 | E181: 45.80 | F181: 0.64 | G181: 11.41 | H181: 0.00 | I181: 0.64 | J181: 10.65 | K181: 0.21 | L181: 19.78 | M181: 9.79 | N181: 1.08 | O181: 0.02 | P181: 0.00 | Q181: 0.00 | R181: 1427 | S181: 1567 | T181: 1558 | U181: 0.295 | V181: 0.918 | W181: 0.214 | X181: 0.287 | Y181: 0.227 | Z181: 0.214 | AA181: Garnet Peridotite | AB181: 8.02 | AC181: 38.12 | AD181: 1
A182: samp. 73 | B182: low-Ti | C182: Caribbean | D182: 14.5 | E182: 45.86 | F182: 0.62 | G182: 11.36 | H182: 0.00 | I182: 0.31 | J182: 10.80 | K182: 0.20 | L182: 20.17 | M182: 9.54 | N182: 1.10 | O182: 0.03 | P182: 0.00 | Q182: 0.00 | R182: 1433 | S182: 1575 | T182: 1568 | U182: 0.295 | V182: 0.919 | W182: 0.218 | X182: 0.291 | Y182: 0.233 | Z182: 0.218 | AA182: Garnet Peridotite | AB182: 8.02 | AC182: 38.12 | AD182: 0.5
D183: 12.8 | E183: 45.94 | F183: 0.63 | G183: 11.55 | H183: 0.00 | I183: 0.63 | J183: 10.53 | K183: 0.20 | L183: 19.67 | M183: 9.70 | N183: 1.12 | O183: 0.03 | P183: 0.00 | Q183: 0.00 | R183: 1425 | S183: 1565 | T183: 1555 | U183: 0.296 | V183: 0.918 | W183: 0.228 | X183: 0.286 | Y183: 0.236 | Z183: 0.228 | AA183: Garnet Peridotite | AB183: 8.02 | AC183: 38.12 | AD183: 1
A184: samp. 3P | B184: low-Ti | C184: Caribbean | D184: -7.0 | E184: 45.69 | F184: 0.64 | G184: 11.37 | H184: 0.00 | I184: 0.32 | J184: 10.87 | K184: 0.19 | L184: 19.85 | M184: 9.92 | N184: 1.12 | O184: 0.02 | P184: 0.00 | Q184: 0.00 | R184: 1428 | S184: 1569 | T184: 1560 | U184: 0.294 | V184: 0.917 | W184: 0.176 | X184: 0.284 | Y184: 0.195 | Z184: 0.176 | AA184: Garnet Peridotite | AB184: 8.02 | AC184: 38.12 | AD184: 0.5
D185: -8.4 | E185: 45.74 | F185: 0.65 | G185: 11.53 | H185: 0.00 | I185: 0.65 | J185: 10.63 | K185: 0.19 | L185: 19.40 | M185: 10.05 | N185: 1.13 | O185: 0.02 | P185: 0.00 | Q185: 0.00 | R185: 1421 | S185: 1559 | T185: 1548 | U185: 0.295 | V185: 0.917 | W185: 0.184 | X185: 0.280 | Y185: 0.198 | Z185: 0.184 | AA185: Garnet Peridotite | AB185: 8.02 | AC185: 38.12 | AD185: 1
A186: samp. 5P | B186: low-Ti | C186: Caribbean | D186: 4.3 | E186: 45.96 | F186: 0.57 | G186: 11.56 | H186: 0.00 | I186: 0.28 | J186: 10.68 | K186: 0.16 | L186: 19.78 | M186: 9.92 | N186: 1.07 | O186: 0.02 | P186: 0.00 | Q186: 0.00 | R186: 1425 | S186: 1567 | T186: 1558 | U186: 0.296 | V186: 0.918 | W186: 0.208 | X186: 0.286 | Y186: 0.221 | Z186: 0.208 | AA186: Garnet Peridotite | AB186: 8.02 | AC186: 38.12 | AD186: 0.5
D187: 2.8 | E187: 46.02 | F187: 0.58 | G187: 11.72 | H187: 0.00 | I187: 0.58 | J187: 10.45 | K187: 0.16 | L187: 19.34 | M187: 10.06 | N187: 1.08 | O187: 0.02 | P187: 0.00 | Q187: 0.00 | R187: 1418 | S187: 1558 | T187: 1547 | U187: 0.296 | V187: 0.918 | W187: 0.217 | X187: 0.282 | Y187: 0.224 | Z187: 0.217 | AA187: Garnet Peridotite | AB187: 8.02 | AC187: 38.12 | AD187: 1
A188: samp. 72 | B188: low-Ti | C188: Caribbean | D188: 12.7 | E188: 45.73 | F188: 0.63 | G188: 11.21 | H188: 0.00 | I188: 0.32 | J188: 10.92 | K188: 0.20 | L188: 20.25 | M188: 9.66 | N188: 1.06 | O188: 0.02 | P188: 0.00 | Q188: 0.00 | R188: 1434 | S188: 1577 | T188: 1570 | U188: 0.294 | V188: 0.918 | W188: 0.204 | X188: 0.291 | Y188: 0.222 | Z188: 0.204 | AA188: Garnet Peridotite | AB188: 8.02 | AC188: 38.12 | AD188: 0.5
D189: 11.1 | E189: 45.80 | F189: 0.64 | G189: 11.39 | H189: 0.00 | I189: 0.64 | J189: 10.65 | K189: 0.21 | L189: 19.77 | M189: 9.81 | N189: 1.07 | O189: 0.02 | P189: 0.00 | Q189: 0.00 | R189: 1427 | S189: 1567 | T189: 1558 | U189: 0.295 | V189: 0.918 | W189: 0.214 | X189: 0.287 | Y189: 0.226 | Z189: 0.214 | AA189: Garnet Peridotite | AB189: 8.02 | AC189: 38.12 | AD189: 1
A190: samp. 73 | B190: low-Ti | C190: Caribbean | D190: 14.5 | E190: 45.85 | F190: 0.62 | G190: 11.34 | H190: 0.00 | I190: 0.31 | J190: 10.82 | K190: 0.20 | L190: 20.18 | M190: 9.56 | N190: 1.10 | O190: 0.03 | P190: 0.00 | Q190: 0.00 | R190: 1433 | S190: 1575 | T190: 1568 | U190: 0.295 | V190: 0.918 | W190: 0.215 | X190: 0.291 | Y190: 0.231 | Z190: 0.215 | AA190: Garnet Peridotite | AB190: 8.02 | AC190: 38.12 | AD190: 0.5
D191: 12.8 | E191: 45.92 | F191: 0.63 | G191: 11.53 | H191: 0.00 | I191: 0.63 | J191: 10.55 | K191: 0.20 | L191: 19.68 | M191: 9.72 | N191: 1.12 | O191: 0.03 | P191: 0.00 | Q191: 0.00 | R191: 1426 | S191: 1565 | T191: 1555 | U191: 0.296 | V191: 0.918 | W191: 0.225 | X191: 0.286 | Y191: 0.234 | Z191: 0.225 | AA191: Garnet Peridotite | AB191: 8.02 | AC191: 38.12 | AD191: 1
A192: samp. G-160 | B192: low-Ti | C192: Caribbean | D192: 4.2 | E192: 45.49 | F192: 0.63 | G192: 11.45 | H192: 0.00 | I192: 0.31 | J192: 11.02 | K192: 0.18 | L192: 19.75 | M192: 9.81 | N192: 1.26 | O192: 0.06 | P192: 0.00 | Q192: 0.05 | R192: 1429 | S192: 1567 | T192: 1557 | U192: 0.294 | V192: 0.916 | W192: 0.140 | X192: 0.280 | Y192: 0.164 | Z192: 0.140 | AA192: Garnet Peridotite | AB192: 8.02 | AC192: 38.12 | AD192: 0.5
D193: 2.7 | E193: 45.54 | F193: 0.64 | G193: 11.61 | H193: 0.00 | I193: 0.63 | J193: 10.76 | K193: 0.18 | L193: 19.29 | M193: 9.96 | N193: 1.28 | O193: 0.06 | P193: 0.00 | Q193: 0.05 | R193: 1423 | S193: 1557 | T193: 1545 | U193: 0.294 | V193: 0.916 | W193: 0.147 | X193: 0.276 | Y193: 0.167 | Z193: 0.147 | AA193: Garnet Peridotite | AB193: 8.02 | AC193: 38.12 | AD193: 1
A194: samp. G-159 | B194: low-Ti | C194: Caribbean | D194: 1.9 | E194: 45.38 | F194: 0.63 | G194: 11.52 | H194: 0.00 | I194: 0.32 | J194: 11.05 | K194: 0.18 | L194: 19.78 | M194: 9.87 | N194: 1.20 | O194: 0.03 | P194: 0.00 | Q194: 0.04 | R194: 1429 | S194: 1567 | T194: 1558 | U194: 0.293 | V194: 0.916 | W194: 0.136 | X194: 0.279 | Y194: 0.160 | Z194: 0.136 | AA194: Garnet Peridotite | AB194: 8.02 | AC194: 38.12 | AD194: 0.5
D195: 0.5 | E195: 45.43 | F195: 0.64 | G195: 11.69 | H195: 0.00 | I195: 0.64 | J195: 10.80 | K195: 0.18 | L195: 19.33 | M195: 10.01 | N195: 1.22 | O195: 0.03 | P195: 0.00 | Q195: 0.04 | R195: 1422 | S195: 1558 | T195: 1546 | U195: 0.294 | V195: 0.916 | W195: 0.143 | X195: 0.275 | Y195: 0.163 | Z195: 0.143 | AA195: Garnet Peridotite | AB195: 8.02 | AC195: 38.12 | AD195: 1
A196: samp. G-142 | B196: low-Ti | C196: Caribbean | D196: -7.8 | E196: 45.39 | F196: 0.63 | G196: 11.35 | H196: 0.00 | I196: 0.32 | J196: 11.07 | K196: 0.19 | L196: 20.24 | M196: 9.72 | N196: 1.03 | O196: 0.02 | P196: 0.00 | Q196: 0.04 | R196: 1435 | S196: 1576 | T196: 1570 | U196: 0.293 | V196: 0.918 | W196: 0.170 | X196: 0.287 | Y196: 0.193 | Z196: 0.170 | AA196: Garnet Peridotite | AB196: 8.02 | AC196: 38.12 | AD196: 0.5
D197: -9.2 | E197: 45.43 | F197: 0.64 | G197: 11.50 | H197: 0.00 | I197: 0.64 | J197: 10.84 | K197: 0.19 | L197: 19.81 | M197: 9.85 | N197: 1.05 | O197: 0.02 | P197: 0.00 | Q197: 0.04 | R197: 1429 | S197: 1568 | T197: 1558 | U197: 0.293 | V197: 0.917 | W197: 0.178 | X197: 0.283 | Y197: 0.196 | Z197: 0.178 | AA197: Garnet Peridotite | AB197: 8.02 | AC197: 38.12 | AD197: 1
A198: samp. G-156 | B198: low-Ti | C198: Caribbean | D198: -10.9 | E198: 45.42 | F198: 0.60 | G198: 10.96 | H198: 0.00 | I198: 0.30 | J198: 11.20 | K198: 0.19 | L198: 20.89 | M198: 9.42 | N198: 0.96 | O198: 0.01 | P198: 0.00 | Q198: 0.04 | R198: 1445 | S198: 1589 | T198: 1586 | U198: 0.293 | V198: 0.919 | W198: 0.200 | X198: 0.297 | Y198: 0.224 | Z198: 0.200 | AA198: Garnet Peridotite | AB198: 8.02 | AC198: 38.12 | AD198: 0.5
D199: -12.2 | E199: 45.46 | F199: 0.61 | G199: 11.09 | H199: 0.00 | I199: 0.61 | J199: 10.98 | K199: 0.19 | L199: 20.49 | M199: 9.54 | N199: 0.97 | O199: 0.01 | P199: 0.00 | Q199: 0.05 | R199: 1440 | S199: 1581 | T199: 1576 | U199: 0.293 | V199: 0.919 | W199: 0.208 | X199: 0.294 | Y199: 0.228 | Z199: 0.208 | AA199: Garnet Peridotite | AB199: 8.02 | AC199: 38.12 | AD199: 1
A200: samp. GTJ422 | B200: low-Ti | C200: Caribbean | D200: 22.2 | E200: 48.98 | F200: 0.88 | G200: 11.71 | H200: 0.00 | I200: 0.44 | J200: 9.32 | K200: 0.17 | L200: 16.34 | M200: 10.59 | N200: 1.34 | O200: 0.15 | P200: 0.00 | Q200: 0.07 | R200: 1361 | S200: 1492 | T200: 1470 | U200: 0.311 | V200: 0.910 | W200: 0.282 | X200: 0.282 | Y200: 0.395 | Z200: 0.508 | AA200: Harzburgite | AB200: 8.40 | AC200: 38.12 | AD200: 0.5
... 22 more rows

Sheet Sheet1
A1: Sample | B1: Type | C1: Location | D1: SiO2 (wt%) | E1: TiO2 | F1: Al2O3 | G1: Cr2O3 | H1: FeOT | I1: MnO | J1: MgO | K1: CaO | L1: Na2O | M1: K2O | N1: NiO | O1: P2O5 | P1: Tp(oC) | Q1: T(oC)
A2: samp. 11 | B2: high-Ti | C2: Wrangellia | D2: 49.25 | E2: 1.38 | F2: 14.99 | H2: 10.46 | I2: 0.18 | J2: 7.84 | K2: 13.26 | L2: 2.13 | M2: 0.17 | O2: 0.13 | P2: 1549 | Q2: 1424
A3: samp. 5727A2 | B3: low-Ti | C3: Wrangellia | D3: 50.70 | E3: 0.54 | F3: 14.49 | H3: 10.09 | I3: 0.19 | J3: 9.41 | K3: 12.30 | L3: 1.09 | M3: 0.06 | O3: 0.04 | P3: 1530 | Q3: 1400
A4: samp. 5727A7 | B4: low-Ti | C4: Wrangellia | D4: 46.13 | E4: 0.56 | F4: 17.97 | H4: 10.65 | I4: 0.17 | J4: 9.09 | K4: 12.78 | L4: 1.19 | M4: 0.10 | O4: 0.07 | P4: 1543 | Q4: 1415
A5: samp. 5731A4 | B5: low-Ti | C5: Wrangellia | D5: 48.61 | E5: 0.48 | F5: 15.89 | H5: 9.29 | I5: 0.19 | J5: 9.63 | K5: 12.00 | L5: 1.87 | M5: 0.63 | O5: 0.06 | P5: 1485 | Q5: 1380
A6: samp. 5802A2 | B6: low-Ti | C6: Wrangellia | D6: 49.94 | E6: 0.48 | F6: 15.33 | H6: 9.39 | I6: 0.19 | J6: 8.85 | K6: 12.67 | L6: 1.88 | M6: 0.11 | O6: 0.06 | P6: 1493 | Q6: 1381
A7: samp. 5802A3 | B7: low-Ti | C7: Wrangellia | D7: 47.76 | E7: 0.52 | F7: 16.76 | H7: 9.38 | I7: 0.18 | J7: 9.85 | K7: 12.31 | L7: 1.20 | M7: 0.59 | O7: 0.06 | P7: 1490 | Q7: 1377
A8: samp. 5802A5 | B8: low-Ti | C8: Wrangellia | D8: 46.68 | E8: 0.93 | F8: 16.19 | H8: 10.99 | I8: 0.20 | J8: 10.21 | K8: 12.16 | L8: 1.23 | M8: 0.12 | O8: 0.10 | P8: 1546 | Q8: 1418
A9: samp. 5808A2 | B9: high-Ti | C9: Wrangellia | D9: 46.44 | E9: 1.06 | F9: 10.72 | H9: 9.65 | I9: 0.15 | J9: 15.42 | K9: 9.59 | L9: 1.34 | M9: 0.35 | O9: 0.09 | P9: 1485 | Q9: 1377
A10: samp. 5810A2 | B10: low-Ti | C10: Wrangellia | D10: 48.39 | E10: 0.54 | F10: 16.20 | H10: 10.19 | I10: 0.20 | J10: 9.96 | K10: 12.21 | L10: 1.22 | M10: 0.07 | O10: 0.06 | P10: 1534 | Q10: 1406
A11: samp. 4720A2 | B11: high-Ti | C11: Wrangellia | D11: 49.24 | E11: 1.58 | F11: 13.54 | H11: 10.17 | I11: 0.21 | J11: 6.09 | K11: 14.00 | L11: 2.12 | M11: 0.10 | O11: 0.12 | P11: 1602 | Q11: 1460
A12: samp. 4721A2 | B12: high-Ti | C12: Wrangellia | D12: 49.56 | E12: 1.77 | F12: 13.92 | H12: 11.76 | I12: 0.17 | J12: 6.06 | K12: 12.15 | L12: 2.01 | M12: 0.09 | O12: 0.16 | P12: 1672 | Q12: 1506
A13: samp. 5614A1 | B13: low-Ti | C13: Wrangellia | D13: 46.24 | E13: 0.47 | F13: 14.57 | H13: 7.71 | I13: 0.15 | J13: 12.11 | K13: 10.81 | L13: 1.30 | M13: 0.01 | O13: 0.04 | P13: 1395 | Q13: 1300
A14: samp. 93G171 | B14: low-Ti | C14: Wrangellia | D14: 47.93 | E14: 0.46 | F14: 14.02 | H14: 8.94 | I14: 0.19 | J14: 15.84 | K14: 10.42 | L14: 1.02 | M14: 0.11 | O14: 0.08 | P14: 1440 | Q14: 1335
A15: samp. 5616A7 | B15: low-Ti | C15: Wrangellia | D15: 46.75 | E15: 0.73 | F15: 15.92 | H15: 9.79 | I15: 0.15 | J15: 8.70 | K15: 11.69 | L15: 2.12 | M15: 0.07 | O15: 0.04 | P15: 1493 | Q15: 1387
A16: samp. 92-205B | B16: low-Ti | C16: Wrangellia | D16: 48.00 | E16: 0.91 | F16: 15.00 | H16: 10.48 | I16: 0.21 | J16: 9.48 | K16: 12.83 | L16: 0.78 | M16: 1.40 | O16: 0.15 | P16: 1548 | Q16: 1421
A17: 5617A5(2) | B17: high-Ti | C17: Wrangellia | D17: 47.40 | E17: 1.71 | F17: 13.33 | H17: 11.44 | I17: 0.17 | J17: 7.46 | K17: 11.93 | L17: 1.80 | M17: 0.17 | O17: 0.14 | P17: 1637 | Q17: 1483
A18: 28-Dostal | B18: high-Ti | C18: Wrangellia | D18: 49.52 | E18: 1.62 | F18: 14.32 | H18: 11.58 | I18: 0.21 | J18: 6.08 | K18: 12.23 | L18: 1.80 | M18: 0.16 | O18: 0.12 | P18: 1674 | Q18: 1506
A19: 15-Dostal | B19: high-Ti | C19: Wrangellia | D19: 49.57 | E19: 1.51 | F19: 14.48 | H19: 11.82 | I19: 0.20 | J19: 7.25 | K19: 12.28 | L19: 2.10 | M19: 0.18 | O19: 0.11 | P19: 1641 | Q19: 1488
A20: samp. FL-14 | B20: low-Ti | C20: Galapagos | D20: 47.27 | E20: 1.30 | F20: 15.70 | H20: 9.33 | I20: 0.18 | J20: 8.58 | K20: 12.17 | L20: 2.79 | M20: 0.94 | O20: 0.23 | P20: 1439 | Q20: 1359
A21: samp. FL-25 | B21: low-Ti | C21: Galapagos | D21: 46.50 | E21: 1.52 | F21: 15.55 | H21: 10.06 | I21: 0.19 | J21: 9.98 | K21: 12.31 | L21: 2.46 | M21: 0.26 | O21: 0.15 | P21: 1459 | Q21: 1367
A22: samp. FL-26 | B22: low-Ti | C22: Galapagos | D22: 46.48 | E22: 1.46 | F22: 15.73 | H22: 10.14 | I22: 0.18 | J22: 10.16 | K22: 12.25 | L22: 2.30 | M22: 0.18 | O22: 0.13 | P22: 1470 | Q22: 1373
A23: samp. E-165 | B23: low-Ti | C23: Galapagos | D23: 48.87 | E23: 0.69 | F23: 17.72 | H23: 7.31 | I23: 0.12 | J23: 8.73 | K23: 12.21 | L23: 2.74 | M23: 0.17 | O23: 0.14 | P23: 1346 | Q23: 1275
A24: samp. JH-86 | B24: low-Ti | C24: Galapagos | D24: 46.46 | E24: 1.26 | F24: 16.00 | H24: 10.02 | I24: 0.18 | J24: 10.79 | K24: 11.97 | L24: 2.28 | M24: 0.06 | O24: 0.10 | P24: 1467 | Q24: 1370
A25: samp. JL-74 | B25: low-Ti | C25: Galapagos | D25: 46.80 | E25: 1.84 | F25: 16.22 | H25: 10.43 | I25: 0.19 | J25: 8.18 | K25: 12.47 | L25: 2.36 | M25: 0.07 | O25: 0.11 | P25: 1503 | Q25: 1396
A26: samp. JL-122 | B26: low-Ti | C26: Galapagos | D26: 47.06 | E26: 1.37 | F26: 16.71 | H26: 10.00 | I26: 0.18 | J26: 9.50 | K26: 12.52 | L26: 2.45 | M26: 0.03 | O26: 0.07 | P26: 1465 | Q26: 1368
A27: samp. JH-86 | B27: low-Ti | C27: Galapagos | D27: 46.46 | E27: 1.26 | F27: 16.00 | H27: 10.02 | I27: 0.18 | J27: 10.79 | K27: 11.97 | L27: 2.28 | M27: 0.06 | O27: 0.10 | P27: 1467 | Q27: 1370
A28: samp. W95 62 | B28: low-Ti | C28: Galapagos | D28: 48.61 | E28: 1.61 | F28: 17.23 | H28: 7.79 | I28: 0.13 | J28: 9.50 | K28: 12.74 | L28: 2.16 | M28: 0.25 | O28: 0.19 | P28: 1330 | Q28: 1256
A29: samp. W95 78 | B29: high-Ti | C29: Galapagos | D29: 48.19 | E29: 2.16 | F29: 17.70 | H29: 8.67 | I29: 0.14 | J29: 7.05 | K29: 12.44 | L29: 2.67 | M29: 0.37 | O29: 0.25 | P29: 1397 | Q29: 1320
A30: samp. NSK97-220 | B30: high-Ti | C30: Galapagos | D30: 48.88 | E30: 2.47 | F30: 16.15 | H30: 9.62 | I30: 0.16 | J30: 7.17 | K30: 12.68 | L30: 2.32 | M30: 0.31 | O30: 0.24 | P30: 1463 | Q30: 1366
A31: samp. NSK97-252 | B31: low-Ti | C31: Galapagos | D31: 47.30 | E31: 1.01 | F31: 16.77 | H31: 8.83 | I31: 0.17 | J31: 11.17 | K31: 12.37 | L31: 2.16 | M31: 0.12 | O31: 0.10 | P31: 1401 | Q31: 1315
A32: samp. NSK97-254 | B32: low-Ti | C32: Galapagos | D32: 47.44 | E32: 0.98 | F32: 16.40 | H32: 9.04 | I32: 0.17 | J32: 11.80 | K32: 11.55 | L32: 2.31 | M32: 0.19 | O32: 0.11 | P32: 1418 | Q32: 1332
A33: samp. SG93-1 | B33: high-Ti | C33: Galapagos | D33: 47.97 | E33: 2.28 | F33: 15.47 | H33: 10.35 | I33: 0.17 | J33: 7.83 | K33: 12.67 | L33: 2.59 | M33: 0.41 | O33: 0.26 | P33: 1488 | Q33: 1390
A34: samp. SG93-5 | B34: high-Ti | C34: Galapagos | D34: 48.09 | E34: 2.04 | F34: 14.79 | H34: 9.96 | I34: 0.18 | J34: 10.20 | K34: 11.75 | L34: 2.45 | M34: 0.34 | O34: 0.21 | P34: 1460 | Q34: 1368
A35: samp. 07DSG74 | B35: low-Ti | C35: Galapagos | D35: 46.69 | E35: 1.25 | F35: 16.80 | H35: 9.79 | I35: 0.17 | J35: 9.54 | K35: 12.20 | L35: 2.30 | M35: 0.07 | O35: 0.09 | P35: 1466 | Q35: 1369
A36: samp. PJT01 | B36: low-Ti | C36: Galapagos | D36: 47.03 | E36: 1.30 | F36: 17.06 | H36: 9.90 | I36: 0.17 | J36: 8.96 | K36: 12.07 | L36: 2.44 | M36: 0.12 | O36: 0.12 | P36: 1478 | Q36: 1379
A37: samp. PJT02 | B37: low-Ti | C37: Galapagos | D37: 46.23 | E37: 1.29 | F37: 16.89 | H37: 9.82 | I37: 0.17 | J37: 9.27 | K37: 12.29 | L37: 2.40 | M37: 0.10 | O37: 0.17 | P37: 1461 | Q37: 1366
A38: samp. 07DSG79B | B38: low-Ti | C38: Galapagos | D38: 46.67 | E38: 1.41 | F38: 16.60 | H38: 9.82 | I38: 0.17 | J38: 9.02 | K38: 12.31 | L38: 2.34 | M38: 0.07 | O38: 0.10 | P38: 1470 | Q38: 1372
A39: samp. 07DSG71 | B39: low-Ti | C39: Galapagos | D39: 45.91 | E39: 1.39 | F39: 16.77 | H39: 10.02 | I39: 0.17 | J39: 9.12 | K39: 12.61 | L39: 2.29 | M39: 0.06 | O39: 0.10 | P39: 1466 | Q39: 1369
A40: samp. 07DSG73 | B40: low-Ti | C40: Galapagos | D40: 46.83 | E40: 1.42 | F40: 17.12 | H40: 10.08 | I40: 0.17 | J40: 9.20 | K40: 12.37 | L40: 2.33 | M40: 0.07 | O40: 0.12 | P40: 1473 | Q40: 1375
A41: samp. 07DSG74 | B41: low-Ti | C41: Galapagos | D41: 46.69 | E41: 1.25 | F41: 16.80 | H41: 9.79 | I41: 0.17 | J41: 9.54 | K41: 12.20 | L41: 2.30 | M41: 0.07 | O41: 0.09 | P41: 1466 | Q41: 1368
A42: samp. PJT02 | B42: low-Ti | C42: Galapagos | D42: 46.23 | E42: 1.29 | F42: 16.89 | H42: 9.82 | I42: 0.17 | J42: 9.27 | K42: 12.29 | L42: 2.40 | M42: 0.10 | O42: 0.17 | P42: 1461 | Q42: 1366
A43: samp. 08DSG02 | B43: low-Ti | C43: Galapagos | D43: 47.73 | E43: 1.23 | F43: 16.89 | H43: 9.72 | I43: 0.17 | J43: 9.18 | K43: 12.20 | L43: 2.37 | M43: 0.08 | O43: 0.09 | P43: 1473 | Q43: 1373
A44: samp. 08DSG19 | B44: low-Ti | C44: Galapagos | D44: 47.03 | E44: 1.51 | F44: 16.96 | H44: 10.13 | I44: 0.16 | J44: 9.34 | K44: 11.90 | L44: 2.42 | M44: 0.13 | O44: 0.13 | P44: 1480 | Q44: 1381
A45: samp. 08DSG38 | B45: low-Ti | C45: Galapagos | D45: 46.78 | E45: 1.26 | F45: 16.72 | H45: 10.23 | I45: 0.17 | J45: 9.67 | K45: 12.07 | L45: 2.38 | M45: 0.09 | O45: 0.10 | P45: 1484 | Q45: 1384
A46: samp. 08DSG42 | B46: low-Ti | C46: Galapagos | D46: 47.00 | E46: 1.14 | F46: 16.69 | H46: 10.04 | I46: 0.17 | J46: 10.37 | K46: 11.62 | L46: 2.26 | M46: 0.07 | O46: 0.09 | P46: 1483 | Q46: 1381
A47: samp. 08DSG43 | B47: low-Ti | C47: Galapagos | D47: 46.72 | E47: 1.24 | F47: 16.89 | H47: 10.22 | I47: 0.17 | J47: 9.90 | K47: 11.98 | L47: 2.27 | M47: 0.07 | O47: 0.09 | P47: 1485 | Q47: 1383
A48: samp. 15-146-1 | B48: low-Ti | C48: Caribbean | D48: 48.06 | E48: 1.07 | F48: 14.53 | H48: 9.91 | I48: 0.17 | J48: 8.14 | K48: 13.01 | L48: 1.87 | M48: 0.03 | O48: 0.08 | P48: 1530 | Q48: 1408
A49: samp. 96VD126* | B49: low-Ti | C49: Caribbean | D49: 46.50 | E49: 1.50 | F49: 10.79 | H49: 11.80 | I49: 0.18 | J49: 11.25 | K49: 12.20 | L49: 2.09 | M49: 0.10 | O49: 0.15 | P49: 1587 | Q49: 1455
A50: samp. GOR501 | B50: low-Ti | C50: Caribbean | D50: 44.65 | E50: 0.61 | F50: 10.11 | H50: 11.30 | I50: 0.19 | J50: 22.08 | K50: 8.91 | L50: 0.81 | M50: 0.02 | O50: 0.03 | P50: 1596 | Q50: 1452
A51: samp. GOR502 | B51: low-Ti | C51: Caribbean | D51: 46.07 | E51: 0.74 | F51: 13.08 | H51: 11.37 | I51: 0.20 | J51: 14.53 | K51: 11.38 | L51: 1.26 | M51: 0.04 | O51: 0.04 | P51: 1566 | Q51: 1432
A52: samp. GOR519 | B52: low-Ti | C52: Caribbean | D52: 46.90 | E52: 0.48 | F52: 12.60 | H52: 10.57 | I52: 0.19 | J52: 15.58 | K52: 10.62 | L52: 1.25 | M52: 0.59 | O52: 0.03 | P52: 1549 | Q52: 1423
A53: samp. GOR520 | B53: low-Ti | C53: Caribbean | D53: 48.22 | E53: 0.55 | F53: 14.84 | H53: 10.69 | I53: 0.19 | J53: 9.51 | K53: 13.01 | L53: 1.69 | M53: 0.04 | O53: 0.04 | P53: 1568 | Q53: 1434
A54: samp. GOR512 | B54: low-Ti | C54: Caribbean | D54: 45.27 | E54: 0.30 | F54: 9.76 | H54: 10.00 | I54: 0.18 | J54: 24.44 | K54: 8.21 | L54: 0.66 | M54: 0.07 | O54: 0.02 | P54: 1571 | Q54: 1430
A55: samp. GOR513 | B55: low-Ti | C55: Caribbean | D55: 45.36 | E55: 0.33 | F55: 9.98 | H55: 10.08 | I55: 0.18 | J55: 23.54 | K55: 8.68 | L55: 0.66 | M55: 0.05 | O55: 0.01 | P55: 1571 | Q55: 1429
A56: samp. GOR515 | B56: low-Ti | C56: Caribbean | D56: 44.46 | E56: 0.27 | F56: 8.71 | H56: 9.84 | I56: 0.17 | J56: 27.29 | K56: 7.73 | L56: 0.37 | M56: 0.02 | O56: 0.02 | P56: 1601 | Q56: 1447
A57: samp. GOR517 | B57: low-Ti | C57: Caribbean | D57: 44.58 | E57: 0.32 | F57: 8.50 | H57: 9.84 | I57: 0.18 | J57: 27.87 | K57: 7.24 | L57: 0.33 | M57: 0.03 | O57: 0.02 | P57: 1601 | Q57: 1447
A58: samp. CBU6 | B58: low-Ti | C58: Caribbean | D58: 48.57 | E58: 1.25 | F58: 14.77 | H58: 10.38 | I58: 0.15 | J58: 8.29 | K58: 12.84 | L58: 2.31 | M58: 0.17 | O58: 0.09 | P58: 1540 | Q58: 1420
A59: samp. CBU8 | B59: low-Ti | C59: Caribbean | D59: 47.90 | E59: 1.16 | F59: 15.12 | H59: 10.12 | I59: 0.19 | J59: 8.71 | K59: 13.13 | L59: 2.11 | M59: 0.29 | O59: 0.09 | P59: 1510 | Q59: 1398
A60: samp. AMA3 | B60: low-Ti | C60: Caribbean | D60: 50.22 | E60: 0.88 | F60: 13.79 | H60: 9.51 | I60: 0.18 | J60: 10.30 | K60: 12.23 | L60: 1.45 | M60: 0.08 | O60: 0.08 | P60: 1478 | Q60: 1366
A61: samp. AMA4 | B61: low-Ti | C61: Caribbean | D61: 49.91 | E61: 0.92 | F61: 14.36 | H61: 9.65 | I61: 0.17 | J61: 9.06 | K61: 12.75 | L61: 1.62 | M61: 0.30 | O61: 0.08 | P61: 1492 | Q61: 1379
A62: samp. AMA6 | B62: low-Ti | C62: Caribbean | D62: 50.10 | E62: 0.99 | F62: 14.37 | H62: 9.60 | I62: 0.18 | J62: 9.02 | K62: 12.05 | L62: 2.15 | M62: 0.32 | O62: 0.09 | P62: 1486 | Q62: 1381
A63: samp. AMA9 | B63: low-Ti | C63: Caribbean | D63: 50.24 | E63: 0.99 | F63: 14.36 | H63: 9.54 | I63: 0.18 | J63: 8.78 | K63: 12.85 | L63: 1.81 | M63: 0.04 | O63: 0.09 | P63: 1485 | Q63: 1374
A64: samp. FLO1 | B64: low-Ti | C64: Caribbean | D64: 50.43 | E64: 0.99 | F64: 14.21 | H64: 9.44 | I64: 0.17 | J64: 8.43 | K64: 12.11 | L64: 2.71 | M64: 0.20 | O64: 0.09 | P64: 1480 | Q64: 1381
A65: samp. YAN4 | B65: low-Ti | C65: Caribbean | D65: 50.86 | E65: 0.87 | F65: 14.22 | H65: 9.48 | I65: 0.18 | J65: 8.57 | K65: 13.22 | L65: 1.39 | M65: 0.03 | O65: 0.07 | P65: 1491 | Q65: 1374
A66: samp. AN53 | B66: low-Ti | C66: Caribbean | D66: 48.46 | E66: 0.99 | F66: 14.22 | H66: 10.17 | I66: 0.23 | J66: 8.63 | K66: 12.61 | L66: 1.96 | M66: 0.05 | O66: 0.08 | P66: 1539 | Q66: 1416
A67: samp. AN54 | B67: low-Ti | C67: Caribbean | D67: 48.92 | E67: 0.98 | F67: 14.26 | H67: 9.95 | I67: 0.22 | J67: 8.58 | K67: 12.63 | L67: 1.94 | M67: 0.07 | O67: 0.08 | P67: 1524 | Q67: 1405
A68: samp. AN75 | B68: low-Ti | C68: Caribbean | D68: 48.93 | E68: 0.91 | F68: 13.99 | H68: 9.65 | I68: 0.19 | J68: 8.83 | K68: 12.09 | L68: 2.10 | M68: 0.21 | O68: 0.08 | P68: 1507 | Q68: 1395
A69: samp. AN76 | B69: low-Ti | C69: Caribbean | D69: 48.72 | E69: 0.75 | F69: 14.38 | H69: 9.15 | I69: 0.16 | J69: 8.66 | K69: 12.19 | L69: 1.87 | M69: 0.34 | O69: 0.05 | P69: 1485 | Q69: 1377
A70: samp. AN87 | B70: low-Ti | C70: Caribbean | D70: 48.96 | E70: 0.76 | F70: 14.28 | H70: 9.11 | I70: 0.16 | J70: 8.69 | K70: 12.24 | L70: 1.94 | M70: 0.34 | O70: 0.05 | P70: 1480 | Q70: 1374
A71: samp. BN14 | B71: low-Ti | C71: Caribbean | D71: 47.84 | E71: 0.83 | F71: 14.21 | H71: 9.62 | I71: 0.17 | J71: 8.11 | K71: 12.22 | L71: 2.37 | M71: 0.46 | O71: 0.06 | P71: 1530 | Q71: 1416
A72: samp. BN19 | B72: low-Ti | C72: Caribbean | D72: 50.16 | E72: 0.88 | F72: 14.73 | H72: 8.57 | I72: 0.17 | J72: 8.60 | K72: 12.75 | L72: 1.86 | M72: 0.16 | O72: 0.07 | P72: 1436 | Q72: 1338
A73: samp. BUR5 | B73: low-Ti | C73: Caribbean | D73: 48.93 | E73: 0.85 | F73: 14.49 | H73: 9.15 | I73: 0.16 | J73: 8.77 | K73: 12.61 | L73: 1.93 | M73: 0.11 | O73: 0.06 | P73: 1477 | Q73: 1370
A74: samp. BUR11 | B74: low-Ti | C74: Caribbean | D74: 47.97 | E74: 1.13 | F74: 14.43 | H74: 9.82 | I74: 0.20 | J74: 8.40 | K74: 12.05 | L74: 2.81 | M74: 0.10 | O74: 0.09 | P74: 1506 | Q74: 1402
A75: samp. BN10 | B75: low-Ti | C75: Caribbean | D75: 49.14 | E75: 0.85 | F75: 14.25 | H75: 8.91 | I75: 0.15 | J75: 8.16 | K75: 12.26 | L75: 1.62 | M75: 0.61 | O75: 0.05 | P75: 1472 | Q75: 1367
A76: samp. GOR-94-19 | B76: low-Ti | C76: Caribbean | D76: 45.79 | E76: 0.63 | F76: 10.74 | H76: 10.97 | I76: 0.18 | J76: 20.86 | K76: 9.10 | L76: 0.89 | M76: 0.03 | O76: 0.05 | P76: 1593 | Q76: 1447
A77: samp. GOR-94-32 | B77: low-Ti | C77: Caribbean | D77: 46.72 | E77: 0.35 | F77: 10.59 | H77: 10.13 | I77: 0.17 | J77: 22.43 | K77: 8.65 | L77: 0.56 | M77: 0.07 | O77: 0.03 | P77: 1556 | Q77: 1426
A78: samp. GOR-156 | B78: low-Ti | C78: Caribbean | D78: 45.70 | E78: 0.44 | F78: 9.80 | H78: 11.10 | J78: 23.90 | K78: 8.40 | L78: 0.60 | M78: 0.01 | P78: 1621 | Q78: 1464
A79: samp. GOR-139 | B79: low-Ti | C79: Caribbean | D79: 45.10 | E79: 0.46 | F79: 10.20 | H79: 11.10 | J79: 22.90 | K79: 8.70 | L79: 0.73 | M79: 0.02 | P79: 1601 | Q79: 1453
A80: samp. GOR-142 | B80: low-Ti | C80: Caribbean | D80: 46.00 | E80: 0.52 | F80: 10.50 | H80: 10.90 | J80: 22.30 | K80: 8.90 | L80: 0.71 | M80: 0.02 | P80: 1596 | Q80: 1447
A81: samp. GOR-145 | B81: low-Ti | C81: Caribbean | D81: 46.00 | E81: 0.53 | F81: 11.10 | H81: 11.30 | J81: 20.60 | K81: 9.30 | L81: 0.84 | M81: 0.03 | P81: 1601 | Q81: 1453
A82: samp. GOR-166 | B82: low-Ti | C82: Caribbean | D82: 46.30 | E82: 0.53 | F82: 11.30 | H82: 11.50 | J82: 19.50 | K82: 9.80 | L82: 0.81 | M82: 0.00 | P82: 1608 | Q82: 1457
A83: samp. GOR-141 | B83: low-Ti | C83: Caribbean | D83: 46.00 | E83: 0.55 | F83: 11.80 | H83: 11.50 | J83: 18.40 | K83: 10.10 | L83: 0.89 | M83: 0.00 | P83: 1599 | Q83: 1450
A84: samp. GOR-149 | B84: low-Ti | C84: Caribbean | D84: 46.50 | E84: 0.58 | F84: 12.10 | H84: 11.30 | J84: 18.00 | K84: 10.30 | L84: 1.07 | M84: 0.08 | P84: 1579 | Q84: 1439
A85: samp. GOR-148 | B85: low-Ti | C85: Caribbean | D85: 46.90 | E85: 0.62 | F85: 12.40 | H85: 11.50 | J85: 17.60 | K85: 10.20 | L85: 0.95 | M85: 0.08 | P85: 1598 | Q85: 1450
A86: samp. GOR-146 | B86: low-Ti | C86: Caribbean | D86: 46.60 | E86: 0.61 | F86: 12.40 | H86: 11.50 | J86: 17.10 | K86: 10.50 | L86: 1.06 | M86: 0.07 | P86: 1588 | Q86: 1445
A87: samp. GOR-157 | B87: low-Ti | C87: Caribbean | D87: 46.90 | E87: 0.59 | F87: 12.80 | H87: 11.50 | J87: 15.70 | K87: 10.90 | L87: 1.10 | M87: 0.10 | P87: 1591 | Q87: 1447
A88: samp. GOR-167 | B88: low-Ti | C88: Caribbean | D88: 46.90 | E88: 0.67 | F88: 13.90 | H88: 11.50 | J88: 13.20 | K88: 12.00 | L88: 1.16 | M88: 0.03 | P88: 1580 | Q88: 1439
A89: samp. GOR-94-32 | B89: low-Ti | C89: Caribbean | D89: 45.65 | E89: 0.67 | F89: 12.40 | H89: 11.13 | I89: 0.19 | J89: 16.49 | K89: 10.77 | L89: 1.23 | M89: 0.03 | O89: 0.05 | P89: 1556 | Q89: 1426
A90: samp. GOR-94-19 | B90: low-Ti | C90: Caribbean | D90: 45.79 | E90: 0.63 | F90: 10.74 | H90: 10.97 | I90: 0.18 | J90: 20.86 | K90: 9.10 | L90: 0.89 | M90: 0.03 | O90: 0.05 | P90: 1593 | Q90: 1447
A91: samp. 6 | B91: low-Ti | C91: Caribbean | D91: 46.90 | E91: 0.72 | F91: 12.70 | H91: 11.30 | I91: 0.20 | J91: 15.80 | K91: 10.90 | L91: 1.13 | M91: 0.05 | P91: 1578 | Q91: 1438
A92: samp. 23B | B92: low-Ti | C92: Caribbean | D92: 44.70 | E92: 0.67 | F92: 12.00 | H92: 12.50 | I92: 0.19 | J92: 18.00 | K92: 9.97 | L92: 0.92 | M92: 0.03 | P92: 1615 | Q92: 1467
A93: samp. 38 | B93: low-Ti | C93: Caribbean | D93: 46.30 | E93: 0.64 | F93: 13.20 | H93: 11.30 | I93: 0.21 | J93: 15.80 | K93: 10.80 | L93: 1.43 | M93: 0.02 | P93: 1557 | Q93: 1429
A94: samp. 71 | B94: low-Ti | C94: Caribbean | D94: 46.50 | E94: 0.67 | F94: 12.30 | H94: 11.30 | I94: 0.18 | J94: 17.10 | K94: 10.50 | L94: 1.33 | M94: 0.02 | P94: 1566 | Q94: 1433
A95: samp. 72 | B95: low-Ti | C95: Caribbean | D95: 46.00 | E95: 0.71 | F95: 12.60 | H95: 11.40 | I95: 0.21 | J95: 16.20 | K95: 10.80 | L95: 1.19 | M95: 0.02 | P95: 1569 | Q95: 1434
A96: samp. 73 | B96: low-Ti | C96: Caribbean | D96: 46.30 | E96: 0.71 | F96: 13.00 | H96: 11.30 | I96: 0.21 | J96: 15.50 | K96: 10.90 | L96: 1.26 | M96: 0.03 | P96: 1567 | Q96: 1433
A97: samp. 3P | B97: low-Ti | C97: Caribbean | D97: 45.30 | E97: 0.60 | F97: 10.60 | H97: 10.90 | I97: 0.18 | J97: 21.90 | K97: 9.25 | L97: 1.04 | M97: 0.02 | P97: 1559 | Q97: 1428
A98: samp. 5P | B98: low-Ti | C98: Caribbean | D98: 46.00 | E98: 0.59 | F98: 12.00 | H98: 11.00 | I98: 0.16 | J98: 18.40 | K98: 10.30 | L98: 1.11 | M98: 0.02 | P98: 1557 | Q98: 1425
A99: samp. 72 | B99: low-Ti | C99: Caribbean | D99: 46.00 | E99: 0.71 | F99: 12.59 | H99: 11.40 | I99: 0.21 | J99: 16.16 | K99: 10.83 | L99: 1.19 | M99: 0.02 | P99: 1569 | Q99: 1434
A100: samp. 73 | B100: low-Ti | C100: Caribbean | D100: 46.33 | E100: 0.71 | F100: 12.98 | H100: 11.33 | I100: 0.21 | J100: 15.54 | K100: 10.93 | L100: 1.26 | M100: 0.03 | P100: 1567 | Q100: 1433
A101: samp. G-160 | B101: low-Ti | C101: Caribbean | D101: 45.55 | E101: 0.65 | F101: 11.89 | H101: 11.38 | I101: 0.18 | J101: 18.42 | K101: 10.19 | L101: 1.31 | M101: 0.06 | O101: 0.05 | P101: 1557 | Q101: 1429
A102: samp. G-159 | B102: low-Ti | C102: Caribbean | D102: 45.22 | E102: 0.64 | F102: 11.68 | H102: 11.33 | I102: 0.18 | J102: 19.09 | K102: 10.00 | L102: 1.22 | M102: 0.03 | O102: 0.04 | P102: 1557 | Q102: 1429
A103: samp. G-142 | B103: low-Ti | C103: Caribbean | D103: 44.84 | E103: 0.58 | F103: 10.46 | H103: 11.01 | I103: 0.18 | J103: 22.43 | K103: 8.96 | L103: 0.95 | M103: 0.02 | O103: 0.04 | P103: 1569 | Q103: 1435
A104: samp. G-156 | B104: low-Ti | C104: Caribbean | D104: 44.91 | E104: 0.54 | F104: 9.83 | H104: 11.01 | I104: 0.18 | J104: 23.98 | K104: 8.46 | L104: 0.86 | M104: 0.01 | O104: 0.04 | P104: 1585 | Q104: 1445
A105: samp. GTJ422 | B105: low-Ti | C105: Caribbean | D105: 50.50 | E105: 1.08 | F105: 14.40 | H105: 9.21 | I105: 0.17 | J105: 8.50 | K105: 12.98 | L105: 1.65 | M105: 0.18 | O105: 0.09 | P105: 1469 | Q105: 1361
A106: samp. NC93-20 | B106: low-Ti | C106: Caribbean | D106: 50.60 | E106: 0.98 | F106: 14.34 | H106: 9.65 | I106: 0.19 | J106: 8.73 | K106: 12.54 | L106: 1.82 | M106: 0.06 | O106: 0.07 | P106: 1496 | Q106: 1383
A107: samp. COL547 | B107: low-Ti | C107: Caribbean | D107: 46.73 | E107: 1.22 | F107: 12.00 | H107: 12.20 | I107: 0.21 | J107: 9.53 | K107: 12.38 | L107: 2.14 | M107: 0.46 | O107: 0.16 | P107: 1607 | Q107: 1472
A108: samp. 15-146-42-1-30 | B108: low-Ti | C108: Caribbean | D108: 50.60 | E108: 0.98 | F108: 15.80 | H108: 9.42 | I108: 0.20 | J108: 8.78 | K108: 12.80 | L108: 2.37 | M108: 0.09 | P108: 1471 | Q108: 1369
A109: samp. GOR29 | B109: low-Ti | C109: Caribbean | D109: 43.91 | E109: 0.48 | F109: 8.86 | H109: 10.45 | I109: 0.17 | J109: 26.10 | K109: 7.91 | L109: 0.84 | M109: 0.01 | O109: 0.04 | P109: 1569 | Q109: 1436
A110: samp. A12SP2 | B110: low-Ti | C110: Caribbean | D110: 49.80 | E110: 0.41 | F110: 14.80 | H110: 8.80 | I110: 0.13 | J110: 9.90 | K110: 12.60 | L110: 2.05 | M110: 0.05 | P110: 1450 | Q110: 1350
A111: samp. B01SP3 | B111: low-Ti | C111: Caribbean | D111: 48.40 | E111: 0.60 | F111: 14.90 | H111: 9.60 | I111: 0.20 | J111: 10.20 | K111: 12.50 | L111: 1.80 | M111: 0.03 | P111: 1497 | Q111: 1383
A112: samp. D29SP2 | B112: low-Ti | C112: Caribbean | D112: 50.50 | E112: 0.43 | F112: 15.50 | H112: 8.70 | I112: 0.17 | J112: 8.60 | K112: 13.00 | L112: 1.68 | M112: 0.01 | P112: 1456 | Q112: 1349
A113: samp. A02SP4R | B113: low-Ti | C113: Caribbean | D113: 52.60 | E113: 0.94 | F113: 14.60 | H113: 7.70 | I113: 0.13 | J113: 8.80 | K113: 12.80 | L113: 1.80 | M113: 0.12 | P113: 1371 | Q113: 1283
A114: samp. A02SP4S | B114: low-Ti | C114: Caribbean | D114: 52.30 | E114: 1.00 | F114: 14.40 | H114: 7.70 | I114: 0.10 | J114: 8.90 | K114: 12.60 | L114: 1.89 | M114: 0.11 | P114: 1370 | Q114: 1284
A115: samp. D18SP2 | B115: low-Ti | C115: Caribbean | D115: 47.80 | E115: 0.77 | F115: 14.10 | H115: 10.20 | I115: 0.21 | J115: 10.90 | K115: 12.30 | L115: 1.33 | M115: 0.16 | P115: 1528 | Q115: 1402
A116: samp. A08SP3 | B116: low-Ti | C116: Caribbean | D116: 50.10 | E116: 0.70 | F116: 14.90 | H116: 9.10 | I116: 0.16 | J116: 9.60 | K116: 12.40 | L116: 1.99 | M116: 0.04 | P116: 1462 | Q116: 1358
A117: samp. D33SP1 | B117: low-Ti | C117: Caribbean | D117: 49.00 | E117: 0.60 | F117: 14.80 | H117: 9.10 | I117: 0.16 | J117: 10.00 | K117: 12.30 | L117: 1.90 | M117: 0.03 | P117: 1467 | Q117: 1362
